Workbook

Sheet FICHA
B1: REGLAS FISCALES DE LOS GOBIERNOS REGIONALES Y GOBIERNOS LOCALES 2017 1/
B3: DEPARTAMENTO
B4: PROVINCIA
B5: ENTIDAD
B7: R1: Regla Fiscal de Saldo de Deuda Total | D7: =IFERROR( VLOOKUP($C$19,REGLAS!$A$1:$S$1901,14,FALSE)," ") ->  | E7: R2: Regla Fiscal de Ahorro en Cuenta Corriente 3/ | G7: =IFERROR(IF( VLOOKUP($C$19,REGLAS!$A$1:$S$1901,10,FALSE)="Exonerado","Exonerado",IFERROR( VLOOKUP($C$19,REGLAS!$A$1:$S$1901,19,FALSE)," "))," ") -> 
B8: Saldo de Deuda Total | C8: =IFERROR( VLOOKUP($C$19,REGLAS!$A$1:$S$1901,6,FALSE), " ") ->  | D8: Miles | E8: Ingreso Corriente Total - ICT | F8: =IFERROR( VLOOKUP($C$19,REGLAS!$A$1:$S$1901,16,FALSE), " " ) ->  | G8: Miles
B9: Prom. ICT | C9: =IFERROR( VLOOKUP($C$19,REGLAS!$A$1:$S$1901,8,FALSE), " ") ->  | D9: Miles | E9: Gasto Corriente Total - GCT | F9: =IFERROR( VLOOKUP($C$19,REGLAS!$A$1:$S$1901,17,FALSE), " " ) ->  | G9: Miles
B10: Límite Ley N° 29230 2/ | C10: =IFERROR( VLOOKUP($C$19,REGLAS!$A$1:$S$1901,9,FALSE), " ") ->  | D10: Miles | E10: Ahorro en Cuenta Corriente - ACC | F10: =IFERROR( VLOOKUP($C$19,REGLAS!$A$1:$S$1901,18,FALSE), " ") ->  | G10: Miles
B11: Espacio Total | C11: =IFERROR( VLOOKUP($C$19,REGLAS!$A$1:$S$1901,10,FALSE), " ") ->  | D11: Miles
B12: SDT/Prom. ICT | C12: =IFERROR( VLOOKUP($C$19,REGLAS!$A$1:$S$1901,12,FALSE), " ") ->  | D12: Porcentaje
B13: }
L20: Zona de riesgo
L21: limite1 | M21: limite2 | N21: valor | P21: ICT | Q21: =IFERROR( VLOOKUP($C$19,REGLAS!$A$1:$S$1901,15,FALSE), " " ) -> 
L22: 0.8 | M22: 0.8 | N22: 0.8 | P22: GCT | Q22: =IFERROR( VLOOKUP($C$19,REGLAS!$A$1:$S$1901,16,FALSE), " " ) -> 
L23: 1 | M23: 1 | N23: 1 | P23: ACC | Q23: =IFERROR( VLOOKUP($C$19,REGLAS!$A$1:$S$1901,17,FALSE), " ") -> 
M24: =C12/100 -> 
P25: ICT | Q25: GCT | R25: ACC
P26: 0 | Q26: 0 | R26: 0 | S26: 0
P27: 0 | Q27: 0 | R27: 0
P28: =IFERROR( VLOOKUP($C$19,REGLAS!$A$1:$S$1901,16,FALSE), " " ) ->  | Q28: =IFERROR( VLOOKUP($C$19,REGLAS!$A$1:$S$1901,17,FALSE), " " ) ->  | R28: =IFERROR( VLOOKUP($C$19,REGLAS!$A$1:$S$1901,18,FALSE), " ") -> 
B30: 1/ El Decreto Legislativo 1275, que aprueba el Marco de la Responsabilidad y Transparencia Fiscal de los Gobiernos Regionales y Gobiernos Locales, deroga la Ley N° 30099, dejando sin efecto las reglas fiscales establecidas en el literal a) y b) del artículo 7°, así como las medidas correctivas establecidas en el numeral 8.4 del artículo 8° de la LFRTF y las metas de convergencia en adelante se aplicará lo establecido en el artículo 6° de dicho Decreto Legislativo.
B31: 2/ Corresponde a la suma de los flujos transferidos por concepto de Recursos Determinados provenientes de Canon, Sobrecanon, Regalías, Renta de Aduanas y Participaciones de los años 2015 y 2016, informados por la DGETP mediante el Memorando N° 149-2017-EF/52.06, más el tope presupuestal por el mismo concepto incluido en el Presupuesto Institucional de Apertura 2017, aprobado mediante Ley N° 30518 – Ley de Presupuesto del Sector Público para el año fiscal 2017, (que considera los montos publicados mediante R.D. N° 015-2016-EF/50.01).
B32: 3/ En cumplimiento de la Primera Disposición Complementaria Final de la Ley Nº 30637, que dispone la aplicación de la cláusula de excepción a las Reglas Macrofiscales del Sector Público No Financiero, que establece que para la evaluación de las reglas fiscales del año fiscal 2017 de los GSN de las zonas declaradas en emergencia por los desastres naturales a consecuencia de intensas lluvias, solo se considerará la regla fiscal del saldo de la deuda total vigente durante el año fiscal 2017. Por tanto, quedan EXONERADOS del cumplimiento de la Regla Fiscal de Ahorro en Cuenta Corriente.
B33: Nota: En el caso de saldo de pasivos la información disponible es al 2017, deuda exigible a diciembre 2017 y deuda real a enero 2018.
B34: Fuente: DGCP-MEF, SIAF-MEF, SUNAT, SBS y AFP.

Sheet REGLAS (hidden)
A1: BUSQUEDA | B1: NRO | C1: Ubigeo | D1: Departamento | E1: Entidad | F1: SDT | G1: B01 | H1: PROM_ICT | I1: LIMITE_LEY | J1: Espacio Total | K1: B02 | L1: STD_PROM_ICT | M1: B03 | N1: Cumple_R1 | O1: B04 | P1: ICT | Q1: GCT | R1: ACC | S1: Cumple_R2
A2: 010000 : GOBIERNO REGIONAL DE AMAZONAS | B2: 1 | C2: 010000 | D2: AMAZONAS | E2: GOBIERNO REGIONAL AMAZONAS | F2: =+VLOOKUP(C2,'Anexo_GR '!$C$9:$N$34,3,0) -> 482829.3316 | H2: =+VLOOKUP(C2,'Anexo_GR '!$C$9:$N$34,4,0) -> 485514.3145 | I2: =+VLOOKUP(C2,'Anexo_GR '!$C$9:$N$34,5,0) -> 4.58218 | J2: =+VLOOKUP(C2,'Anexo_GR '!$C$9:$N$34,6,0) -> 2684.98293 | L2: =+VLOOKUP(C2,'Anexo_GR '!$C$9:$N$34,7,0) -> 99.44698172 | N2: =+VLOOKUP(C2,'Anexo_GR '!$C$9:$N$34,8,0) -> Cumple | P2: =+VLOOKUP(C2,'Anexo_GR '!$C$9:$N$34,10,0) -> 591260.2598 | Q2: =+VLOOKUP(C2,'Anexo_GR '!$C$9:$N$34,11,0) -> 585659.1562 | R2: =+VLOOKUP(C2,'Anexo_GR '!$C$9:$N$34,12,0) -> 5601.10362 | S2: =+VLOOKUP(C2,'Anexo_GR '!$C$9:$O$34,13,0) -> Cumple
A3: 020000 : GOBIERNO REGIONAL DE ANCASH | B3: 2 | C3: 020000 | D3: ÁNCASH | E3: GOBIERNO REGIONAL ANCASH | F3: =+VLOOKUP(C3,'Anexo_GR '!$C$9:$N$34,3,0) -> 406053.4992 | H3: =+VLOOKUP(C3,'Anexo_GR '!$C$9:$N$34,4,0) -> 1206924.008 | I3: =+VLOOKUP(C3,'Anexo_GR '!$C$9:$N$34,5,0) -> 248175.0317 | J3: =+VLOOKUP(C3,'Anexo_GR '!$C$9:$N$34,6,0) -> 800870.5083 | L3: =+VLOOKUP(C3,'Anexo_GR '!$C$9:$N$34,7,0) -> 33.64366743 | N3: =+VLOOKUP(C3,'Anexo_GR '!$C$9:$N$34,8,0) -> Cumple | P3: =+VLOOKUP(C3,'Anexo_GR '!$C$9:$N$34,10,0) -> 1428137.102 | Q3: =+VLOOKUP(C3,'Anexo_GR '!$C$9:$N$34,11,0) -> 1264581.907 | R3: =+VLOOKUP(C3,'Anexo_GR '!$C$9:$N$34,12,0) -> 163555.1954 | S3: =+VLOOKUP(C3,'Anexo_GR '!$C$9:$O$34,13,0) -> Cumple
A4: 030000 : GOBIERNO REGIONAL DE APURIMAC | B4: 3 | C4: 030000 | D4: APURÍMAC | E4: GOBIERNO REGIONAL APURIMAC | F4: =+VLOOKUP(C4,'Anexo_GR '!$C$9:$N$34,3,0) -> 579167.9013 | H4: =+VLOOKUP(C4,'Anexo_GR '!$C$9:$N$34,4,0) -> 625787.7305 | I4: =+VLOOKUP(C4,'Anexo_GR '!$C$9:$N$34,5,0) -> 17533.37207 | J4: =+VLOOKUP(C4,'Anexo_GR '!$C$9:$N$34,6,0) -> 46619.82923 | L4: =+VLOOKUP(C4,'Anexo_GR '!$C$9:$N$34,7,0) -> 92.5502168 | N4: =+VLOOKUP(C4,'Anexo_GR '!$C$9:$N$34,8,0) -> Cumple | P4: =+VLOOKUP(C4,'Anexo_GR '!$C$9:$N$34,10,0) -> 763519.2789 | Q4: =+VLOOKUP(C4,'Anexo_GR '!$C$9:$N$34,11,0) -> 712087.6416 | R4: =+VLOOKUP(C4,'Anexo_GR '!$C$9:$N$34,12,0) -> 51431.63732 | S4: =+VLOOKUP(C4,'Anexo_GR '!$C$9:$O$34,13,0) -> Cumple
A5: 040000 : GOBIERNO REGIONAL DE AREQUIPA | B5: 4 | C5: 040000 | D5: AREQUIPA | E5: GOBIERNO REGIONAL AREQUIPA | F5: =+VLOOKUP(C5,'Anexo_GR '!$C$9:$N$34,3,0) -> 1320783.763 | H5: =+VLOOKUP(C5,'Anexo_GR '!$C$9:$N$34,4,0) -> 1134266.201 | I5: =+VLOOKUP(C5,'Anexo_GR '!$C$9:$N$34,5,0) -> 228223.0279 | J5: =+VLOOKUP(C5,'Anexo_GR '!$C$9:$N$34,6,0) -> 0 | L5: =+VLOOKUP(C5,'Anexo_GR '!$C$9:$N$34,7,0) -> 116.4438967 | N5: =+VLOOKUP(C5,'Anexo_GR '!$C$9:$N$34,8,0) -> No Cumple | P5: =+VLOOKUP(C5,'Anexo_GR '!$C$9:$N$34,10,0) -> 1299780.736 | Q5: =+VLOOKUP(C5,'Anexo_GR '!$C$9:$N$34,11,0) -> 1203343.497 | R5: =+VLOOKUP(C5,'Anexo_GR '!$C$9:$N$34,12,0) -> 96437.23956 | S5: =+VLOOKUP(C5,'Anexo_GR '!$C$9:$O$34,13,0) -> Cumple
A6: 050000 : GOBIERNO REGIONAL DE AYACUCHO | B6: 5 | C6: 050000 | D6: AYACUCHO | E6: GOBIERNO REGIONAL AYACUCHO | F6: =+VLOOKUP(C6,'Anexo_GR '!$C$9:$N$34,3,0) -> 561871.5293 | H6: =+VLOOKUP(C6,'Anexo_GR '!$C$9:$N$34,4,0) -> 890499.8473 | I6: =+VLOOKUP(C6,'Anexo_GR '!$C$9:$N$34,5,0) -> 72423.70113 | J6: =+VLOOKUP(C6,'Anexo_GR '!$C$9:$N$34,6,0) -> 328628.318 | L6: =+VLOOKUP(C6,'Anexo_GR '!$C$9:$N$34,7,0) -> 63.09619603 | N6: =+VLOOKUP(C6,'Anexo_GR '!$C$9:$N$34,8,0) -> Cumple | P6: =+VLOOKUP(C6,'Anexo_GR '!$C$9:$N$34,10,0) -> 1040195.268 | Q6: =+VLOOKUP(C6,'Anexo_GR '!$C$9:$N$34,11,0) -> 980285.1422 | R6: =+VLOOKUP(C6,'Anexo_GR '!$C$9:$N$34,12,0) -> 59910.12589 | S6: =+VLOOKUP(C6,'Anexo_GR '!$C$9:$O$34,13,0) -> Cumple
A7: 060000 : GOBIERNO REGIONAL DE CAJAMARCA | B7: 6 | C7: 060000 | D7: CAJAMARCA | E7: GOBIERNO REGIONAL CAJAMARCA | F7: =+VLOOKUP(C7,'Anexo_GR '!$C$9:$N$34,3,0) -> 1462745.881 | H7: =+VLOOKUP(C7,'Anexo_GR '!$C$9:$N$34,4,0) -> 1414566.535 | I7: =+VLOOKUP(C7,'Anexo_GR '!$C$9:$N$34,5,0) -> 152939.9025 | J7: =+VLOOKUP(C7,'Anexo_GR '!$C$9:$N$34,6,0) -> 0 | L7: =+VLOOKUP(C7,'Anexo_GR '!$C$9:$N$34,7,0) -> 103.4059441 | N7: =+VLOOKUP(C7,'Anexo_GR '!$C$9:$N$34,8,0) -> No Cumple | P7: =+VLOOKUP(C7,'Anexo_GR '!$C$9:$N$34,10,0) -> 1669006.206 | Q7: =+VLOOKUP(C7,'Anexo_GR '!$C$9:$N$34,11,0) -> 1586182.578 | R7: =+VLOOKUP(C7,'Anexo_GR '!$C$9:$N$34,12,0) -> 82823.62781 | S7: =+VLOOKUP(C7,'Anexo_GR '!$C$9:$O$34,13,0) -> Cumple
A8: 070000 : GOBIERNO REGIONAL DEL CALLAO | B8: 7 | C8: 070000 | D8: CALLAO | E8: GOBIERNO REGIONAL CALLAO | F8: =+VLOOKUP(C8,'Anexo_GR '!$C$9:$N$34,3,0) -> 589657.7819 | H8: =+VLOOKUP(C8,'Anexo_GR '!$C$9:$N$34,4,0) -> 871366.5761 | I8: =+VLOOKUP(C8,'Anexo_GR '!$C$9:$N$34,5,0) -> 662747.8684 | J8: =+VLOOKUP(C8,'Anexo_GR '!$C$9:$N$34,6,0) -> 281708.7941 | L8: =+VLOOKUP(C8,'Anexo_GR '!$C$9:$N$34,7,0) -> 67.67046134 | N8: =+VLOOKUP(C8,'Anexo_GR '!$C$9:$N$34,8,0) -> Cumple | P8: =+VLOOKUP(C8,'Anexo_GR '!$C$9:$N$34,10,0) -> 920102.3247 | Q8: =+VLOOKUP(C8,'Anexo_GR '!$C$9:$N$34,11,0) -> 864999.5462 | R8: =+VLOOKUP(C8,'Anexo_GR '!$C$9:$N$34,12,0) -> 55102.77851 | S8: =+VLOOKUP(C8,'Anexo_GR '!$C$9:$O$34,13,0) -> Cumple
A9: 080000 : GOBIERNO REGIONAL DE CUSCO | B9: 8 | C9: 080000 | D9: CUSCO | E9: GOBIERNO REGIONAL CUSCO | F9: =+VLOOKUP(C9,'Anexo_GR '!$C$9:$N$34,3,0) -> 1097678.795 | H9: =+VLOOKUP(C9,'Anexo_GR '!$C$9:$N$34,4,0) -> 1529163.146 | I9: =+VLOOKUP(C9,'Anexo_GR '!$C$9:$N$34,5,0) -> 918644.8005 | J9: =+VLOOKUP(C9,'Anexo_GR '!$C$9:$N$34,6,0) -> 431484.3513 | L9: =+VLOOKUP(C9,'Anexo_GR '!$C$9:$N$34,7,0) -> 71.78297474 | N9: =+VLOOKUP(C9,'Anexo_GR '!$C$9:$N$34,8,0) -> Cumple | P9: =+VLOOKUP(C9,'Anexo_GR '!$C$9:$N$34,10,0) -> 1651449.289 | Q9: =+VLOOKUP(C9,'Anexo_GR '!$C$9:$N$34,11,0) -> 1318804.318 | R9: =+VLOOKUP(C9,'Anexo_GR '!$C$9:$N$34,12,0) -> 332644.9714 | S9: =+VLOOKUP(C9,'Anexo_GR '!$C$9:$O$34,13,0) -> Cumple
A10: 090000 : GOBIERNO REGIONAL DE HUANCAVELICA | B10: 9 | C10: 090000 | D10: HUANCAVELICA | E10: GOBIERNO REGIONAL HUANCAVELICA | F10: =+VLOOKUP(C10,'Anexo_GR '!$C$9:$N$34,3,0) -> 239737.2662 | H10: =+VLOOKUP(C10,'Anexo_GR '!$C$9:$N$34,4,0) -> 658576.9333 | I10: =+VLOOKUP(C10,'Anexo_GR '!$C$9:$N$34,5,0) -> 91546.91424 | J10: =+VLOOKUP(C10,'Anexo_GR '!$C$9:$N$34,6,0) -> 418839.6672 | L10: =+VLOOKUP(C10,'Anexo_GR '!$C$9:$N$34,7,0) -> 36.40231749 | N10: =+VLOOKUP(C10,'Anexo_GR '!$C$9:$N$34,8,0) -> Cumple | P10: =+VLOOKUP(C10,'Anexo_GR '!$C$9:$N$34,10,0) -> 789081.2589 | Q10: =+VLOOKUP(C10,'Anexo_GR '!$C$9:$N$34,11,0) -> 754043.5088 | R10: =+VLOOKUP(C10,'Anexo_GR '!$C$9:$N$34,12,0) -> 35037.75013 | S10: =+VLOOKUP(C10,'Anexo_GR '!$C$9:$O$34,13,0) -> Cumple
A11: 100000 : GOBIERNO REGIONAL DE HUANUCO | B11: 10 | C11: 100000 | D11: HUÁNUCO | E11: GOBIERNO REGIONAL HUANUCO | F11: =+VLOOKUP(C11,'Anexo_GR '!$C$9:$N$34,3,0) -> 223285.1615 | H11: =+VLOOKUP(C11,'Anexo_GR '!$C$9:$N$34,4,0) -> 725858.3996 | I11: =+VLOOKUP(C11,'Anexo_GR '!$C$9:$N$34,5,0) -> 1109.5929 | J11: =+VLOOKUP(C11,'Anexo_GR '!$C$9:$N$34,6,0) -> 502573.2381 | L11: =+VLOOKUP(C11,'Anexo_GR '!$C$9:$N$34,7,0) -> 30.76153168 | N11: =+VLOOKUP(C11,'Anexo_GR '!$C$9:$N$34,8,0) -> Cumple | P11: =+VLOOKUP(C11,'Anexo_GR '!$C$9:$N$34,10,0) -> 872701.5572 | Q11: =+VLOOKUP(C11,'Anexo_GR '!$C$9:$N$34,11,0) -> 854086.258 | R11: =+VLOOKUP(C11,'Anexo_GR '!$C$9:$N$34,12,0) -> 18615.29919 | S11: =+VLOOKUP(C11,'Anexo_GR '!$C$9:$O$34,13,0) -> Cumple
A12: 110000 : GOBIERNO REGIONAL DE ICA | B12: 11 | C12: 110000 | D12: ICA | E12: GOBIERNO REGIONAL ICA | F12: =+VLOOKUP(C12,'Anexo_GR '!$C$9:$N$34,3,0) -> 257162.2798 | H12: =+VLOOKUP(C12,'Anexo_GR '!$C$9:$N$34,4,0) -> 770932.1252 | I12: =+VLOOKUP(C12,'Anexo_GR '!$C$9:$N$34,5,0) -> 103228.3578 | J12: =+VLOOKUP(C12,'Anexo_GR '!$C$9:$N$34,6,0) -> 513769.8454 | L12: =+VLOOKUP(C12,'Anexo_GR '!$C$9:$N$34,7,0) -> 33.3573179 | N12: =+VLOOKUP(C12,'Anexo_GR '!$C$9:$N$34,8,0) -> Cumple | P12: =+VLOOKUP(C12,'Anexo_GR '!$C$9:$N$34,10,0) -> 870748.4322 | Q12: =+VLOOKUP(C12,'Anexo_GR '!$C$9:$N$34,11,0) -> 823038.7486 | R12: =+VLOOKUP(C12,'Anexo_GR '!$C$9:$N$34,12,0) -> 47709.68365 | S12: =+VLOOKUP(C12,'Anexo_GR '!$C$9:$O$34,13,0) -> Cumple
A13: 120000 : GOBIERNO REGIONAL DE JUNIN | B13: 12 | C13: 120000 | D13: JUNÍN | E13: GOBIERNO REGIONAL JUNIN | F13: =+VLOOKUP(C13,'Anexo_GR '!$C$9:$N$34,3,0) -> 669109.3454 | H13: =+VLOOKUP(C13,'Anexo_GR '!$C$9:$N$34,4,0) -> 1131332.075 | I13: =+VLOOKUP(C13,'Anexo_GR '!$C$9:$N$34,5,0) -> 37006.03448 | J13: =+VLOOKUP(C13,'Anexo_GR '!$C$9:$N$34,6,0) -> 462222.7295 | L13: =+VLOOKUP(C13,'Anexo_GR '!$C$9:$N$34,7,0) -> 59.14349644 | N13: =+VLOOKUP(C13,'Anexo_GR '!$C$9:$N$34,8,0) -> Cumple | P13: =+VLOOKUP(C13,'Anexo_GR '!$C$9:$N$34,10,0) -> 1338298.736 | Q13: =+VLOOKUP(C13,'Anexo_GR '!$C$9:$N$34,11,0) -> 1301118.79 | R13: =+VLOOKUP(C13,'Anexo_GR '!$C$9:$N$34,12,0) -> 37179.94568 | S13: =+VLOOKUP(C13,'Anexo_GR '!$C$9:$O$34,13,0) -> Cumple
A14: 130000 : GOBIERNO REGIONAL DE LA LIBERTAD | B14: 13 | C14: 130000 | D14: LA LIBERTAD | E14: GOBIERNO REGIONAL LA LIBERTAD | F14: =+VLOOKUP(C14,'Anexo_GR '!$C$9:$N$34,3,0) -> 1422405.447 | H14: =+VLOOKUP(C14,'Anexo_GR '!$C$9:$N$34,4,0) -> 1407672.558 | I14: =+VLOOKUP(C14,'Anexo_GR '!$C$9:$N$34,5,0) -> 175261.7726 | J14: =+VLOOKUP(C14,'Anexo_GR '!$C$9:$N$34,6,0) -> 0 | L14: =+VLOOKUP(C14,'Anexo_GR '!$C$9:$N$34,7,0) -> 101.0466134 | N14: =+VLOOKUP(C14,'Anexo_GR '!$C$9:$N$34,8,0) -> No Cumple | P14: =+VLOOKUP(C14,'Anexo_GR '!$C$9:$N$34,10,0) -> 1609307.716 | Q14: =+VLOOKUP(C14,'Anexo_GR '!$C$9:$N$34,11,0) -> 1519975.575 | R14: =+VLOOKUP(C14,'Anexo_GR '!$C$9:$N$34,12,0) -> 89332.14115 | S14: =+VLOOKUP(C14,'Anexo_GR '!$C$9:$O$34,13,0) -> Cumple
A15: 140000 : GOBIERNO REGIONAL DE LAMBAYEQUE | B15: 14 | C15: 140000 | D15: LAMBAYEQUE | E15: GOBIERNO REGIONAL LAMBAYEQUE | F15: =+VLOOKUP(C15,'Anexo_GR '!$C$9:$N$34,3,0) -> 410044.0222 | H15: =+VLOOKUP(C15,'Anexo_GR '!$C$9:$N$34,4,0) -> 844438.636 | I15: =+VLOOKUP(C15,'Anexo_GR '!$C$9:$N$34,5,0) -> 6.72283 | J15: =+VLOOKUP(C15,'Anexo_GR '!$C$9:$N$34,6,0) -> 434394.6137 | L15: =+VLOOKUP(C15,'Anexo_GR '!$C$9:$N$34,7,0) -> 48.55817875 | N15: =+VLOOKUP(C15,'Anexo_GR '!$C$9:$N$34,8,0) -> Cumple | P15: =+VLOOKUP(C15,'Anexo_GR '!$C$9:$N$34,10,0) -> 990250.5492 | Q15: =+VLOOKUP(C15,'Anexo_GR '!$C$9:$N$34,11,0) -> 947419.6993 | R15: =+VLOOKUP(C15,'Anexo_GR '!$C$9:$N$34,12,0) -> 42830.84988 | S15: =+VLOOKUP(C15,'Anexo_GR '!$C$9:$O$34,13,0) -> Cumple
A16: 150000 : GOBIERNO REGIONAL DE LIMA | B16: 15 | C16: 150000 | D16: LIMA | E16: GOBIERNO REGIONAL LIMA | F16: =+VLOOKUP(C16,'Anexo_GR '!$C$9:$N$34,3,0) -> 290935.0128 | H16: =+VLOOKUP(C16,'Anexo_GR '!$C$9:$N$34,4,0) -> 953273.5455 | I16: =+VLOOKUP(C16,'Anexo_GR '!$C$9:$N$34,5,0) -> 114778.1122 | J16: =+VLOOKUP(C16,'Anexo_GR '!$C$9:$N$34,6,0) -> 662338.5326 | L16: =+VLOOKUP(C16,'Anexo_GR '!$C$9:$N$34,7,0) -> 30.51957271 | N16: =+VLOOKUP(C16,'Anexo_GR '!$C$9:$N$34,8,0) -> Cumple | P16: =+VLOOKUP(C16,'Anexo_GR '!$C$9:$N$34,10,0) -> 1138516.52 | Q16: =+VLOOKUP(C16,'Anexo_GR '!$C$9:$N$34,11,0) -> 1040163.791 | R16: =+VLOOKUP(C16,'Anexo_GR '!$C$9:$N$34,12,0) -> 98352.72902 | S16: =+VLOOKUP(C16,'Anexo_GR '!$C$9:$O$34,13,0) -> Cumple
A17: 160000 : GOBIERNO REGIONAL DE LORETO | B17: 16 | C17: 160000 | D17: LORETO | E17: GOBIERNO REGIONAL LORETO | F17: =+VLOOKUP(C17,'Anexo_GR '!$C$9:$N$34,3,0) -> 453293.9883 | H17: =+VLOOKUP(C17,'Anexo_GR '!$C$9:$N$34,4,0) -> 1139692.66 | I17: =+VLOOKUP(C17,'Anexo_GR '!$C$9:$N$34,5,0) -> 123907.3503 | J17: =+VLOOKUP(C17,'Anexo_GR '!$C$9:$N$34,6,0) -> 686398.6715 | L17: =+VLOOKUP(C17,'Anexo_GR '!$C$9:$N$34,7,0) -> 39.77335331 | N17: =+VLOOKUP(C17,'Anexo_GR '!$C$9:$N$34,8,0) -> Cumple | P17: =+VLOOKUP(C17,'Anexo_GR '!$C$9:$N$34,10,0) -> 1314741.736 | Q17: =+VLOOKUP(C17,'Anexo_GR '!$C$9:$N$34,11,0) -> 1284474.738 | R17: =+VLOOKUP(C17,'Anexo_GR '!$C$9:$N$34,12,0) -> 30266.9974 | S17: =+VLOOKUP(C17,'Anexo_GR '!$C$9:$O$34,13,0) -> Cumple
A18: 170000 : GOBIERNO REGIONAL DE MADRE DE DIOS | B18: 17 | C18: 170000 | D18: MADRE DE DIOS | E18: GOBIERNO REGIONAL MADRE DE DIOS | F18: =+VLOOKUP(C18,'Anexo_GR '!$C$9:$N$34,3,0) -> 140615.1293 | H18: =+VLOOKUP(C18,'Anexo_GR '!$C$9:$N$34,4,0) -> 182358.9979 | I18: =+VLOOKUP(C18,'Anexo_GR '!$C$9:$N$34,5,0) -> 304.36732 | J18: =+VLOOKUP(C18,'Anexo_GR '!$C$9:$N$34,6,0) -> 41743.86868 | L18: =+VLOOKUP(C18,'Anexo_GR '!$C$9:$N$34,7,0) -> 77.10896136 | N18: =+VLOOKUP(C18,'Anexo_GR '!$C$9:$N$34,8,0) -> Cumple | P18: =+VLOOKUP(C18,'Anexo_GR '!$C$9:$N$34,10,0) -> 215221.2254 | Q18: =+VLOOKUP(C18,'Anexo_GR '!$C$9:$N$34,11,0) -> 209879.3495 | R18: =+VLOOKUP(C18,'Anexo_GR '!$C$9:$N$34,12,0) -> 5341.87593 | S18: =+VLOOKUP(C18,'Anexo_GR '!$C$9:$O$34,13,0) -> Cumple
A19: 180000 : GOBIERNO REGIONAL DE MOQUEGUA | B19: 18 | C19: 180000 | D19: MOQUEGUA | E19: GOBIERNO REGIONAL MOQUEGUA | F19: =+VLOOKUP(C19,'Anexo_GR '!$C$9:$N$34,3,0) -> 394591.2816 | H19: =+VLOOKUP(C19,'Anexo_GR '!$C$9:$N$34,4,0) -> 292607.3873 | I19: =+VLOOKUP(C19,'Anexo_GR '!$C$9:$N$34,5,0) -> 126247.5342 | J19: =+VLOOKUP(C19,'Anexo_GR '!$C$9:$N$34,6,0) -> 0 | L19: =+VLOOKUP(C19,'Anexo_GR '!$C$9:$N$34,7,0) -> 134.8534927 | N19: =+VLOOKUP(C19,'Anexo_GR '!$C$9:$N$34,8,0) -> No Cumple | P19: =+VLOOKUP(C19,'Anexo_GR '!$C$9:$N$34,10,0) -> 305932.7109 | Q19: =+VLOOKUP(C19,'Anexo_GR '!$C$9:$N$34,11,0) -> 281223.4601 | R19: =+VLOOKUP(C19,'Anexo_GR '!$C$9:$N$34,12,0) -> 24709.25072 | S19: =+VLOOKUP(C19,'Anexo_GR '!$C$9:$O$34,13,0) -> Cumple
A20: 190000 : GOBIERNO REGIONAL DE PASCO | B20: 19 | C20: 190000 | D20: PASCO | E20: GOBIERNO REGIONAL PASCO | F20: =+VLOOKUP(C20,'Anexo_GR '!$C$9:$N$34,3,0) -> 283578.3369 | H20: =+VLOOKUP(C20,'Anexo_GR '!$C$9:$N$34,4,0) -> 328434.8441 | I20: =+VLOOKUP(C20,'Anexo_GR '!$C$9:$N$34,5,0) -> 36482.24869 | J20: =+VLOOKUP(C20,'Anexo_GR '!$C$9:$N$34,6,0) -> 44856.50723 | L20: =+VLOOKUP(C20,'Anexo_GR '!$C$9:$N$34,7,0) -> 86.34234216 | N20: =+VLOOKUP(C20,'Anexo_GR '!$C$9:$N$34,8,0) -> Cumple | P20: =+VLOOKUP(C20,'Anexo_GR '!$C$9:$N$34,10,0) -> 374566.851 | Q20: =+VLOOKUP(C20,'Anexo_GR '!$C$9:$N$34,11,0) -> 351879.072 | R20: =+VLOOKUP(C20,'Anexo_GR '!$C$9:$N$34,12,0) -> 22687.77896 | S20: =+VLOOKUP(C20,'Anexo_GR '!$C$9:$O$34,13,0) -> Cumple
A21: 200000 : GOBIERNO REGIONAL DE PIURA | B21: 20 | C21: 200000 | D21: PIURA | E21: GOBIERNO REGIONAL PIURA | F21: =+VLOOKUP(C21,'Anexo_GR '!$C$9:$N$34,3,0) -> 1449528.074 | H21: =+VLOOKUP(C21,'Anexo_GR '!$C$9:$N$34,4,0) -> 1384760.818 | I21: =+VLOOKUP(C21,'Anexo_GR '!$C$9:$N$34,5,0) -> 207786.4344 | J21: =+VLOOKUP(C21,'Anexo_GR '!$C$9:$N$34,6,0) -> 0 | L21: =+VLOOKUP(C21,'Anexo_GR '!$C$9:$N$34,7,0) -> 104.6771439 | N21: =+VLOOKUP(C21,'Anexo_GR '!$C$9:$N$34,8,0) -> No Cumple | P21: =+VLOOKUP(C21,'Anexo_GR '!$C$9:$N$34,10,0) -> 1606924.05 | Q21: =+VLOOKUP(C21,'Anexo_GR '!$C$9:$N$34,11,0) -> 1493620.274 | R21: =+VLOOKUP(C21,'Anexo_GR '!$C$9:$N$34,12,0) -> 113303.7766 | S21: =+VLOOKUP(C21,'Anexo_GR '!$C$9:$O$34,13,0) -> Cumple
A22: 210000 : GOBIERNO REGIONAL DE PUNO | B22: 21 | C22: 210000 | D22: PUNO | E22: GOBIERNO REGIONAL PUNO | F22: =+VLOOKUP(C22,'Anexo_GR '!$C$9:$N$34,3,0) -> 1170128.759 | H22: =+VLOOKUP(C22,'Anexo_GR '!$C$9:$N$34,4,0) -> 1217861.144 | I22: =+VLOOKUP(C22,'Anexo_GR '!$C$9:$N$34,5,0) -> 74740.7535 | J22: =+VLOOKUP(C22,'Anexo_GR '!$C$9:$N$34,6,0) -> 47732.38496 | L22: =+VLOOKUP(C22,'Anexo_GR '!$C$9:$N$34,7,0) -> 96.08063816 | N22: =+VLOOKUP(C22,'Anexo_GR '!$C$9:$N$34,8,0) -> Cumple | P22: =+VLOOKUP(C22,'Anexo_GR '!$C$9:$N$34,10,0) -> 1414055.281 | Q22: =+VLOOKUP(C22,'Anexo_GR '!$C$9:$N$34,11,0) -> 1373561.385 | R22: =+VLOOKUP(C22,'Anexo_GR '!$C$9:$N$34,12,0) -> 40493.89548 | S22: =+VLOOKUP(C22,'Anexo_GR '!$C$9:$O$34,13,0) -> Cumple
A23: 220000 : GOBIERNO REGIONAL DE SAN MARTIN | B23: 22 | C23: 220000 | D23: SAN MARTÍN | E23: GOBIERNO REGIONAL SAN MARTIN | F23: =+VLOOKUP(C23,'Anexo_GR '!$C$9:$N$34,3,0) -> 565820.3791 | H23: =+VLOOKUP(C23,'Anexo_GR '!$C$9:$N$34,4,0) -> 838736.2508 | I23: =+VLOOKUP(C23,'Anexo_GR '!$C$9:$N$34,5,0) -> 1019.87926 | J23: =+VLOOKUP(C23,'Anexo_GR '!$C$9:$N$34,6,0) -> 272915.8717 | L23: =+VLOOKUP(C23,'Anexo_GR '!$C$9:$N$34,7,0) -> 67.46106163 | N23: =+VLOOKUP(C23,'Anexo_GR '!$C$9:$N$34,8,0) -> Cumple | P23: =+VLOOKUP(C23,'Anexo_GR '!$C$9:$N$34,10,0) -> 942561.3155 | Q23: =+VLOOKUP(C23,'Anexo_GR '!$C$9:$N$34,11,0) -> 861465.5574 | R23: =+VLOOKUP(C23,'Anexo_GR '!$C$9:$N$34,12,0) -> 81095.75814 | S23: =+VLOOKUP(C23,'Anexo_GR '!$C$9:$O$34,13,0) -> Cumple
A24: 230000 : GOBIERNO REGIONAL DE TACNA | B24: 23 | C24: 230000 | D24: TACNA | E24: GOBIERNO REGIONAL TACNA | F24: =+VLOOKUP(C24,'Anexo_GR '!$C$9:$N$34,3,0) -> 343385.1917 | H24: =+VLOOKUP(C24,'Anexo_GR '!$C$9:$N$34,4,0) -> 400826.1692 | I24: =+VLOOKUP(C24,'Anexo_GR '!$C$9:$N$34,5,0) -> 117163.72 | J24: =+VLOOKUP(C24,'Anexo_GR '!$C$9:$N$34,6,0) -> 57440.97744 | L24: =+VLOOKUP(C24,'Anexo_GR '!$C$9:$N$34,7,0) -> 85.66935448 | N24: =+VLOOKUP(C24,'Anexo_GR '!$C$9:$N$34,8,0) -> Cumple | P24: =+VLOOKUP(C24,'Anexo_GR '!$C$9:$N$34,10,0) -> 435336.4546 | Q24: =+VLOOKUP(C24,'Anexo_GR '!$C$9:$N$34,11,0) -> 405042.411 | R24: =+VLOOKUP(C24,'Anexo_GR '!$C$9:$N$34,12,0) -> 30294.04364 | S24: =+VLOOKUP(C24,'Anexo_GR '!$C$9:$O$34,13,0) -> Cumple
A25: 240000 : GOBIERNO REGIONAL DE TUMBES | B25: 24 | C25: 240000 | D25: TUMBES | E25: GOBIERNO REGIONAL TUMBES | F25: =+VLOOKUP(C25,'Anexo_GR '!$C$9:$N$34,3,0) -> 183571.9888 | H25: =+VLOOKUP(C25,'Anexo_GR '!$C$9:$N$34,4,0) -> 359622.1623 | I25: =+VLOOKUP(C25,'Anexo_GR '!$C$9:$N$34,5,0) -> 86440.89998 | J25: =+VLOOKUP(C25,'Anexo_GR '!$C$9:$N$34,6,0) -> 176050.1735 | L25: =+VLOOKUP(C25,'Anexo_GR '!$C$9:$N$34,7,0) -> 51.04579419 | N25: =+VLOOKUP(C25,'Anexo_GR '!$C$9:$N$34,8,0) -> Cumple | P25: =+VLOOKUP(C25,'Anexo_GR '!$C$9:$N$34,10,0) -> 393766.4728 | Q25: =+VLOOKUP(C25,'Anexo_GR '!$C$9:$N$34,11,0) -> 378142.9892 | R25: =+VLOOKUP(C25,'Anexo_GR '!$C$9:$N$34,12,0) -> 15623.48359 | S25: =+VLOOKUP(C25,'Anexo_GR '!$C$9:$O$34,13,0) -> Cumple
A26: 250000 : GOBIERNO REGIONAL DE UCAYALI | B26: 25 | C26: 250000 | D26: UCAYALI | E26: GOBIERNO REGIONAL UCAYALI | F26: =+VLOOKUP(C26,'Anexo_GR '!$C$9:$N$34,3,0) -> 358699.9046 | H26: =+VLOOKUP(C26,'Anexo_GR '!$C$9:$N$34,4,0) -> 515210.3114 | I26: =+VLOOKUP(C26,'Anexo_GR '!$C$9:$N$34,5,0) -> 73337.20062 | J26: =+VLOOKUP(C26,'Anexo_GR '!$C$9:$N$34,6,0) -> 156510.4069 | L26: =+VLOOKUP(C26,'Anexo_GR '!$C$9:$N$34,7,0) -> 69.62203523 | N26: =+VLOOKUP(C26,'Anexo_GR '!$C$9:$N$34,8,0) -> Cumple | P26: =+VLOOKUP(C26,'Anexo_GR '!$C$9:$N$34,10,0) -> 581207.5492 | Q26: =+VLOOKUP(C26,'Anexo_GR '!$C$9:$N$34,11,0) -> 563029.3915 | R26: =+VLOOKUP(C26,'Anexo_GR '!$C$9:$N$34,12,0) -> 18178.15767 | S26: =+VLOOKUP(C26,'Anexo_GR '!$C$9:$O$34,13,0) -> Cumple
A27: 260000 : REGION LIMA METROPOLITANA | B27: 26 | C27: 260000 | D27: MM LIMA | E27: REGION LIMA METROPOLITANA | F27: =+VLOOKUP(C27,'Anexo_GR '!$C$9:$N$34,3,0) -> 5195.06745 | H27: =+VLOOKUP(C27,'Anexo_GR '!$C$9:$N$34,4,0) -> 21635.93317 | I27: =+VLOOKUP(C27,'Anexo_GR '!$C$9:$N$34,5,0) -> 9191.84998 | J27: =+VLOOKUP(C27,'Anexo_GR '!$C$9:$N$34,6,0) -> 16440.86572 | L27: =+VLOOKUP(C27,'Anexo_GR '!$C$9:$N$34,7,0) -> 24.01129366 | N27: =+VLOOKUP(C27,'Anexo_GR '!$C$9:$N$34,8,0) -> Cumple | P27: =+VLOOKUP(C27,'Anexo_GR '!$C$9:$N$34,10,0) -> 34533.80553 | Q27: =+VLOOKUP(C27,'Anexo_GR '!$C$9:$N$34,11,0) -> 16060.52531 | R27: =+VLOOKUP(C27,'Anexo_GR '!$C$9:$N$34,12,0) -> 18473.28022 | S27: =+VLOOKUP(C27,'Anexo_GR '!$C$9:$O$34,13,0) -> Cumple
A28: 010101 : MP DE CHACHAPOYAS | B28: 1 | C28: 010101 | D28: AMAZONAS | E28: MP DE CHACHAPOYAS | F28: =+VLOOKUP(C28,'Anexo_GL '!$B$9:$O$1882,4,0) -> 4451.114048 | H28: =+VLOOKUP(C28,'Anexo_GL '!$B$9:$O$1882,5,0) -> 13782.02555 | I28: =+VLOOKUP(C28,'Anexo_GL '!$B$9:$O$1882,6,0) -> 0.93996 | J28: =+VLOOKUP(C28,'Anexo_GL '!$B$9:$O$1882,7,0) -> 9330.911505 | L28: =+VLOOKUP(C28,'Anexo_GL '!$B$9:$O$1882,8,0) -> 32.29651571 | N28: =+VLOOKUP(C28,'Anexo_GL '!$B$9:$O$1882,9,0) -> Cumple | P28: =+VLOOKUP(C28,'Anexo_GL '!$B$9:$O$1882,11,0) -> 16069.10944 | Q28: =+VLOOKUP(C28,'Anexo_GL '!$B$9:$O$1882,12,0) -> 14123.97273 | R28: =+VLOOKUP(C28,'Anexo_GL '!$B$9:$O$1882,13,0) -> 1945.13671 | S28: =+VLOOKUP(C28,'Anexo_GL '!$B$9:$O$1882,14,0) -> Cumple
A29: 010102 : MD DE ASUNCION | B29: 2 | C29: 010102 | D29: AMAZONAS | E29: MD DE ASUNCION | F29: =+VLOOKUP(C29,'Anexo_GL '!$B$9:$O$1882,4,0) -> 718.0378 | H29: =+VLOOKUP(C29,'Anexo_GL '!$B$9:$O$1882,5,0) -> 695.5574075 | I29: =+VLOOKUP(C29,'Anexo_GL '!$B$9:$O$1882,6,0) -> 0.00055 | J29: =+VLOOKUP(C29,'Anexo_GL '!$B$9:$O$1882,7,0) -> 0 | L29: =+VLOOKUP(C29,'Anexo_GL '!$B$9:$O$1882,8,0) -> 103.2319967 | N29: =+VLOOKUP(C29,'Anexo_GL '!$B$9:$O$1882,9,0) -> No Cumple | P29: =+VLOOKUP(C29,'Anexo_GL '!$B$9:$O$1882,11,0) -> 468.60707 | Q29: =+VLOOKUP(C29,'Anexo_GL '!$B$9:$O$1882,12,0) -> 312.44876 | R29: =+VLOOKUP(C29,'Anexo_GL '!$B$9:$O$1882,13,0) -> 156.15831 | S29: =+VLOOKUP(C29,'Anexo_GL '!$B$9:$O$1882,14,0) -> Cumple
A30: 010103 : MD DE BALSAS | B30: 3 | C30: 010103 | D30: AMAZONAS | E30: MD DE BALSAS | F30: =+VLOOKUP(C30,'Anexo_GL '!$B$9:$O$1882,4,0) -> 43.72784 | H30: =+VLOOKUP(C30,'Anexo_GL '!$B$9:$O$1882,5,0) -> 629.626535 | I30: =+VLOOKUP(C30,'Anexo_GL '!$B$9:$O$1882,6,0) -> 0.04301 | J30: =+VLOOKUP(C30,'Anexo_GL '!$B$9:$O$1882,7,0) -> 585.898695 | L30: =+VLOOKUP(C30,'Anexo_GL '!$B$9:$O$1882,8,0) -> 6.945044017 | N30: =+VLOOKUP(C30,'Anexo_GL '!$B$9:$O$1882,9,0) -> Cumple | P30: =+VLOOKUP(C30,'Anexo_GL '!$B$9:$O$1882,11,0) -> 783.15044 | Q30: =+VLOOKUP(C30,'Anexo_GL '!$B$9:$O$1882,12,0) -> 391.96803 | R30: =+VLOOKUP(C30,'Anexo_GL '!$B$9:$O$1882,13,0) -> 391.18241 | S30: =+VLOOKUP(C30,'Anexo_GL '!$B$9:$O$1882,14,0) -> Cumple
A31: 010104 : MD DE CHETO | B31: 4 | C31: 010104 | D31: AMAZONAS | E31: MD DE CHETO | F31: =+VLOOKUP(C31,'Anexo_GL '!$B$9:$O$1882,4,0) -> 208.33745 | H31: =+VLOOKUP(C31,'Anexo_GL '!$B$9:$O$1882,5,0) -> 491.5443625 | I31: =+VLOOKUP(C31,'Anexo_GL '!$B$9:$O$1882,6,0) -> 0.00124 | J31: =+VLOOKUP(C31,'Anexo_GL '!$B$9:$O$1882,7,0) -> 283.2069125 | L31: =+VLOOKUP(C31,'Anexo_GL '!$B$9:$O$1882,8,0) -> 42.38426191 | N31: =+VLOOKUP(C31,'Anexo_GL '!$B$9:$O$1882,9,0) -> Cumple | P31: =+VLOOKUP(C31,'Anexo_GL '!$B$9:$O$1882,11,0) -> 466.77284 | Q31: =+VLOOKUP(C31,'Anexo_GL '!$B$9:$O$1882,12,0) -> 237.65247 | R31: =+VLOOKUP(C31,'Anexo_GL '!$B$9:$O$1882,13,0) -> 229.12037 | S31: =+VLOOKUP(C31,'Anexo_GL '!$B$9:$O$1882,14,0) -> Cumple
A32: 010105 : MD DE CHILIQUIN | B32: 5 | C32: 010105 | D32: AMAZONAS | E32: MD DE CHILIQUIN | F32: =+VLOOKUP(C32,'Anexo_GL '!$B$9:$O$1882,4,0) -> 3.76024 | H32: =+VLOOKUP(C32,'Anexo_GL '!$B$9:$O$1882,5,0) -> 832.4214725 | I32: =+VLOOKUP(C32,'Anexo_GL '!$B$9:$O$1882,6,0) -> 0.00133 | J32: =+VLOOKUP(C32,'Anexo_GL '!$B$9:$O$1882,7,0) -> 828.6612325 | L32: =+VLOOKUP(C32,'Anexo_GL '!$B$9:$O$1882,8,0) -> 0.4517230903 | N32: =+VLOOKUP(C32,'Anexo_GL '!$B$9:$O$1882,9,0) -> Cumple | P32: =+VLOOKUP(C32,'Anexo_GL '!$B$9:$O$1882,11,0) -> 462.59791 | Q32: =+VLOOKUP(C32,'Anexo_GL '!$B$9:$O$1882,12,0) -> 289.71258 | R32: =+VLOOKUP(C32,'Anexo_GL '!$B$9:$O$1882,13,0) -> 172.88533 | S32: =+VLOOKUP(C32,'Anexo_GL '!$B$9:$O$1882,14,0) -> Cumple
A33: 010106 : MD DE CHUQUIBAMBA | B33: 6 | C33: 010106 | D33: AMAZONAS | E33: MD DE CHUQUIBAMBA | F33: =+VLOOKUP(C33,'Anexo_GL '!$B$9:$O$1882,4,0) -> 154.69619 | H33: =+VLOOKUP(C33,'Anexo_GL '!$B$9:$O$1882,5,0) -> 586.360035 | I33: =+VLOOKUP(C33,'Anexo_GL '!$B$9:$O$1882,6,0) -> 0.00262 | J33: =+VLOOKUP(C33,'Anexo_GL '!$B$9:$O$1882,7,0) -> 431.663845 | L33: =+VLOOKUP(C33,'Anexo_GL '!$B$9:$O$1882,8,0) -> 26.38245801 | N33: =+VLOOKUP(C33,'Anexo_GL '!$B$9:$O$1882,9,0) -> Cumple | P33: =+VLOOKUP(C33,'Anexo_GL '!$B$9:$O$1882,11,0) -> 703.05655 | Q33: =+VLOOKUP(C33,'Anexo_GL '!$B$9:$O$1882,12,0) -> 419.50453 | R33: =+VLOOKUP(C33,'Anexo_GL '!$B$9:$O$1882,13,0) -> 283.55202 | S33: =+VLOOKUP(C33,'Anexo_GL '!$B$9:$O$1882,14,0) -> Cumple
A34: 010107 : MD DE GRANADA | B34: 7 | C34: 010107 | D34: AMAZONAS | E34: MD DE GRANADA | F34: =+VLOOKUP(C34,'Anexo_GL '!$B$9:$O$1882,4,0) -> 171.31427 | H34: =+VLOOKUP(C34,'Anexo_GL '!$B$9:$O$1882,5,0) -> 551.947615 | I34: =+VLOOKUP(C34,'Anexo_GL '!$B$9:$O$1882,6,0) -> 0.00067 | J34: =+VLOOKUP(C34,'Anexo_GL '!$B$9:$O$1882,7,0) -> 380.633345 | L34: =+VLOOKUP(C34,'Anexo_GL '!$B$9:$O$1882,8,0) -> 31.03813937 | N34: =+VLOOKUP(C34,'Anexo_GL '!$B$9:$O$1882,9,0) -> Cumple | P34: =+VLOOKUP(C34,'Anexo_GL '!$B$9:$O$1882,11,0) -> 579.39651 | Q34: =+VLOOKUP(C34,'Anexo_GL '!$B$9:$O$1882,12,0) -> 383.67457 | R34: =+VLOOKUP(C34,'Anexo_GL '!$B$9:$O$1882,13,0) -> 195.72194 | S34: =+VLOOKUP(C34,'Anexo_GL '!$B$9:$O$1882,14,0) -> Cumple
A35: 010108 : MD DE HUANCAS | B35: 8 | C35: 010108 | D35: AMAZONAS | E35: MD DE HUANCAS | F35: =+VLOOKUP(C35,'Anexo_GL '!$B$9:$O$1882,4,0) -> 134.28501 | H35: =+VLOOKUP(C35,'Anexo_GL '!$B$9:$O$1882,5,0) -> 718.5139425 | I35: =+VLOOKUP(C35,'Anexo_GL '!$B$9:$O$1882,6,0) -> 0.00275 | J35: =+VLOOKUP(C35,'Anexo_GL '!$B$9:$O$1882,7,0) -> 584.2289325 | L35: =+VLOOKUP(C35,'Anexo_GL '!$B$9:$O$1882,8,0) -> 18.6892699 | N35: =+VLOOKUP(C35,'Anexo_GL '!$B$9:$O$1882,9,0) -> Cumple | P35: =+VLOOKUP(C35,'Anexo_GL '!$B$9:$O$1882,11,0) -> 799.84936 | Q35: =+VLOOKUP(C35,'Anexo_GL '!$B$9:$O$1882,12,0) -> 495.0177 | R35: =+VLOOKUP(C35,'Anexo_GL '!$B$9:$O$1882,13,0) -> 304.83166 | S35: =+VLOOKUP(C35,'Anexo_GL '!$B$9:$O$1882,14,0) -> Cumple
A36: 010109 : MD DE JALCA GRANDE | B36: 9 | C36: 010109 | D36: AMAZONAS | E36: MD DE JALCA GRANDE | F36: =+VLOOKUP(C36,'Anexo_GL '!$B$9:$O$1882,4,0) -> 16.64592 | H36: =+VLOOKUP(C36,'Anexo_GL '!$B$9:$O$1882,5,0) -> 1234.754665 | I36: =+VLOOKUP(C36,'Anexo_GL '!$B$9:$O$1882,6,0) -> 0.98325 | J36: =+VLOOKUP(C36,'Anexo_GL '!$B$9:$O$1882,7,0) -> 1218.108745 | L36: =+VLOOKUP(C36,'Anexo_GL '!$B$9:$O$1882,8,0) -> 1.348115579 | N36: =+VLOOKUP(C36,'Anexo_GL '!$B$9:$O$1882,9,0) -> Cumple | P36: =+VLOOKUP(C36,'Anexo_GL '!$B$9:$O$1882,11,0) -> 1298.24108 | Q36: =+VLOOKUP(C36,'Anexo_GL '!$B$9:$O$1882,12,0) -> 687.03904 | R36: =+VLOOKUP(C36,'Anexo_GL '!$B$9:$O$1882,13,0) -> 611.20204 | S36: =+VLOOKUP(C36,'Anexo_GL '!$B$9:$O$1882,14,0) -> Cumple
A37: 010110 : MD DE LEIMEBAMBA | B37: 10 | C37: 010110 | D37: AMAZONAS | E37: MD DE LEIMEBAMBA | F37: =+VLOOKUP(C37,'Anexo_GL '!$B$9:$O$1882,4,0) -> 116.99838 | H37: =+VLOOKUP(C37,'Anexo_GL '!$B$9:$O$1882,5,0) -> 983.620295 | I37: =+VLOOKUP(C37,'Anexo_GL '!$B$9:$O$1882,6,0) -> 0.00389 | J37: =+VLOOKUP(C37,'Anexo_GL '!$B$9:$O$1882,7,0) -> 866.621915 | L37: =+VLOOKUP(C37,'Anexo_GL '!$B$9:$O$1882,8,0) -> 11.89466917 | N37: =+VLOOKUP(C37,'Anexo_GL '!$B$9:$O$1882,9,0) -> Cumple | P37: =+VLOOKUP(C37,'Anexo_GL '!$B$9:$O$1882,11,0) -> 906.55055 | Q37: =+VLOOKUP(C37,'Anexo_GL '!$B$9:$O$1882,12,0) -> 876.61345 | R37: =+VLOOKUP(C37,'Anexo_GL '!$B$9:$O$1882,13,0) -> 29.9371 | S37: =+VLOOKUP(C37,'Anexo_GL '!$B$9:$O$1882,14,0) -> Cumple
A38: 010111 : MD DE LEVANTO | B38: 11 | C38: 010111 | D38: AMAZONAS | E38: MD DE LEVANTO | F38: =+VLOOKUP(C38,'Anexo_GL '!$B$9:$O$1882,4,0) -> 26.02434 | H38: =+VLOOKUP(C38,'Anexo_GL '!$B$9:$O$1882,5,0) -> 696.0744175 | I38: =+VLOOKUP(C38,'Anexo_GL '!$B$9:$O$1882,6,0) -> 0.00182 | J38: =+VLOOKUP(C38,'Anexo_GL '!$B$9:$O$1882,7,0) -> 670.0500775 | L38: =+VLOOKUP(C38,'Anexo_GL '!$B$9:$O$1882,8,0) -> 3.738729559 | N38: =+VLOOKUP(C38,'Anexo_GL '!$B$9:$O$1882,9,0) -> Cumple | P38: =+VLOOKUP(C38,'Anexo_GL '!$B$9:$O$1882,11,0) -> 649.2069 | Q38: =+VLOOKUP(C38,'Anexo_GL '!$B$9:$O$1882,12,0) -> 423.41334 | R38: =+VLOOKUP(C38,'Anexo_GL '!$B$9:$O$1882,13,0) -> 225.79356 | S38: =+VLOOKUP(C38,'Anexo_GL '!$B$9:$O$1882,14,0) -> Cumple
A39: 010112 : MD DE MAGDALENA | B39: 12 | C39: 010112 | D39: AMAZONAS | E39: MD DE MAGDALENA | F39: =+VLOOKUP(C39,'Anexo_GL '!$B$9:$O$1882,4,0) -> 11.6592 | H39: =+VLOOKUP(C39,'Anexo_GL '!$B$9:$O$1882,5,0) -> 714.63822 | I39: =+VLOOKUP(C39,'Anexo_GL '!$B$9:$O$1882,6,0) -> 0.00175 | J39: =+VLOOKUP(C39,'Anexo_GL '!$B$9:$O$1882,7,0) -> 702.97902 | L39: =+VLOOKUP(C39,'Anexo_GL '!$B$9:$O$1882,8,0) -> 1.63148285 | N39: =+VLOOKUP(C39,'Anexo_GL '!$B$9:$O$1882,9,0) -> Cumple | P39: =+VLOOKUP(C39,'Anexo_GL '!$B$9:$O$1882,11,0) -> 422.52159 | Q39: =+VLOOKUP(C39,'Anexo_GL '!$B$9:$O$1882,12,0) -> 479.93708 | R39: =+VLOOKUP(C39,'Anexo_GL '!$B$9:$O$1882,13,0) -> -57.41549 | S39: =+VLOOKUP(C39,'Anexo_GL '!$B$9:$O$1882,14,0) -> No Cumple
A40: 010113 : MD DE MARISCAL CASTILLA | B40: 13 | C40: 010113 | D40: AMAZONAS | E40: MD DE MARISCAL CASTILLA | F40: =+VLOOKUP(C40,'Anexo_GL '!$B$9:$O$1882,4,0) -> 8.61935 | H40: =+VLOOKUP(C40,'Anexo_GL '!$B$9:$O$1882,5,0) -> 602.90069 | I40: =+VLOOKUP(C40,'Anexo_GL '!$B$9:$O$1882,6,0) -> 0.00094 | J40: =+VLOOKUP(C40,'Anexo_GL '!$B$9:$O$1882,7,0) -> 594.28134 | L40: =+VLOOKUP(C40,'Anexo_GL '!$B$9:$O$1882,8,0) -> 1.42964673 | N40: =+VLOOKUP(C40,'Anexo_GL '!$B$9:$O$1882,9,0) -> Cumple | P40: =+VLOOKUP(C40,'Anexo_GL '!$B$9:$O$1882,11,0) -> 609.1305 | Q40: =+VLOOKUP(C40,'Anexo_GL '!$B$9:$O$1882,12,0) -> 236.75417 | R40: =+VLOOKUP(C40,'Anexo_GL '!$B$9:$O$1882,13,0) -> 372.37633 | S40: =+VLOOKUP(C40,'Anexo_GL '!$B$9:$O$1882,14,0) -> Cumple
A41: 010114 : MD DE MOLINOPAMPA | B41: 14 | C41: 010114 | D41: AMAZONAS | E41: MD DE MOLINOPAMPA | F41: =+VLOOKUP(C41,'Anexo_GL '!$B$9:$O$1882,4,0) -> 1354.90473 | H41: =+VLOOKUP(C41,'Anexo_GL '!$B$9:$O$1882,5,0) -> 891.5860925 | I41: =+VLOOKUP(C41,'Anexo_GL '!$B$9:$O$1882,6,0) -> 0.00405 | J41: =+VLOOKUP(C41,'Anexo_GL '!$B$9:$O$1882,7,0) -> 0 | L41: =+VLOOKUP(C41,'Anexo_GL '!$B$9:$O$1882,8,0) -> 151.9656645 | N41: =+VLOOKUP(C41,'Anexo_GL '!$B$9:$O$1882,9,0) -> No Cumple | P41: =+VLOOKUP(C41,'Anexo_GL '!$B$9:$O$1882,11,0) -> 709.64796 | Q41: =+VLOOKUP(C41,'Anexo_GL '!$B$9:$O$1882,12,0) -> 451.66855 | R41: =+VLOOKUP(C41,'Anexo_GL '!$B$9:$O$1882,13,0) -> 257.97941 | S41: =+VLOOKUP(C41,'Anexo_GL '!$B$9:$O$1882,14,0) -> Cumple
A42: 010115 : MD DE MONTEVIDEO | B42: 15 | C42: 010115 | D42: AMAZONAS | E42: MD DE MONTEVIDEO | F42: =+VLOOKUP(C42,'Anexo_GL '!$B$9:$O$1882,4,0) -> 13.45385 | H42: =+VLOOKUP(C42,'Anexo_GL '!$B$9:$O$1882,5,0) -> 542.7416075 | I42: =+VLOOKUP(C42,'Anexo_GL '!$B$9:$O$1882,6,0) -> 0.00124 | J42: =+VLOOKUP(C42,'Anexo_GL '!$B$9:$O$1882,7,0) -> 529.2877575 | L42: =+VLOOKUP(C42,'Anexo_GL '!$B$9:$O$1882,8,0) -> 2.478868363 | N42: =+VLOOKUP(C42,'Anexo_GL '!$B$9:$O$1882,9,0) -> Cumple | P42: =+VLOOKUP(C42,'Anexo_GL '!$B$9:$O$1882,11,0) -> 590.73272 | Q42: =+VLOOKUP(C42,'Anexo_GL '!$B$9:$O$1882,12,0) -> 304.87396 | R42: =+VLOOKUP(C42,'Anexo_GL '!$B$9:$O$1882,13,0) -> 285.85876 | S42: =+VLOOKUP(C42,'Anexo_GL '!$B$9:$O$1882,14,0) -> Cumple
A43: 010116 : MD DE OLLEROS | B43: 16 | C43: 010116 | D43: AMAZONAS | E43: MD DE OLLEROS | F43: =+VLOOKUP(C43,'Anexo_GL '!$B$9:$O$1882,4,0) -> 383.38543 | H43: =+VLOOKUP(C43,'Anexo_GL '!$B$9:$O$1882,5,0) -> 520.51641 | I43: =+VLOOKUP(C43,'Anexo_GL '!$B$9:$O$1882,6,0) -> 0.0006 | J43: =+VLOOKUP(C43,'Anexo_GL '!$B$9:$O$1882,7,0) -> 137.13098 | L43: =+VLOOKUP(C43,'Anexo_GL '!$B$9:$O$1882,8,0) -> 73.65482099 | N43: =+VLOOKUP(C43,'Anexo_GL '!$B$9:$O$1882,9,0) -> Cumple | P43: =+VLOOKUP(C43,'Anexo_GL '!$B$9:$O$1882,11,0) -> 565.48465 | Q43: =+VLOOKUP(C43,'Anexo_GL '!$B$9:$O$1882,12,0) -> 414.83047 | R43: =+VLOOKUP(C43,'Anexo_GL '!$B$9:$O$1882,13,0) -> 150.65418 | S43: =+VLOOKUP(C43,'Anexo_GL '!$B$9:$O$1882,14,0) -> Cumple
A44: 010117 : MD DE QUINJALCA | B44: 17 | C44: 010117 | D44: AMAZONAS | E44: MD DE QUINJALCA | F44: =+VLOOKUP(C44,'Anexo_GL '!$B$9:$O$1882,4,0) -> 8.90213 | H44: =+VLOOKUP(C44,'Anexo_GL '!$B$9:$O$1882,5,0) -> 574.569995 | I44: =+VLOOKUP(C44,'Anexo_GL '!$B$9:$O$1882,6,0) -> 0.0017 | J44: =+VLOOKUP(C44,'Anexo_GL '!$B$9:$O$1882,7,0) -> 565.667865 | L44: =+VLOOKUP(C44,'Anexo_GL '!$B$9:$O$1882,8,0) -> 1.549355183 | N44: =+VLOOKUP(C44,'Anexo_GL '!$B$9:$O$1882,9,0) -> Cumple | P44: =+VLOOKUP(C44,'Anexo_GL '!$B$9:$O$1882,11,0) -> 599.83748 | Q44: =+VLOOKUP(C44,'Anexo_GL '!$B$9:$O$1882,12,0) -> 263.37234 | R44: =+VLOOKUP(C44,'Anexo_GL '!$B$9:$O$1882,13,0) -> 336.46514 | S44: =+VLOOKUP(C44,'Anexo_GL '!$B$9:$O$1882,14,0) -> Cumple
A45: 010118 : MD DE SAN FRANCISCO DE DAGUAS | B45: 18 | C45: 010118 | D45: AMAZONAS | E45: MD DE SAN FRANCISCO DE DAGUAS | F45: =+VLOOKUP(C45,'Anexo_GL '!$B$9:$O$1882,4,0) -> 53.2465 | H45: =+VLOOKUP(C45,'Anexo_GL '!$B$9:$O$1882,5,0) -> 546.1003 | I45: =+VLOOKUP(C45,'Anexo_GL '!$B$9:$O$1882,6,0) -> 0.00057 | J45: =+VLOOKUP(C45,'Anexo_GL '!$B$9:$O$1882,7,0) -> 492.8538 | L45: =+VLOOKUP(C45,'Anexo_GL '!$B$9:$O$1882,8,0) -> 9.750315098 | N45: =+VLOOKUP(C45,'Anexo_GL '!$B$9:$O$1882,9,0) -> Cumple | P45: =+VLOOKUP(C45,'Anexo_GL '!$B$9:$O$1882,11,0) -> 598.13157 | Q45: =+VLOOKUP(C45,'Anexo_GL '!$B$9:$O$1882,12,0) -> 275.31759 | R45: =+VLOOKUP(C45,'Anexo_GL '!$B$9:$O$1882,13,0) -> 322.81398 | S45: =+VLOOKUP(C45,'Anexo_GL '!$B$9:$O$1882,14,0) -> Cumple
A46: 010119 : MD DE SAN ISIDRO DE MAYNO | B46: 19 | C46: 010119 | D46: AMAZONAS | E46: MD DE SAN ISIDRO DE MAYNO | F46: =+VLOOKUP(C46,'Anexo_GL '!$B$9:$O$1882,4,0) -> 18.53980999 | H46: =+VLOOKUP(C46,'Anexo_GL '!$B$9:$O$1882,5,0) -> 498.01759 | I46: =+VLOOKUP(C46,'Anexo_GL '!$B$9:$O$1882,6,0) -> 0.00164 | J46: =+VLOOKUP(C46,'Anexo_GL '!$B$9:$O$1882,7,0) -> 479.47778 | L46: =+VLOOKUP(C46,'Anexo_GL '!$B$9:$O$1882,8,0) -> 3.722721921 | N46: =+VLOOKUP(C46,'Anexo_GL '!$B$9:$O$1882,9,0) -> Cumple | P46: =+VLOOKUP(C46,'Anexo_GL '!$B$9:$O$1882,11,0) -> 444.92221 | Q46: =+VLOOKUP(C46,'Anexo_GL '!$B$9:$O$1882,12,0) -> 219.45824 | R46: =+VLOOKUP(C46,'Anexo_GL '!$B$9:$O$1882,13,0) -> 225.46397 | S46: =+VLOOKUP(C46,'Anexo_GL '!$B$9:$O$1882,14,0) -> Cumple
A47: 010120 : MD DE SOLOCO | B47: 20 | C47: 010120 | D47: AMAZONAS | E47: MD DE SOLOCO | F47: =+VLOOKUP(C47,'Anexo_GL '!$B$9:$O$1882,4,0) -> 1380.70437 | H47: =+VLOOKUP(C47,'Anexo_GL '!$B$9:$O$1882,5,0) -> 885.89456 | I47: =+VLOOKUP(C47,'Anexo_GL '!$B$9:$O$1882,6,0) -> 0.00158 | J47: =+VLOOKUP(C47,'Anexo_GL '!$B$9:$O$1882,7,0) -> 0 | L47: =+VLOOKUP(C47,'Anexo_GL '!$B$9:$O$1882,8,0) -> 155.8542554 | N47: =+VLOOKUP(C47,'Anexo_GL '!$B$9:$O$1882,9,0) -> No Cumple | P47: =+VLOOKUP(C47,'Anexo_GL '!$B$9:$O$1882,11,0) -> 702.55826 | Q47: =+VLOOKUP(C47,'Anexo_GL '!$B$9:$O$1882,12,0) -> 375.28315 | R47: =+VLOOKUP(C47,'Anexo_GL '!$B$9:$O$1882,13,0) -> 327.27511 | S47: =+VLOOKUP(C47,'Anexo_GL '!$B$9:$O$1882,14,0) -> Cumple
A48: 010121 : MD DE SONCHE | B48: 21 | C48: 010121 | D48: AMAZONAS | E48: MD DE SONCHE | F48: =+VLOOKUP(C48,'Anexo_GL '!$B$9:$O$1882,4,0) -> 14.06640997 | H48: =+VLOOKUP(C48,'Anexo_GL '!$B$9:$O$1882,5,0) -> 470.7127225 | I48: =+VLOOKUP(C48,'Anexo_GL '!$B$9:$O$1882,6,0) -> 0.00046 | J48: =+VLOOKUP(C48,'Anexo_GL '!$B$9:$O$1882,7,0) -> 456.6463125 | L48: =+VLOOKUP(C48,'Anexo_GL '!$B$9:$O$1882,8,0) -> 2.988321602 | N48: =+VLOOKUP(C48,'Anexo_GL '!$B$9:$O$1882,9,0) -> Cumple | P48: =+VLOOKUP(C48,'Anexo_GL '!$B$9:$O$1882,11,0) -> 482.80044 | Q48: =+VLOOKUP(C48,'Anexo_GL '!$B$9:$O$1882,12,0) -> 341.09206 | R48: =+VLOOKUP(C48,'Anexo_GL '!$B$9:$O$1882,13,0) -> 141.70838 | S48: =+VLOOKUP(C48,'Anexo_GL '!$B$9:$O$1882,14,0) -> Cumple
A49: 010201 : MP DE BAGUA - LA PECA | B49: 22 | C49: 010201 | D49: AMAZONAS | E49: MP DE BAGUA - LA PECA | F49: =+VLOOKUP(C49,'Anexo_GL '!$B$9:$O$1882,4,0) -> 2012.2073 | H49: =+VLOOKUP(C49,'Anexo_GL '!$B$9:$O$1882,5,0) -> 11633.76614 | I49: =+VLOOKUP(C49,'Anexo_GL '!$B$9:$O$1882,6,0) -> 0.80018 | J49: =+VLOOKUP(C49,'Anexo_GL '!$B$9:$O$1882,7,0) -> 9621.55884 | L49: =+VLOOKUP(C49,'Anexo_GL '!$B$9:$O$1882,8,0) -> 17.2962674 | N49: =+VLOOKUP(C49,'Anexo_GL '!$B$9:$O$1882,9,0) -> Cumple | P49: =+VLOOKUP(C49,'Anexo_GL '!$B$9:$O$1882,11,0) -> 12793.14816 | Q49: =+VLOOKUP(C49,'Anexo_GL '!$B$9:$O$1882,12,0) -> 11620.68767 | R49: =+VLOOKUP(C49,'Anexo_GL '!$B$9:$O$1882,13,0) -> 1172.46049 | S49: =+VLOOKUP(C49,'Anexo_GL '!$B$9:$O$1882,14,0) -> Cumple
A50: 010202 : MD DE ARAMANGO | B50: 23 | C50: 010202 | D50: AMAZONAS | E50: MD DE ARAMANGO | F50: =+VLOOKUP(C50,'Anexo_GL '!$B$9:$O$1882,4,0) -> 1147.85155 | H50: =+VLOOKUP(C50,'Anexo_GL '!$B$9:$O$1882,5,0) -> 3695.93651 | I50: =+VLOOKUP(C50,'Anexo_GL '!$B$9:$O$1882,6,0) -> 1.10658 | J50: =+VLOOKUP(C50,'Anexo_GL '!$B$9:$O$1882,7,0) -> 2548.08496 | L50: =+VLOOKUP(C50,'Anexo_GL '!$B$9:$O$1882,8,0) -> 31.05712306 | N50: =+VLOOKUP(C50,'Anexo_GL '!$B$9:$O$1882,9,0) -> Cumple | P50: =+VLOOKUP(C50,'Anexo_GL '!$B$9:$O$1882,11,0) -> 3384.02543 | Q50: =+VLOOKUP(C50,'Anexo_GL '!$B$9:$O$1882,12,0) -> 2387.98344 | R50: =+VLOOKUP(C50,'Anexo_GL '!$B$9:$O$1882,13,0) -> 996.04199 | S50: =+VLOOKUP(C50,'Anexo_GL '!$B$9:$O$1882,14,0) -> Cumple
A51: 010203 : MD DE COPALLIN | B51: 24 | C51: 010203 | D51: AMAZONAS | E51: MD DE COPALLIN | F51: =+VLOOKUP(C51,'Anexo_GL '!$B$9:$O$1882,4,0) -> 148.16118 | H51: =+VLOOKUP(C51,'Anexo_GL '!$B$9:$O$1882,5,0) -> 1873.864365 | I51: =+VLOOKUP(C51,'Anexo_GL '!$B$9:$O$1882,6,0) -> 0.00141 | J51: =+VLOOKUP(C51,'Anexo_GL '!$B$9:$O$1882,7,0) -> 1725.703185 | L51: =+VLOOKUP(C51,'Anexo_GL '!$B$9:$O$1882,8,0) -> 7.906718479 | N51: =+VLOOKUP(C51,'Anexo_GL '!$B$9:$O$1882,9,0) -> Cumple | P51: =+VLOOKUP(C51,'Anexo_GL '!$B$9:$O$1882,11,0) -> 1832.03142 | Q51: =+VLOOKUP(C51,'Anexo_GL '!$B$9:$O$1882,12,0) -> 1519.68162 | R51: =+VLOOKUP(C51,'Anexo_GL '!$B$9:$O$1882,13,0) -> 312.3498 | S51: =+VLOOKUP(C51,'Anexo_GL '!$B$9:$O$1882,14,0) -> Cumple
A52: 010204 : MD DE EL PARCO | B52: 25 | C52: 010204 | D52: AMAZONAS | E52: MD DE EL PARCO | F52: =+VLOOKUP(C52,'Anexo_GL '!$B$9:$O$1882,4,0) -> 123.9875799 | H52: =+VLOOKUP(C52,'Anexo_GL '!$B$9:$O$1882,5,0) -> 653.993685 | I52: =+VLOOKUP(C52,'Anexo_GL '!$B$9:$O$1882,6,0) -> 0.00047 | J52: =+VLOOKUP(C52,'Anexo_GL '!$B$9:$O$1882,7,0) -> 530.0061051 | L52: =+VLOOKUP(C52,'Anexo_GL '!$B$9:$O$1882,8,0) -> 18.95852861 | N52: =+VLOOKUP(C52,'Anexo_GL '!$B$9:$O$1882,9,0) -> Cumple | P52: =+VLOOKUP(C52,'Anexo_GL '!$B$9:$O$1882,11,0) -> 564.19892 | Q52: =+VLOOKUP(C52,'Anexo_GL '!$B$9:$O$1882,12,0) -> 502.74681 | R52: =+VLOOKUP(C52,'Anexo_GL '!$B$9:$O$1882,13,0) -> 61.45211 | S52: =+VLOOKUP(C52,'Anexo_GL '!$B$9:$O$1882,14,0) -> Cumple
A53: 010205 : MD DE IMAZA | B53: 26 | C53: 010205 | D53: AMAZONAS | E53: MD DE IMAZA | F53: =+VLOOKUP(C53,'Anexo_GL '!$B$9:$O$1882,4,0) -> 6354.174412 | H53: =+VLOOKUP(C53,'Anexo_GL '!$B$9:$O$1882,5,0) -> 7932.299943 | I53: =+VLOOKUP(C53,'Anexo_GL '!$B$9:$O$1882,6,0) -> 2.19605 | J53: =+VLOOKUP(C53,'Anexo_GL '!$B$9:$O$1882,7,0) -> 1578.125531 | L53: =+VLOOKUP(C53,'Anexo_GL '!$B$9:$O$1882,8,0) -> 80.10506988 | N53: =+VLOOKUP(C53,'Anexo_GL '!$B$9:$O$1882,9,0) -> Cumple | P53: =+VLOOKUP(C53,'Anexo_GL '!$B$9:$O$1882,11,0) -> 8016.96339 | Q53: =+VLOOKUP(C53,'Anexo_GL '!$B$9:$O$1882,12,0) -> 4924.85828 | R53: =+VLOOKUP(C53,'Anexo_GL '!$B$9:$O$1882,13,0) -> 3092.10511 | S53: =+VLOOKUP(C53,'Anexo_GL '!$B$9:$O$1882,14,0) -> Cumple
A54: 010206 : MD DE LA PECA | B54: 27 | C54: 010206 | D54: AMAZONAS | E54: MD DE LA PECA | F54: =+VLOOKUP(C54,'Anexo_GL '!$B$9:$O$1882,4,0) -> 149.29369 | H54: =+VLOOKUP(C54,'Anexo_GL '!$B$9:$O$1882,5,0) -> 2199.704705 | I54: =+VLOOKUP(C54,'Anexo_GL '!$B$9:$O$1882,6,0) -> 0.00204 | J54: =+VLOOKUP(C54,'Anexo_GL '!$B$9:$O$1882,7,0) -> 2050.411015 | L54: =+VLOOKUP(C54,'Anexo_GL '!$B$9:$O$1882,8,0) -> 6.786987802 | N54: =+VLOOKUP(C54,'Anexo_GL '!$B$9:$O$1882,9,0) -> Cumple | P54: =+VLOOKUP(C54,'Anexo_GL '!$B$9:$O$1882,11,0) -> 2067.65192 | Q54: =+VLOOKUP(C54,'Anexo_GL '!$B$9:$O$1882,12,0) -> 1565.64603 | R54: =+VLOOKUP(C54,'Anexo_GL '!$B$9:$O$1882,13,0) -> 502.00589 | S54: =+VLOOKUP(C54,'Anexo_GL '!$B$9:$O$1882,14,0) -> Cumple
A55: 010301 : MP DE BONGARA - JUMBILLA | B55: 28 | C55: 010301 | D55: AMAZONAS | E55: MP DE BONGARA - JUMBILLA | F55: =+VLOOKUP(C55,'Anexo_GL '!$B$9:$O$1882,4,0) -> 1632.96662 | H55: =+VLOOKUP(C55,'Anexo_GL '!$B$9:$O$1882,5,0) -> 3733.640743 | I55: =+VLOOKUP(C55,'Anexo_GL '!$B$9:$O$1882,6,0) -> 0.00052 | J55: =+VLOOKUP(C55,'Anexo_GL '!$B$9:$O$1882,7,0) -> 2100.674122 | L55: =+VLOOKUP(C55,'Anexo_GL '!$B$9:$O$1882,8,0) -> 43.73657598 | N55: =+VLOOKUP(C55,'Anexo_GL '!$B$9:$O$1882,9,0) -> Cumple | P55: =+VLOOKUP(C55,'Anexo_GL '!$B$9:$O$1882,11,0) -> 3706.81722 | Q55: =+VLOOKUP(C55,'Anexo_GL '!$B$9:$O$1882,12,0) -> 2636.74519 | R55: =+VLOOKUP(C55,'Anexo_GL '!$B$9:$O$1882,13,0) -> 1070.07203 | S55: =+VLOOKUP(C55,'Anexo_GL '!$B$9:$O$1882,14,0) -> Cumple
A56: 010302 : MD DE CHISQUILLA | B56: 29 | C56: 010302 | D56: AMAZONAS | E56: MD DE CHISQUILLA | F56: =+VLOOKUP(C56,'Anexo_GL '!$B$9:$O$1882,4,0) -> 10.05369998 | H56: =+VLOOKUP(C56,'Anexo_GL '!$B$9:$O$1882,5,0) -> 1001.775467 | I56: =+VLOOKUP(C56,'Anexo_GL '!$B$9:$O$1882,6,0) -> 4e-05 | J56: =+VLOOKUP(C56,'Anexo_GL '!$B$9:$O$1882,7,0) -> 991.7217675 | L56: =+VLOOKUP(C56,'Anexo_GL '!$B$9:$O$1882,8,0) -> 1.00358816 | N56: =+VLOOKUP(C56,'Anexo_GL '!$B$9:$O$1882,9,0) -> Cumple | P56: =+VLOOKUP(C56,'Anexo_GL '!$B$9:$O$1882,11,0) -> 440.6194 | Q56: =+VLOOKUP(C56,'Anexo_GL '!$B$9:$O$1882,12,0) -> 383.38638 | R56: =+VLOOKUP(C56,'Anexo_GL '!$B$9:$O$1882,13,0) -> 57.23302 | S56: =+VLOOKUP(C56,'Anexo_GL '!$B$9:$O$1882,14,0) -> Cumple
A57: 010303 : MD DE CHURUJA | B57: 30 | C57: 010303 | D57: AMAZONAS | E57: MD DE CHURUJA | F57: =+VLOOKUP(C57,'Anexo_GL '!$B$9:$O$1882,4,0) -> 1.72522 | H57: =+VLOOKUP(C57,'Anexo_GL '!$B$9:$O$1882,5,0) -> 3627.96194 | I57: =+VLOOKUP(C57,'Anexo_GL '!$B$9:$O$1882,6,0) -> 4e-05 | J57: =+VLOOKUP(C57,'Anexo_GL '!$B$9:$O$1882,7,0) -> 3626.23672 | L57: =+VLOOKUP(C57,'Anexo_GL '!$B$9:$O$1882,8,0) -> 0.04755342059 | N57: =+VLOOKUP(C57,'Anexo_GL '!$B$9:$O$1882,9,0) -> Cumple | P57: =+VLOOKUP(C57,'Anexo_GL '!$B$9:$O$1882,11,0) -> 435.27359 | Q57: =+VLOOKUP(C57,'Anexo_GL '!$B$9:$O$1882,12,0) -> 272.103 | R57: =+VLOOKUP(C57,'Anexo_GL '!$B$9:$O$1882,13,0) -> 163.17059 | S57: =+VLOOKUP(C57,'Anexo_GL '!$B$9:$O$1882,14,0) -> Cumple
A58: 010304 : MD DE COROSHA | B58: 31 | C58: 010304 | D58: AMAZONAS | E58: MD DE COROSHA | F58: =+VLOOKUP(C58,'Anexo_GL '!$B$9:$O$1882,4,0) -> 42.4829 | H58: =+VLOOKUP(C58,'Anexo_GL '!$B$9:$O$1882,5,0) -> 748.524715 | I58: =+VLOOKUP(C58,'Anexo_GL '!$B$9:$O$1882,6,0) -> 0.00019 | J58: =+VLOOKUP(C58,'Anexo_GL '!$B$9:$O$1882,7,0) -> 706.041815 | L58: =+VLOOKUP(C58,'Anexo_GL '!$B$9:$O$1882,8,0) -> 5.67555074 | N58: =+VLOOKUP(C58,'Anexo_GL '!$B$9:$O$1882,9,0) -> Cumple | P58: =+VLOOKUP(C58,'Anexo_GL '!$B$9:$O$1882,11,0) -> 434.90881 | Q58: =+VLOOKUP(C58,'Anexo_GL '!$B$9:$O$1882,12,0) -> 334.31156 | R58: =+VLOOKUP(C58,'Anexo_GL '!$B$9:$O$1882,13,0) -> 100.59725 | S58: =+VLOOKUP(C58,'Anexo_GL '!$B$9:$O$1882,14,0) -> Cumple
A59: 010305 : MD DE CUISPES | B59: 32 | C59: 010305 | D59: AMAZONAS | E59: MD DE CUISPES | F59: =+VLOOKUP(C59,'Anexo_GL '!$B$9:$O$1882,4,0) -> 20.56163 | H59: =+VLOOKUP(C59,'Anexo_GL '!$B$9:$O$1882,5,0) -> 555.8233925 | I59: =+VLOOKUP(C59,'Anexo_GL '!$B$9:$O$1882,6,0) -> 0.00012 | J59: =+VLOOKUP(C59,'Anexo_GL '!$B$9:$O$1882,7,0) -> 535.2617625 | L59: =+VLOOKUP(C59,'Anexo_GL '!$B$9:$O$1882,8,0) -> 3.699309939 | N59: =+VLOOKUP(C59,'Anexo_GL '!$B$9:$O$1882,9,0) -> Cumple | P59: =+VLOOKUP(C59,'Anexo_GL '!$B$9:$O$1882,11,0) -> 465.87995 | Q59: =+VLOOKUP(C59,'Anexo_GL '!$B$9:$O$1882,12,0) -> 287.19733 | R59: =+VLOOKUP(C59,'Anexo_GL '!$B$9:$O$1882,13,0) -> 178.68262 | S59: =+VLOOKUP(C59,'Anexo_GL '!$B$9:$O$1882,14,0) -> Cumple
A60: 010306 : MD DE FLORIDA | B60: 33 | C60: 010306 | D60: AMAZONAS | E60: MD DE FLORIDA | F60: =+VLOOKUP(C60,'Anexo_GL '!$B$9:$O$1882,4,0) -> 121.22881 | H60: =+VLOOKUP(C60,'Anexo_GL '!$B$9:$O$1882,5,0) -> 1946.398893 | I60: =+VLOOKUP(C60,'Anexo_GL '!$B$9:$O$1882,6,0) -> 0.00197 | J60: =+VLOOKUP(C60,'Anexo_GL '!$B$9:$O$1882,7,0) -> 1825.170083 | L60: =+VLOOKUP(C60,'Anexo_GL '!$B$9:$O$1882,8,0) -> 6.228364107 | N60: =+VLOOKUP(C60,'Anexo_GL '!$B$9:$O$1882,9,0) -> Cumple | P60: =+VLOOKUP(C60,'Anexo_GL '!$B$9:$O$1882,11,0) -> 1750.54244 | Q60: =+VLOOKUP(C60,'Anexo_GL '!$B$9:$O$1882,12,0) -> 1363.63719 | R60: =+VLOOKUP(C60,'Anexo_GL '!$B$9:$O$1882,13,0) -> 386.90525 | S60: =+VLOOKUP(C60,'Anexo_GL '!$B$9:$O$1882,14,0) -> Cumple
A61: 010307 : MD DE JAZAN | B61: 34 | C61: 010307 | D61: AMAZONAS | E61: MD DE JAZAN | F61: =+VLOOKUP(C61,'Anexo_GL '!$B$9:$O$1882,4,0) -> 990.1160376 | H61: =+VLOOKUP(C61,'Anexo_GL '!$B$9:$O$1882,5,0) -> 2315.205465 | I61: =+VLOOKUP(C61,'Anexo_GL '!$B$9:$O$1882,6,0) -> 0.00128 | J61: =+VLOOKUP(C61,'Anexo_GL '!$B$9:$O$1882,7,0) -> 1325.089427 | L61: =+VLOOKUP(C61,'Anexo_GL '!$B$9:$O$1882,8,0) -> 42.76579563 | N61: =+VLOOKUP(C61,'Anexo_GL '!$B$9:$O$1882,9,0) -> Cumple | P61: =+VLOOKUP(C61,'Anexo_GL '!$B$9:$O$1882,11,0) -> 2700.34162 | Q61: =+VLOOKUP(C61,'Anexo_GL '!$B$9:$O$1882,12,0) -> 1643.81771 | R61: =+VLOOKUP(C61,'Anexo_GL '!$B$9:$O$1882,13,0) -> 1056.52391 | S61: =+VLOOKUP(C61,'Anexo_GL '!$B$9:$O$1882,14,0) -> Cumple
A62: 010308 : MD DE RECTA | B62: 35 | C62: 010308 | D62: AMAZONAS | E62: MD DE RECTA | F62: =+VLOOKUP(C62,'Anexo_GL '!$B$9:$O$1882,4,0) -> 21.04264 | H62: =+VLOOKUP(C62,'Anexo_GL '!$B$9:$O$1882,5,0) -> 432.3656375 | I62: =+VLOOKUP(C62,'Anexo_GL '!$B$9:$O$1882,6,0) -> 3e-05 | J62: =+VLOOKUP(C62,'Anexo_GL '!$B$9:$O$1882,7,0) -> 411.3229975 | L62: =+VLOOKUP(C62,'Anexo_GL '!$B$9:$O$1882,8,0) -> 4.866862252 | N62: =+VLOOKUP(C62,'Anexo_GL '!$B$9:$O$1882,9,0) -> Cumple | P62: =+VLOOKUP(C62,'Anexo_GL '!$B$9:$O$1882,11,0) -> 414.8461 | Q62: =+VLOOKUP(C62,'Anexo_GL '!$B$9:$O$1882,12,0) -> 284.63697 | R62: =+VLOOKUP(C62,'Anexo_GL '!$B$9:$O$1882,13,0) -> 130.20913 | S62: =+VLOOKUP(C62,'Anexo_GL '!$B$9:$O$1882,14,0) -> Cumple
A63: 010309 : MD DE SAN CARLOS | B63: 36 | C63: 010309 | D63: AMAZONAS | E63: MD DE SAN CARLOS | F63: =+VLOOKUP(C63,'Anexo_GL '!$B$9:$O$1882,4,0) -> 52.08680999 | H63: =+VLOOKUP(C63,'Anexo_GL '!$B$9:$O$1882,5,0) -> 1670.318418 | I63: =+VLOOKUP(C63,'Anexo_GL '!$B$9:$O$1882,6,0) -> 3e-05 | J63: =+VLOOKUP(C63,'Anexo_GL '!$B$9:$O$1882,7,0) -> 1618.231608 | L63: =+VLOOKUP(C63,'Anexo_GL '!$B$9:$O$1882,8,0) -> 3.11837608 | N63: =+VLOOKUP(C63,'Anexo_GL '!$B$9:$O$1882,9,0) -> Cumple | P63: =+VLOOKUP(C63,'Anexo_GL '!$B$9:$O$1882,11,0) -> 540.25282 | Q63: =+VLOOKUP(C63,'Anexo_GL '!$B$9:$O$1882,12,0) -> 297.57629 | R63: =+VLOOKUP(C63,'Anexo_GL '!$B$9:$O$1882,13,0) -> 242.67653 | S63: =+VLOOKUP(C63,'Anexo_GL '!$B$9:$O$1882,14,0) -> Cumple
A64: 010310 : MD DE SHIPASBAMBA | B64: 37 | C64: 010310 | D64: AMAZONAS | E64: MD DE SHIPASBAMBA | F64: =+VLOOKUP(C64,'Anexo_GL '!$B$9:$O$1882,4,0) -> 9.38221 | H64: =+VLOOKUP(C64,'Anexo_GL '!$B$9:$O$1882,5,0) -> 729.29701 | I64: =+VLOOKUP(C64,'Anexo_GL '!$B$9:$O$1882,6,0) -> 0.00053 | J64: =+VLOOKUP(C64,'Anexo_GL '!$B$9:$O$1882,7,0) -> 719.9148 | L64: =+VLOOKUP(C64,'Anexo_GL '!$B$9:$O$1882,8,0) -> 1.28647312 | N64: =+VLOOKUP(C64,'Anexo_GL '!$B$9:$O$1882,9,0) -> Cumple | P64: =+VLOOKUP(C64,'Anexo_GL '!$B$9:$O$1882,11,0) -> 821.24778 | Q64: =+VLOOKUP(C64,'Anexo_GL '!$B$9:$O$1882,12,0) -> 464.26852 | R64: =+VLOOKUP(C64,'Anexo_GL '!$B$9:$O$1882,13,0) -> 356.97926 | S64: =+VLOOKUP(C64,'Anexo_GL '!$B$9:$O$1882,14,0) -> Cumple
A65: 010311 : MD DE VALERA | B65: 38 | C65: 010311 | D65: AMAZONAS | E65: MD DE VALERA | F65: =+VLOOKUP(C65,'Anexo_GL '!$B$9:$O$1882,4,0) -> 43.41838 | H65: =+VLOOKUP(C65,'Anexo_GL '!$B$9:$O$1882,5,0) -> 582.4132875 | I65: =+VLOOKUP(C65,'Anexo_GL '!$B$9:$O$1882,6,0) -> 0.00044 | J65: =+VLOOKUP(C65,'Anexo_GL '!$B$9:$O$1882,7,0) -> 538.9949075 | L65: =+VLOOKUP(C65,'Anexo_GL '!$B$9:$O$1882,8,0) -> 7.4549089 | N65: =+VLOOKUP(C65,'Anexo_GL '!$B$9:$O$1882,9,0) -> Cumple | P65: =+VLOOKUP(C65,'Anexo_GL '!$B$9:$O$1882,11,0) -> 468.799 | Q65: =+VLOOKUP(C65,'Anexo_GL '!$B$9:$O$1882,12,0) -> 286.70904 | R65: =+VLOOKUP(C65,'Anexo_GL '!$B$9:$O$1882,13,0) -> 182.08996 | S65: =+VLOOKUP(C65,'Anexo_GL '!$B$9:$O$1882,14,0) -> Cumple
A66: 010312 : MD DE YAMBRASBAMBA | B66: 39 | C66: 010312 | D66: AMAZONAS | E66: MD DE YAMBRASBAMBA | F66: =+VLOOKUP(C66,'Anexo_GL '!$B$9:$O$1882,4,0) -> 340.34146 | H66: =+VLOOKUP(C66,'Anexo_GL '!$B$9:$O$1882,5,0) -> 2469.25229 | I66: =+VLOOKUP(C66,'Anexo_GL '!$B$9:$O$1882,6,0) -> 0.00246 | J66: =+VLOOKUP(C66,'Anexo_GL '!$B$9:$O$1882,7,0) -> 2128.91083 | L66: =+VLOOKUP(C66,'Anexo_GL '!$B$9:$O$1882,8,0) -> 13.78317887 | N66: =+VLOOKUP(C66,'Anexo_GL '!$B$9:$O$1882,9,0) -> Cumple | P66: =+VLOOKUP(C66,'Anexo_GL '!$B$9:$O$1882,11,0) -> 2320.98977 | Q66: =+VLOOKUP(C66,'Anexo_GL '!$B$9:$O$1882,12,0) -> 1767.12979 | R66: =+VLOOKUP(C66,'Anexo_GL '!$B$9:$O$1882,13,0) -> 553.85998 | S66: =+VLOOKUP(C66,'Anexo_GL '!$B$9:$O$1882,14,0) -> Cumple
A67: 010401 : MP DE CONDORCANQUI - NIEVA | B67: 40 | C67: 010401 | D67: AMAZONAS | E67: MP DE CONDORCANQUI - NIEVA | F67: =+VLOOKUP(C67,'Anexo_GL '!$B$9:$O$1882,4,0) -> 2195.30029 | H67: =+VLOOKUP(C67,'Anexo_GL '!$B$9:$O$1882,5,0) -> 16229.00684 | I67: =+VLOOKUP(C67,'Anexo_GL '!$B$9:$O$1882,6,0) -> 2.38973 | J67: =+VLOOKUP(C67,'Anexo_GL '!$B$9:$O$1882,7,0) -> 14033.70655 | L67: =+VLOOKUP(C67,'Anexo_GL '!$B$9:$O$1882,8,0) -> 13.52701562 | N67: =+VLOOKUP(C67,'Anexo_GL '!$B$9:$O$1882,9,0) -> Cumple | P67: =+VLOOKUP(C67,'Anexo_GL '!$B$9:$O$1882,11,0) -> 16080.02968 | Q67: =+VLOOKUP(C67,'Anexo_GL '!$B$9:$O$1882,12,0) -> 10985.61602 | R67: =+VLOOKUP(C67,'Anexo_GL '!$B$9:$O$1882,13,0) -> 5094.41366 | S67: =+VLOOKUP(C67,'Anexo_GL '!$B$9:$O$1882,14,0) -> Cumple
A68: 010402 : MD DE EL CENEPA | B68: 41 | C68: 010402 | D68: AMAZONAS | E68: MD DE EL CENEPA | F68: =+VLOOKUP(C68,'Anexo_GL '!$B$9:$O$1882,4,0) -> 1134.84564 | H68: =+VLOOKUP(C68,'Anexo_GL '!$B$9:$O$1882,5,0) -> 4080.38825 | I68: =+VLOOKUP(C68,'Anexo_GL '!$B$9:$O$1882,6,0) -> 0.60595 | J68: =+VLOOKUP(C68,'Anexo_GL '!$B$9:$O$1882,7,0) -> 2945.54261 | L68: =+VLOOKUP(C68,'Anexo_GL '!$B$9:$O$1882,8,0) -> 27.81219753 | N68: =+VLOOKUP(C68,'Anexo_GL '!$B$9:$O$1882,9,0) -> Cumple | P68: =+VLOOKUP(C68,'Anexo_GL '!$B$9:$O$1882,11,0) -> 4207.92137 | Q68: =+VLOOKUP(C68,'Anexo_GL '!$B$9:$O$1882,12,0) -> 3413.76748 | R68: =+VLOOKUP(C68,'Anexo_GL '!$B$9:$O$1882,13,0) -> 794.15389 | S68: =+VLOOKUP(C68,'Anexo_GL '!$B$9:$O$1882,14,0) -> Cumple
A69: 010403 : MD DE RIO SANTIAGO | B69: 42 | C69: 010403 | D69: AMAZONAS | E69: MD DE RIO SANTIAGO | F69: =+VLOOKUP(C69,'Anexo_GL '!$B$9:$O$1882,4,0) -> 1802.77395 | H69: =+VLOOKUP(C69,'Anexo_GL '!$B$9:$O$1882,5,0) -> 6466.00218 | I69: =+VLOOKUP(C69,'Anexo_GL '!$B$9:$O$1882,6,0) -> 1.03704 | J69: =+VLOOKUP(C69,'Anexo_GL '!$B$9:$O$1882,7,0) -> 4663.22823 | L69: =+VLOOKUP(C69,'Anexo_GL '!$B$9:$O$1882,8,0) -> 27.88081259 | N69: =+VLOOKUP(C69,'Anexo_GL '!$B$9:$O$1882,9,0) -> Cumple | P69: =+VLOOKUP(C69,'Anexo_GL '!$B$9:$O$1882,11,0) -> 7042.83647 | Q69: =+VLOOKUP(C69,'Anexo_GL '!$B$9:$O$1882,12,0) -> 4285.65716 | R69: =+VLOOKUP(C69,'Anexo_GL '!$B$9:$O$1882,13,0) -> 2757.17931 | S69: =+VLOOKUP(C69,'Anexo_GL '!$B$9:$O$1882,14,0) -> Cumple
A70: 010501 : MP DE LUYA - LAMUD | B70: 43 | C70: 010501 | D70: AMAZONAS | E70: MP DE LUYA - LAMUD | F70: =+VLOOKUP(C70,'Anexo_GL '!$B$9:$O$1882,4,0) -> 1279.08794 | H70: =+VLOOKUP(C70,'Anexo_GL '!$B$9:$O$1882,5,0) -> 5874.012588 | I70: =+VLOOKUP(C70,'Anexo_GL '!$B$9:$O$1882,6,0) -> 0.00044 | J70: =+VLOOKUP(C70,'Anexo_GL '!$B$9:$O$1882,7,0) -> 4594.924647 | L70: =+VLOOKUP(C70,'Anexo_GL '!$B$9:$O$1882,8,0) -> 21.77536941 | N70: =+VLOOKUP(C70,'Anexo_GL '!$B$9:$O$1882,9,0) -> Cumple | P70: =+VLOOKUP(C70,'Anexo_GL '!$B$9:$O$1882,11,0) -> 6049.64647 | Q70: =+VLOOKUP(C70,'Anexo_GL '!$B$9:$O$1882,12,0) -> 3791.00798 | R70: =+VLOOKUP(C70,'Anexo_GL '!$B$9:$O$1882,13,0) -> 2258.63849 | S70: =+VLOOKUP(C70,'Anexo_GL '!$B$9:$O$1882,14,0) -> Cumple
A71: 010502 : MD DE CAMPORREDONDO | B71: 44 | C71: 010502 | D71: AMAZONAS | E71: MD DE CAMPORREDONDO | F71: =+VLOOKUP(C71,'Anexo_GL '!$B$9:$O$1882,4,0) -> 12.17590001 | H71: =+VLOOKUP(C71,'Anexo_GL '!$B$9:$O$1882,5,0) -> 1953.020555 | I71: =+VLOOKUP(C71,'Anexo_GL '!$B$9:$O$1882,6,0) -> 0.00202 | J71: =+VLOOKUP(C71,'Anexo_GL '!$B$9:$O$1882,7,0) -> 1940.844655 | L71: =+VLOOKUP(C71,'Anexo_GL '!$B$9:$O$1882,8,0) -> 0.6234394195 | N71: =+VLOOKUP(C71,'Anexo_GL '!$B$9:$O$1882,9,0) -> Cumple | P71: =+VLOOKUP(C71,'Anexo_GL '!$B$9:$O$1882,11,0) -> 1882.23333 | Q71: =+VLOOKUP(C71,'Anexo_GL '!$B$9:$O$1882,12,0) -> 1122.83825 | R71: =+VLOOKUP(C71,'Anexo_GL '!$B$9:$O$1882,13,0) -> 759.39508 | S71: =+VLOOKUP(C71,'Anexo_GL '!$B$9:$O$1882,14,0) -> Cumple
A72: 010503 : MD DE COCABAMBA | B72: 45 | C72: 010503 | D72: AMAZONAS | E72: MD DE COCABAMBA | F72: =+VLOOKUP(C72,'Anexo_GL '!$B$9:$O$1882,4,0) -> 317.92283 | H72: =+VLOOKUP(C72,'Anexo_GL '!$B$9:$O$1882,5,0) -> 934.0606675 | I72: =+VLOOKUP(C72,'Anexo_GL '!$B$9:$O$1882,6,0) -> 0.00068 | J72: =+VLOOKUP(C72,'Anexo_GL '!$B$9:$O$1882,7,0) -> 616.1378375 | L72: =+VLOOKUP(C72,'Anexo_GL '!$B$9:$O$1882,8,0) -> 34.03663606 | N72: =+VLOOKUP(C72,'Anexo_GL '!$B$9:$O$1882,9,0) -> Cumple | P72: =+VLOOKUP(C72,'Anexo_GL '!$B$9:$O$1882,11,0) -> 824.47343 | Q72: =+VLOOKUP(C72,'Anexo_GL '!$B$9:$O$1882,12,0) -> 489.95276 | R72: =+VLOOKUP(C72,'Anexo_GL '!$B$9:$O$1882,13,0) -> 334.52067 | S72: =+VLOOKUP(C72,'Anexo_GL '!$B$9:$O$1882,14,0) -> Cumple
A73: 010504 : MD DE COLCAMAR | B73: 46 | C73: 010504 | D73: AMAZONAS | E73: MD DE COLCAMAR | F73: =+VLOOKUP(C73,'Anexo_GL '!$B$9:$O$1882,4,0) -> 423.84588 | H73: =+VLOOKUP(C73,'Anexo_GL '!$B$9:$O$1882,5,0) -> 734.9189775 | I73: =+VLOOKUP(C73,'Anexo_GL '!$B$9:$O$1882,6,0) -> 0.0005 | J73: =+VLOOKUP(C73,'Anexo_GL '!$B$9:$O$1882,7,0) -> 311.0730975 | L73: =+VLOOKUP(C73,'Anexo_GL '!$B$9:$O$1882,8,0) -> 57.67246363 | N73: =+VLOOKUP(C73,'Anexo_GL '!$B$9:$O$1882,9,0) -> Cumple | P73: =+VLOOKUP(C73,'Anexo_GL '!$B$9:$O$1882,11,0) -> 601.42301 | Q73: =+VLOOKUP(C73,'Anexo_GL '!$B$9:$O$1882,12,0) -> 403.98779 | R73: =+VLOOKUP(C73,'Anexo_GL '!$B$9:$O$1882,13,0) -> 197.43522 | S73: =+VLOOKUP(C73,'Anexo_GL '!$B$9:$O$1882,14,0) -> Cumple
A74: 010505 : MD DE CONILA | B74: 47 | C74: 010505 | D74: AMAZONAS | E74: MD DE CONILA | F74: =+VLOOKUP(C74,'Anexo_GL '!$B$9:$O$1882,4,0) -> 367.66321 | H74: =+VLOOKUP(C74,'Anexo_GL '!$B$9:$O$1882,5,0) -> 915.4187325 | I74: =+VLOOKUP(C74,'Anexo_GL '!$B$9:$O$1882,6,0) -> 0.00057 | J74: =+VLOOKUP(C74,'Anexo_GL '!$B$9:$O$1882,7,0) -> 547.7555225 | L74: =+VLOOKUP(C74,'Anexo_GL '!$B$9:$O$1882,8,0) -> 40.16339157 | N74: =+VLOOKUP(C74,'Anexo_GL '!$B$9:$O$1882,9,0) -> Cumple | P74: =+VLOOKUP(C74,'Anexo_GL '!$B$9:$O$1882,11,0) -> 742.45485 | Q74: =+VLOOKUP(C74,'Anexo_GL '!$B$9:$O$1882,12,0) -> 382.71765 | R74: =+VLOOKUP(C74,'Anexo_GL '!$B$9:$O$1882,13,0) -> 359.7372 | S74: =+VLOOKUP(C74,'Anexo_GL '!$B$9:$O$1882,14,0) -> Cumple
A75: 010506 : MD DE INGUILPATA | B75: 48 | C75: 010506 | D75: AMAZONAS | E75: MD DE INGUILPATA | F75: =+VLOOKUP(C75,'Anexo_GL '!$B$9:$O$1882,4,0) -> 15.66242 | H75: =+VLOOKUP(C75,'Anexo_GL '!$B$9:$O$1882,5,0) -> 540.683965 | I75: =+VLOOKUP(C75,'Anexo_GL '!$B$9:$O$1882,6,0) -> 5e-05 | J75: =+VLOOKUP(C75,'Anexo_GL '!$B$9:$O$1882,7,0) -> 525.021545 | L75: =+VLOOKUP(C75,'Anexo_GL '!$B$9:$O$1882,8,0) -> 2.896779082 | N75: =+VLOOKUP(C75,'Anexo_GL '!$B$9:$O$1882,9,0) -> Cumple | P75: =+VLOOKUP(C75,'Anexo_GL '!$B$9:$O$1882,11,0) -> 592.94178 | Q75: =+VLOOKUP(C75,'Anexo_GL '!$B$9:$O$1882,12,0) -> 327.63298 | R75: =+VLOOKUP(C75,'Anexo_GL '!$B$9:$O$1882,13,0) -> 265.3088 | S75: =+VLOOKUP(C75,'Anexo_GL '!$B$9:$O$1882,14,0) -> Cumple
A76: 010507 : MD DE LONGUITA | B76: 49 | C76: 010507 | D76: AMAZONAS | E76: MD DE LONGUITA | F76: =+VLOOKUP(C76,'Anexo_GL '!$B$9:$O$1882,4,0) -> 2893.40199 | H76: =+VLOOKUP(C76,'Anexo_GL '!$B$9:$O$1882,5,0) -> 591.9870575 | I76: =+VLOOKUP(C76,'Anexo_GL '!$B$9:$O$1882,6,0) -> 0.00044 | J76: =+VLOOKUP(C76,'Anexo_GL '!$B$9:$O$1882,7,0) -> 0 | L76: =+VLOOKUP(C76,'Anexo_GL '!$B$9:$O$1882,8,0) -> 488.7610216 | N76: =+VLOOKUP(C76,'Anexo_GL '!$B$9:$O$1882,9,0) -> No Cumple | P76: =+VLOOKUP(C76,'Anexo_GL '!$B$9:$O$1882,11,0) -> 597.71436 | Q76: =+VLOOKUP(C76,'Anexo_GL '!$B$9:$O$1882,12,0) -> 352.30457 | R76: =+VLOOKUP(C76,'Anexo_GL '!$B$9:$O$1882,13,0) -> 245.40979 | S76: =+VLOOKUP(C76,'Anexo_GL '!$B$9:$O$1882,14,0) -> Cumple
A77: 010508 : MD DE LONYA CHICO | B77: 50 | C77: 010508 | D77: AMAZONAS | E77: MD DE LONYA CHICO | F77: =+VLOOKUP(C77,'Anexo_GL '!$B$9:$O$1882,4,0) -> 8.88775 | H77: =+VLOOKUP(C77,'Anexo_GL '!$B$9:$O$1882,5,0) -> 720.77785 | I77: =+VLOOKUP(C77,'Anexo_GL '!$B$9:$O$1882,6,0) -> 9e-05 | J77: =+VLOOKUP(C77,'Anexo_GL '!$B$9:$O$1882,7,0) -> 711.8901 | L77: =+VLOOKUP(C77,'Anexo_GL '!$B$9:$O$1882,8,0) -> 1.23307757 | N77: =+VLOOKUP(C77,'Anexo_GL '!$B$9:$O$1882,9,0) -> Cumple | P77: =+VLOOKUP(C77,'Anexo_GL '!$B$9:$O$1882,11,0) -> 749.06439 | Q77: =+VLOOKUP(C77,'Anexo_GL '!$B$9:$O$1882,12,0) -> 424.27859 | R77: =+VLOOKUP(C77,'Anexo_GL '!$B$9:$O$1882,13,0) -> 324.7858 | S77: =+VLOOKUP(C77,'Anexo_GL '!$B$9:$O$1882,14,0) -> Cumple
A78: 010509 : MD DE LUYA | B78: 51 | C78: 010509 | D78: AMAZONAS | E78: MD DE LUYA | F78: =+VLOOKUP(C78,'Anexo_GL '!$B$9:$O$1882,4,0) -> 96.40387989 | H78: =+VLOOKUP(C78,'Anexo_GL '!$B$9:$O$1882,5,0) -> 1191.328412 | I78: =+VLOOKUP(C78,'Anexo_GL '!$B$9:$O$1882,6,0) -> 0.00068 | J78: =+VLOOKUP(C78,'Anexo_GL '!$B$9:$O$1882,7,0) -> 1094.924533 | L78: =+VLOOKUP(C78,'Anexo_GL '!$B$9:$O$1882,8,0) -> 8.092133024 | N78: =+VLOOKUP(C78,'Anexo_GL '!$B$9:$O$1882,9,0) -> Cumple | P78: =+VLOOKUP(C78,'Anexo_GL '!$B$9:$O$1882,11,0) -> 1176.61247 | Q78: =+VLOOKUP(C78,'Anexo_GL '!$B$9:$O$1882,12,0) -> 835.24554 | R78: =+VLOOKUP(C78,'Anexo_GL '!$B$9:$O$1882,13,0) -> 341.36693 | S78: =+VLOOKUP(C78,'Anexo_GL '!$B$9:$O$1882,14,0) -> Cumple
A79: 010510 : MD DE LUYA VIEJO | B79: 52 | C79: 010510 | D79: AMAZONAS | E79: MD DE LUYA VIEJO | F79: =+VLOOKUP(C79,'Anexo_GL '!$B$9:$O$1882,4,0) -> 46.48212 | H79: =+VLOOKUP(C79,'Anexo_GL '!$B$9:$O$1882,5,0) -> 493.722455 | I79: =+VLOOKUP(C79,'Anexo_GL '!$B$9:$O$1882,6,0) -> 7e-05 | J79: =+VLOOKUP(C79,'Anexo_GL '!$B$9:$O$1882,7,0) -> 447.240335 | L79: =+VLOOKUP(C79,'Anexo_GL '!$B$9:$O$1882,8,0) -> 9.41462547 | N79: =+VLOOKUP(C79,'Anexo_GL '!$B$9:$O$1882,9,0) -> Cumple | P79: =+VLOOKUP(C79,'Anexo_GL '!$B$9:$O$1882,11,0) -> 584.97534 | Q79: =+VLOOKUP(C79,'Anexo_GL '!$B$9:$O$1882,12,0) -> 307.94436 | R79: =+VLOOKUP(C79,'Anexo_GL '!$B$9:$O$1882,13,0) -> 277.03098 | S79: =+VLOOKUP(C79,'Anexo_GL '!$B$9:$O$1882,14,0) -> Cumple
A80: 010511 : MD DE MARIA | B80: 53 | C80: 010511 | D80: AMAZONAS | E80: MD DE MARIA | F80: =+VLOOKUP(C80,'Anexo_GL '!$B$9:$O$1882,4,0) -> 19.94693 | H80: =+VLOOKUP(C80,'Anexo_GL '!$B$9:$O$1882,5,0) -> 559.939725 | I80: =+VLOOKUP(C80,'Anexo_GL '!$B$9:$O$1882,6,0) -> 5e-05 | J80: =+VLOOKUP(C80,'Anexo_GL '!$B$9:$O$1882,7,0) -> 539.992795 | L80: =+VLOOKUP(C80,'Anexo_GL '!$B$9:$O$1882,8,0) -> 3.562335214 | N80: =+VLOOKUP(C80,'Anexo_GL '!$B$9:$O$1882,9,0) -> Cumple | P80: =+VLOOKUP(C80,'Anexo_GL '!$B$9:$O$1882,11,0) -> 603.02789 | Q80: =+VLOOKUP(C80,'Anexo_GL '!$B$9:$O$1882,12,0) -> 276.53108 | R80: =+VLOOKUP(C80,'Anexo_GL '!$B$9:$O$1882,13,0) -> 326.49681 | S80: =+VLOOKUP(C80,'Anexo_GL '!$B$9:$O$1882,14,0) -> Cumple
A81: 010512 : MD DE OCALLI | B81: 54 | C81: 010512 | D81: AMAZONAS | E81: MD DE OCALLI | F81: =+VLOOKUP(C81,'Anexo_GL '!$B$9:$O$1882,4,0) -> 308.84661 | H81: =+VLOOKUP(C81,'Anexo_GL '!$B$9:$O$1882,5,0) -> 1318.667637 | I81: =+VLOOKUP(C81,'Anexo_GL '!$B$9:$O$1882,6,0) -> 0.00132 | J81: =+VLOOKUP(C81,'Anexo_GL '!$B$9:$O$1882,7,0) -> 1009.821028 | L81: =+VLOOKUP(C81,'Anexo_GL '!$B$9:$O$1882,8,0) -> 23.42111092 | N81: =+VLOOKUP(C81,'Anexo_GL '!$B$9:$O$1882,9,0) -> Cumple | P81: =+VLOOKUP(C81,'Anexo_GL '!$B$9:$O$1882,11,0) -> 1143.29822 | Q81: =+VLOOKUP(C81,'Anexo_GL '!$B$9:$O$1882,12,0) -> 736.94528 | R81: =+VLOOKUP(C81,'Anexo_GL '!$B$9:$O$1882,13,0) -> 406.35294 | S81: =+VLOOKUP(C81,'Anexo_GL '!$B$9:$O$1882,14,0) -> Cumple
A82: 010513 : MD DE OCUMAL | B82: 55 | C82: 010513 | D82: AMAZONAS | E82: MD DE OCUMAL | F82: =+VLOOKUP(C82,'Anexo_GL '!$B$9:$O$1882,4,0) -> 4119.96145 | H82: =+VLOOKUP(C82,'Anexo_GL '!$B$9:$O$1882,5,0) -> 1427.399623 | I82: =+VLOOKUP(C82,'Anexo_GL '!$B$9:$O$1882,6,0) -> 0.00132 | J82: =+VLOOKUP(C82,'Anexo_GL '!$B$9:$O$1882,7,0) -> 0 | L82: =+VLOOKUP(C82,'Anexo_GL '!$B$9:$O$1882,8,0) -> 288.6340577 | N82: =+VLOOKUP(C82,'Anexo_GL '!$B$9:$O$1882,9,0) -> No Cumple | P82: =+VLOOKUP(C82,'Anexo_GL '!$B$9:$O$1882,11,0) -> 1440.23008 | Q82: =+VLOOKUP(C82,'Anexo_GL '!$B$9:$O$1882,12,0) -> 658.47574 | R82: =+VLOOKUP(C82,'Anexo_GL '!$B$9:$O$1882,13,0) -> 781.75434 | S82: =+VLOOKUP(C82,'Anexo_GL '!$B$9:$O$1882,14,0) -> Cumple
A83: 010514 : MD DE PIZUQUIA | B83: 56 | C83: 010514 | D83: AMAZONAS | E83: MD DE PIZUQUIA | F83: =+VLOOKUP(C83,'Anexo_GL '!$B$9:$O$1882,4,0) -> 857.68714 | H83: =+VLOOKUP(C83,'Anexo_GL '!$B$9:$O$1882,5,0) -> 2146.60085 | I83: =+VLOOKUP(C83,'Anexo_GL '!$B$9:$O$1882,6,0) -> 0.00148 | J83: =+VLOOKUP(C83,'Anexo_GL '!$B$9:$O$1882,7,0) -> 1288.91371 | L83: =+VLOOKUP(C83,'Anexo_GL '!$B$9:$O$1882,8,0) -> 39.95559491 | N83: =+VLOOKUP(C83,'Anexo_GL '!$B$9:$O$1882,9,0) -> Cumple | P83: =+VLOOKUP(C83,'Anexo_GL '!$B$9:$O$1882,11,0) -> 2171.05919 | Q83: =+VLOOKUP(C83,'Anexo_GL '!$B$9:$O$1882,12,0) -> 1267.30343 | R83: =+VLOOKUP(C83,'Anexo_GL '!$B$9:$O$1882,13,0) -> 903.75576 | S83: =+VLOOKUP(C83,'Anexo_GL '!$B$9:$O$1882,14,0) -> Cumple
A84: 010515 : MD DE PROVIDENCIA | B84: 57 | C84: 010515 | D84: AMAZONAS | E84: MD DE PROVIDENCIA | F84: =+VLOOKUP(C84,'Anexo_GL '!$B$9:$O$1882,4,0) -> 70.05701001 | H84: =+VLOOKUP(C84,'Anexo_GL '!$B$9:$O$1882,5,0) -> 652.093555 | I84: =+VLOOKUP(C84,'Anexo_GL '!$B$9:$O$1882,6,0) -> 0.00047 | J84: =+VLOOKUP(C84,'Anexo_GL '!$B$9:$O$1882,7,0) -> 582.036545 | L84: =+VLOOKUP(C84,'Anexo_GL '!$B$9:$O$1882,8,0) -> 10.74339862 | N84: =+VLOOKUP(C84,'Anexo_GL '!$B$9:$O$1882,9,0) -> Cumple | P84: =+VLOOKUP(C84,'Anexo_GL '!$B$9:$O$1882,11,0) -> 511.57712 | Q84: =+VLOOKUP(C84,'Anexo_GL '!$B$9:$O$1882,12,0) -> 384.8559 | R84: =+VLOOKUP(C84,'Anexo_GL '!$B$9:$O$1882,13,0) -> 126.72122 | S84: =+VLOOKUP(C84,'Anexo_GL '!$B$9:$O$1882,14,0) -> Cumple
A85: 010516 : MD DE SAN CRISTOBAL DE OLTO | B85: 58 | C85: 010516 | D85: AMAZONAS | E85: MD DE SAN CRISTOBAL DE OLTO | F85: =+VLOOKUP(C85,'Anexo_GL '!$B$9:$O$1882,4,0) -> 25.75778 | H85: =+VLOOKUP(C85,'Anexo_GL '!$B$9:$O$1882,5,0) -> 546.7938375 | I85: =+VLOOKUP(C85,'Anexo_GL '!$B$9:$O$1882,6,0) -> 0.00012 | J85: =+VLOOKUP(C85,'Anexo_GL '!$B$9:$O$1882,7,0) -> 521.0360575 | L85: =+VLOOKUP(C85,'Anexo_GL '!$B$9:$O$1882,8,0) -> 4.710693178 | N85: =+VLOOKUP(C85,'Anexo_GL '!$B$9:$O$1882,9,0) -> Cumple | P85: =+VLOOKUP(C85,'Anexo_GL '!$B$9:$O$1882,11,0) -> 471.62967 | Q85: =+VLOOKUP(C85,'Anexo_GL '!$B$9:$O$1882,12,0) -> 253.84712 | R85: =+VLOOKUP(C85,'Anexo_GL '!$B$9:$O$1882,13,0) -> 217.78255 | S85: =+VLOOKUP(C85,'Anexo_GL '!$B$9:$O$1882,14,0) -> Cumple
A86: 010517 : MD DE SAN FRANCISCO DE YESO | B86: 59 | C86: 010517 | D86: AMAZONAS | E86: MD DE SAN FRANCISCO DE YESO | F86: =+VLOOKUP(C86,'Anexo_GL '!$B$9:$O$1882,4,0) -> 19.84001 | H86: =+VLOOKUP(C86,'Anexo_GL '!$B$9:$O$1882,5,0) -> 517.249655 | I86: =+VLOOKUP(C86,'Anexo_GL '!$B$9:$O$1882,6,0) -> 0.00015 | J86: =+VLOOKUP(C86,'Anexo_GL '!$B$9:$O$1882,7,0) -> 497.409645 | L86: =+VLOOKUP(C86,'Anexo_GL '!$B$9:$O$1882,8,0) -> 3.835673897 | N86: =+VLOOKUP(C86,'Anexo_GL '!$B$9:$O$1882,9,0) -> Cumple | P86: =+VLOOKUP(C86,'Anexo_GL '!$B$9:$O$1882,11,0) -> 473.47665 | Q86: =+VLOOKUP(C86,'Anexo_GL '!$B$9:$O$1882,12,0) -> 306.84859 | R86: =+VLOOKUP(C86,'Anexo_GL '!$B$9:$O$1882,13,0) -> 166.62806 | S86: =+VLOOKUP(C86,'Anexo_GL '!$B$9:$O$1882,14,0) -> Cumple
A87: 010518 : MD DE SAN JERONIMO DE PACLAS | B87: 60 | C87: 010518 | D87: AMAZONAS | E87: MD DE SAN JERONIMO DE PACLAS | F87: =+VLOOKUP(C87,'Anexo_GL '!$B$9:$O$1882,4,0) -> 37.5929 | H87: =+VLOOKUP(C87,'Anexo_GL '!$B$9:$O$1882,5,0) -> 542.778955 | I87: =+VLOOKUP(C87,'Anexo_GL '!$B$9:$O$1882,6,0) -> 0.00016 | J87: =+VLOOKUP(C87,'Anexo_GL '!$B$9:$O$1882,7,0) -> 505.186055 | L87: =+VLOOKUP(C87,'Anexo_GL '!$B$9:$O$1882,8,0) -> 6.926005449 | N87: =+VLOOKUP(C87,'Anexo_GL '!$B$9:$O$1882,9,0) -> Cumple | P87: =+VLOOKUP(C87,'Anexo_GL '!$B$9:$O$1882,11,0) -> 456.59374 | Q87: =+VLOOKUP(C87,'Anexo_GL '!$B$9:$O$1882,12,0) -> 282.09885 | R87: =+VLOOKUP(C87,'Anexo_GL '!$B$9:$O$1882,13,0) -> 174.49489 | S87: =+VLOOKUP(C87,'Anexo_GL '!$B$9:$O$1882,14,0) -> Cumple
A88: 010519 : MD DE SAN JUAN DE LOPECANCHA | B88: 61 | C88: 010519 | D88: AMAZONAS | E88: MD DE SAN JUAN DE LOPECANCHA | F88: =+VLOOKUP(C88,'Anexo_GL '!$B$9:$O$1882,4,0) -> 969.54402 | H88: =+VLOOKUP(C88,'Anexo_GL '!$B$9:$O$1882,5,0) -> 647.71707 | I88: =+VLOOKUP(C88,'Anexo_GL '!$B$9:$O$1882,6,0) -> 9e-05 | J88: =+VLOOKUP(C88,'Anexo_GL '!$B$9:$O$1882,7,0) -> 0 | L88: =+VLOOKUP(C88,'Anexo_GL '!$B$9:$O$1882,8,0) -> 149.6863468 | N88: =+VLOOKUP(C88,'Anexo_GL '!$B$9:$O$1882,9,0) -> No Cumple | P88: =+VLOOKUP(C88,'Anexo_GL '!$B$9:$O$1882,11,0) -> 463.44197 | Q88: =+VLOOKUP(C88,'Anexo_GL '!$B$9:$O$1882,12,0) -> 235.16869 | R88: =+VLOOKUP(C88,'Anexo_GL '!$B$9:$O$1882,13,0) -> 228.27328 | S88: =+VLOOKUP(C88,'Anexo_GL '!$B$9:$O$1882,14,0) -> Cumple
A89: 010520 : MD DE SANTA CATALINA | B89: 62 | C89: 010520 | D89: AMAZONAS | E89: MD DE SANTA CATALINA | F89: =+VLOOKUP(C89,'Anexo_GL '!$B$9:$O$1882,4,0) -> 49.39260001 | H89: =+VLOOKUP(C89,'Anexo_GL '!$B$9:$O$1882,5,0) -> 831.525195 | I89: =+VLOOKUP(C89,'Anexo_GL '!$B$9:$O$1882,6,0) -> 0.00047 | J89: =+VLOOKUP(C89,'Anexo_GL '!$B$9:$O$1882,7,0) -> 782.132595 | L89: =+VLOOKUP(C89,'Anexo_GL '!$B$9:$O$1882,8,0) -> 5.940000412 | N89: =+VLOOKUP(C89,'Anexo_GL '!$B$9:$O$1882,9,0) -> Cumple | P89: =+VLOOKUP(C89,'Anexo_GL '!$B$9:$O$1882,11,0) -> 742.19286 | Q89: =+VLOOKUP(C89,'Anexo_GL '!$B$9:$O$1882,12,0) -> 358.76275 | R89: =+VLOOKUP(C89,'Anexo_GL '!$B$9:$O$1882,13,0) -> 383.43011 | S89: =+VLOOKUP(C89,'Anexo_GL '!$B$9:$O$1882,14,0) -> Cumple
A90: 010521 : MD DE SANTO TOMAS | B90: 63 | C90: 010521 | D90: AMAZONAS | E90: MD DE SANTO TOMAS | F90: =+VLOOKUP(C90,'Anexo_GL '!$B$9:$O$1882,4,0) -> 164.11109 | H90: =+VLOOKUP(C90,'Anexo_GL '!$B$9:$O$1882,5,0) -> 1302.033042 | I90: =+VLOOKUP(C90,'Anexo_GL '!$B$9:$O$1882,6,0) -> 0.00108 | J90: =+VLOOKUP(C90,'Anexo_GL '!$B$9:$O$1882,7,0) -> 1137.921952 | L90: =+VLOOKUP(C90,'Anexo_GL '!$B$9:$O$1882,8,0) -> 12.60421853 | N90: =+VLOOKUP(C90,'Anexo_GL '!$B$9:$O$1882,9,0) -> Cumple | P90: =+VLOOKUP(C90,'Anexo_GL '!$B$9:$O$1882,11,0) -> 1196.17165 | Q90: =+VLOOKUP(C90,'Anexo_GL '!$B$9:$O$1882,12,0) -> 897.15742 | R90: =+VLOOKUP(C90,'Anexo_GL '!$B$9:$O$1882,13,0) -> 299.01423 | S90: =+VLOOKUP(C90,'Anexo_GL '!$B$9:$O$1882,14,0) -> Cumple
A91: 010522 : MD DE TINGO | B91: 64 | C91: 010522 | D91: AMAZONAS | E91: MD DE TINGO | F91: =+VLOOKUP(C91,'Anexo_GL '!$B$9:$O$1882,4,0) -> 65.10034 | H91: =+VLOOKUP(C91,'Anexo_GL '!$B$9:$O$1882,5,0) -> 577.191375 | I91: =+VLOOKUP(C91,'Anexo_GL '!$B$9:$O$1882,6,0) -> 0.00016 | J91: =+VLOOKUP(C91,'Anexo_GL '!$B$9:$O$1882,7,0) -> 512.091035 | L91: =+VLOOKUP(C91,'Anexo_GL '!$B$9:$O$1882,8,0) -> 11.27881372 | N91: =+VLOOKUP(C91,'Anexo_GL '!$B$9:$O$1882,9,0) -> Cumple | P91: =+VLOOKUP(C91,'Anexo_GL '!$B$9:$O$1882,11,0) -> 505.2199 | Q91: =+VLOOKUP(C91,'Anexo_GL '!$B$9:$O$1882,12,0) -> 576.7178 | R91: =+VLOOKUP(C91,'Anexo_GL '!$B$9:$O$1882,13,0) -> -71.4979 | S91: =+VLOOKUP(C91,'Anexo_GL '!$B$9:$O$1882,14,0) -> No Cumple
A92: 010523 : MD DE TRITA | B92: 65 | C92: 010523 | D92: AMAZONAS | E92: MD DE TRITA | F92: =+VLOOKUP(C92,'Anexo_GL '!$B$9:$O$1882,4,0) -> 5.794560003 | H92: =+VLOOKUP(C92,'Anexo_GL '!$B$9:$O$1882,5,0) -> 500.18563 | I92: =+VLOOKUP(C92,'Anexo_GL '!$B$9:$O$1882,6,0) -> 0.00044 | J92: =+VLOOKUP(C92,'Anexo_GL '!$B$9:$O$1882,7,0) -> 494.39107 | L92: =+VLOOKUP(C92,'Anexo_GL '!$B$9:$O$1882,8,0) -> 1.158481903 | N92: =+VLOOKUP(C92,'Anexo_GL '!$B$9:$O$1882,9,0) -> Cumple | P92: =+VLOOKUP(C92,'Anexo_GL '!$B$9:$O$1882,11,0) -> 601.46764 | Q92: =+VLOOKUP(C92,'Anexo_GL '!$B$9:$O$1882,12,0) -> 248.69646 | R92: =+VLOOKUP(C92,'Anexo_GL '!$B$9:$O$1882,13,0) -> 352.77118 | S92: =+VLOOKUP(C92,'Anexo_GL '!$B$9:$O$1882,14,0) -> Cumple
A93: 010601 : MP DE RODRIGUEZ DE MENDOZA - SAN NICOLAS | B93: 66 | C93: 010601 | D93: AMAZONAS | E93: MP DE RODRIGUEZ DE MENDOZA - SAN NICOLAS | F93: =+VLOOKUP(C93,'Anexo_GL '!$B$9:$O$1882,4,0) -> 5641.87233 | H93: =+VLOOKUP(C93,'Anexo_GL '!$B$9:$O$1882,5,0) -> 5828.725613 | I93: =+VLOOKUP(C93,'Anexo_GL '!$B$9:$O$1882,6,0) -> 0.00053 | J93: =+VLOOKUP(C93,'Anexo_GL '!$B$9:$O$1882,7,0) -> 186.8532825 | L93: =+VLOOKUP(C93,'Anexo_GL '!$B$9:$O$1882,8,0) -> 96.79426868 | N93: =+VLOOKUP(C93,'Anexo_GL '!$B$9:$O$1882,9,0) -> Cumple | P93: =+VLOOKUP(C93,'Anexo_GL '!$B$9:$O$1882,11,0) -> 5904.17279 | Q93: =+VLOOKUP(C93,'Anexo_GL '!$B$9:$O$1882,12,0) -> 4783.45454 | R93: =+VLOOKUP(C93,'Anexo_GL '!$B$9:$O$1882,13,0) -> 1120.71825 | S93: =+VLOOKUP(C93,'Anexo_GL '!$B$9:$O$1882,14,0) -> Cumple
A94: 010602 : MD DE CHIRIMOTO | B94: 67 | C94: 010602 | D94: AMAZONAS | E94: MD DE CHIRIMOTO | F94: =+VLOOKUP(C94,'Anexo_GL '!$B$9:$O$1882,4,0) -> 2106.69637 | H94: =+VLOOKUP(C94,'Anexo_GL '!$B$9:$O$1882,5,0) -> 888.0525125 | I94: =+VLOOKUP(C94,'Anexo_GL '!$B$9:$O$1882,6,0) -> 0.00056 | J94: =+VLOOKUP(C94,'Anexo_GL '!$B$9:$O$1882,7,0) -> 0 | L94: =+VLOOKUP(C94,'Anexo_GL '!$B$9:$O$1882,8,0) -> 237.2265536 | N94: =+VLOOKUP(C94,'Anexo_GL '!$B$9:$O$1882,9,0) -> No Cumple | P94: =+VLOOKUP(C94,'Anexo_GL '!$B$9:$O$1882,11,0) -> 633.30983 | Q94: =+VLOOKUP(C94,'Anexo_GL '!$B$9:$O$1882,12,0) -> 441.77729 | R94: =+VLOOKUP(C94,'Anexo_GL '!$B$9:$O$1882,13,0) -> 191.53254 | S94: =+VLOOKUP(C94,'Anexo_GL '!$B$9:$O$1882,14,0) -> Cumple
A95: 010603 : MD DE COCHAMAL | B95: 68 | C95: 010603 | D95: AMAZONAS | E95: MD DE COCHAMAL | F95: =+VLOOKUP(C95,'Anexo_GL '!$B$9:$O$1882,4,0) -> 231.78839 | H95: =+VLOOKUP(C95,'Anexo_GL '!$B$9:$O$1882,5,0) -> 456.3314575 | I95: =+VLOOKUP(C95,'Anexo_GL '!$B$9:$O$1882,6,0) -> 9e-05 | J95: =+VLOOKUP(C95,'Anexo_GL '!$B$9:$O$1882,7,0) -> 224.5430675 | L95: =+VLOOKUP(C95,'Anexo_GL '!$B$9:$O$1882,8,0) -> 50.79386621 | N95: =+VLOOKUP(C95,'Anexo_GL '!$B$9:$O$1882,9,0) -> Cumple | P95: =+VLOOKUP(C95,'Anexo_GL '!$B$9:$O$1882,11,0) -> 466.56529 | Q95: =+VLOOKUP(C95,'Anexo_GL '!$B$9:$O$1882,12,0) -> 287.68772 | R95: =+VLOOKUP(C95,'Anexo_GL '!$B$9:$O$1882,13,0) -> 178.87757 | S95: =+VLOOKUP(C95,'Anexo_GL '!$B$9:$O$1882,14,0) -> Cumple
A96: 010604 : MD DE HUAMBO | B96: 69 | C96: 010604 | D96: AMAZONAS | E96: MD DE HUAMBO | F96: =+VLOOKUP(C96,'Anexo_GL '!$B$9:$O$1882,4,0) -> 99.63177006 | H96: =+VLOOKUP(C96,'Anexo_GL '!$B$9:$O$1882,5,0) -> 719.8563925 | I96: =+VLOOKUP(C96,'Anexo_GL '!$B$9:$O$1882,6,0) -> 0.00068 | J96: =+VLOOKUP(C96,'Anexo_GL '!$B$9:$O$1882,7,0) -> 620.2246224 | L96: =+VLOOKUP(C96,'Anexo_GL '!$B$9:$O$1882,8,0) -> 13.8405064 | N96: =+VLOOKUP(C96,'Anexo_GL '!$B$9:$O$1882,9,0) -> Cumple | P96: =+VLOOKUP(C96,'Anexo_GL '!$B$9:$O$1882,11,0) -> 673.09522 | Q96: =+VLOOKUP(C96,'Anexo_GL '!$B$9:$O$1882,12,0) -> 474.12527 | R96: =+VLOOKUP(C96,'Anexo_GL '!$B$9:$O$1882,13,0) -> 198.96995 | S96: =+VLOOKUP(C96,'Anexo_GL '!$B$9:$O$1882,14,0) -> Cumple
A97: 010605 : MD DE LIMABAMBA | B97: 70 | C97: 010605 | D97: AMAZONAS | E97: MD DE LIMABAMBA | F97: =+VLOOKUP(C97,'Anexo_GL '!$B$9:$O$1882,4,0) -> 2211.25421 | H97: =+VLOOKUP(C97,'Anexo_GL '!$B$9:$O$1882,5,0) -> 956.65737 | I97: =+VLOOKUP(C97,'Anexo_GL '!$B$9:$O$1882,6,0) -> 0.00073 | J97: =+VLOOKUP(C97,'Anexo_GL '!$B$9:$O$1882,7,0) -> 0 | L97: =+VLOOKUP(C97,'Anexo_GL '!$B$9:$O$1882,8,0) -> 231.1438013 | N97: =+VLOOKUP(C97,'Anexo_GL '!$B$9:$O$1882,9,0) -> No Cumple | P97: =+VLOOKUP(C97,'Anexo_GL '!$B$9:$O$1882,11,0) -> 813.16116 | Q97: =+VLOOKUP(C97,'Anexo_GL '!$B$9:$O$1882,12,0) -> 622.35732 | R97: =+VLOOKUP(C97,'Anexo_GL '!$B$9:$O$1882,13,0) -> 190.80384 | S97: =+VLOOKUP(C97,'Anexo_GL '!$B$9:$O$1882,14,0) -> Cumple
A98: 010606 : MD DE LONGAR | B98: 71 | C98: 010606 | D98: AMAZONAS | E98: MD DE LONGAR | F98: =+VLOOKUP(C98,'Anexo_GL '!$B$9:$O$1882,4,0) -> 69.04142 | H98: =+VLOOKUP(C98,'Anexo_GL '!$B$9:$O$1882,5,0) -> 541.57419 | I98: =+VLOOKUP(C98,'Anexo_GL '!$B$9:$O$1882,6,0) -> 0.00018 | J98: =+VLOOKUP(C98,'Anexo_GL '!$B$9:$O$1882,7,0) -> 472.53277 | L98: =+VLOOKUP(C98,'Anexo_GL '!$B$9:$O$1882,8,0) -> 12.74828477 | N98: =+VLOOKUP(C98,'Anexo_GL '!$B$9:$O$1882,9,0) -> Cumple | P98: =+VLOOKUP(C98,'Anexo_GL '!$B$9:$O$1882,11,0) -> 684.54958 | Q98: =+VLOOKUP(C98,'Anexo_GL '!$B$9:$O$1882,12,0) -> 433.47588 | R98: =+VLOOKUP(C98,'Anexo_GL '!$B$9:$O$1882,13,0) -> 251.0737 | S98: =+VLOOKUP(C98,'Anexo_GL '!$B$9:$O$1882,14,0) -> Cumple
A99: 010607 : MD DE MARISCAL BENAVIDES | B99: 72 | C99: 010607 | D99: AMAZONAS | E99: MD DE MARISCAL BENAVIDES | F99: =+VLOOKUP(C99,'Anexo_GL '!$B$9:$O$1882,4,0) -> 796.66861 | H99: =+VLOOKUP(C99,'Anexo_GL '!$B$9:$O$1882,5,0) -> 998.0894 | I99: =+VLOOKUP(C99,'Anexo_GL '!$B$9:$O$1882,6,0) -> 0.0001 | J99: =+VLOOKUP(C99,'Anexo_GL '!$B$9:$O$1882,7,0) -> 201.42079 | L99: =+VLOOKUP(C99,'Anexo_GL '!$B$9:$O$1882,8,0) -> 79.81936388 | N99: =+VLOOKUP(C99,'Anexo_GL '!$B$9:$O$1882,9,0) -> Cumple | P99: =+VLOOKUP(C99,'Anexo_GL '!$B$9:$O$1882,11,0) -> 675.91482 | Q99: =+VLOOKUP(C99,'Anexo_GL '!$B$9:$O$1882,12,0) -> 480.19632 | R99: =+VLOOKUP(C99,'Anexo_GL '!$B$9:$O$1882,13,0) -> 195.7185 | S99: =+VLOOKUP(C99,'Anexo_GL '!$B$9:$O$1882,14,0) -> Cumple
A100: 010608 : MD DE MILPUC | B100: 73 | C100: 010608 | D100: AMAZONAS | E100: MD DE MILPUC | F100: =+VLOOKUP(C100,'Anexo_GL '!$B$9:$O$1882,4,0) -> 92.57007 | H100: =+VLOOKUP(C100,'Anexo_GL '!$B$9:$O$1882,5,0) -> 497.6422675 | I100: =+VLOOKUP(C100,'Anexo_GL '!$B$9:$O$1882,6,0) -> 0.0001 | J100: =+VLOOKUP(C100,'Anexo_GL '!$B$9:$O$1882,7,0) -> 405.0721975 | L100: =+VLOOKUP(C100,'Anexo_GL '!$B$9:$O$1882,8,0) -> 18.60172981 | N100: =+VLOOKUP(C100,'Anexo_GL '!$B$9:$O$1882,9,0) -> Cumple | P100: =+VLOOKUP(C100,'Anexo_GL '!$B$9:$O$1882,11,0) -> 600.36323 | Q100: =+VLOOKUP(C100,'Anexo_GL '!$B$9:$O$1882,12,0) -> 470.1463 | R100: =+VLOOKUP(C100,'Anexo_GL '!$B$9:$O$1882,13,0) -> 130.21693 | S100: =+VLOOKUP(C100,'Anexo_GL '!$B$9:$O$1882,14,0) -> Cumple
A101: 010609 : MD DE OMIA | B101: 74 | C101: 010609 | D101: AMAZONAS | E101: MD DE OMIA | F101: =+VLOOKUP(C101,'Anexo_GL '!$B$9:$O$1882,4,0) -> 119.2923099 | H101: =+VLOOKUP(C101,'Anexo_GL '!$B$9:$O$1882,5,0) -> 3483.929433 | I101: =+VLOOKUP(C101,'Anexo_GL '!$B$9:$O$1882,6,0) -> 0.00251 | J101: =+VLOOKUP(C101,'Anexo_GL '!$B$9:$O$1882,7,0) -> 3364.637123 | L101: =+VLOOKUP(C101,'Anexo_GL '!$B$9:$O$1882,8,0) -> 3.424073658 | N101: =+VLOOKUP(C101,'Anexo_GL '!$B$9:$O$1882,9,0) -> Cumple | P101: =+VLOOKUP(C101,'Anexo_GL '!$B$9:$O$1882,11,0) -> 4283.23827 | Q101: =+VLOOKUP(C101,'Anexo_GL '!$B$9:$O$1882,12,0) -> 1982.68575 | R101: =+VLOOKUP(C101,'Anexo_GL '!$B$9:$O$1882,13,0) -> 2300.55252 | S101: =+VLOOKUP(C101,'Anexo_GL '!$B$9:$O$1882,14,0) -> Cumple
A102: 010610 : MD DE SANTA ROSA | B102: 75 | C102: 010610 | D102: AMAZONAS | E102: MD DE SANTA ROSA | F102: =+VLOOKUP(C102,'Anexo_GL '!$B$9:$O$1882,4,0) -> 29.03246 | H102: =+VLOOKUP(C102,'Anexo_GL '!$B$9:$O$1882,5,0) -> 497.6251275 | I102: =+VLOOKUP(C102,'Anexo_GL '!$B$9:$O$1882,6,0) -> 5e-05 | J102: =+VLOOKUP(C102,'Anexo_GL '!$B$9:$O$1882,7,0) -> 468.5926675 | L102: =+VLOOKUP(C102,'Anexo_GL '!$B$9:$O$1882,8,0) -> 5.834202976 | N102: =+VLOOKUP(C102,'Anexo_GL '!$B$9:$O$1882,9,0) -> Cumple | P102: =+VLOOKUP(C102,'Anexo_GL '!$B$9:$O$1882,11,0) -> 484.9433 | Q102: =+VLOOKUP(C102,'Anexo_GL '!$B$9:$O$1882,12,0) -> 367.62442 | R102: =+VLOOKUP(C102,'Anexo_GL '!$B$9:$O$1882,13,0) -> 117.31888 | S102: =+VLOOKUP(C102,'Anexo_GL '!$B$9:$O$1882,14,0) -> Cumple
A103: 010611 : MD DE TOTORA | B103: 76 | C103: 010611 | D103: AMAZONAS | E103: MD DE TOTORA | F103: =+VLOOKUP(C103,'Anexo_GL '!$B$9:$O$1882,4,0) -> 110.32345 | H103: =+VLOOKUP(C103,'Anexo_GL '!$B$9:$O$1882,5,0) -> 542.7546975 | I103: =+VLOOKUP(C103,'Anexo_GL '!$B$9:$O$1882,6,0) -> 6e-05 | J103: =+VLOOKUP(C103,'Anexo_GL '!$B$9:$O$1882,7,0) -> 432.4312475 | L103: =+VLOOKUP(C103,'Anexo_GL '!$B$9:$O$1882,8,0) -> 20.32657672 | N103: =+VLOOKUP(C103,'Anexo_GL '!$B$9:$O$1882,9,0) -> Cumple | P103: =+VLOOKUP(C103,'Anexo_GL '!$B$9:$O$1882,11,0) -> 603.42063 | Q103: =+VLOOKUP(C103,'Anexo_GL '!$B$9:$O$1882,12,0) -> 354.9697 | R103: =+VLOOKUP(C103,'Anexo_GL '!$B$9:$O$1882,13,0) -> 248.45093 | S103: =+VLOOKUP(C103,'Anexo_GL '!$B$9:$O$1882,14,0) -> Cumple
A104: 010612 : MD DE VISTA ALEGRE | B104: 77 | C104: 010612 | D104: AMAZONAS | E104: MD DE VISTA ALEGRE | F104: =+VLOOKUP(C104,'Anexo_GL '!$B$9:$O$1882,4,0) -> 55.21213 | H104: =+VLOOKUP(C104,'Anexo_GL '!$B$9:$O$1882,5,0) -> 1097.908547 | I104: =+VLOOKUP(C104,'Anexo_GL '!$B$9:$O$1882,6,0) -> 0.00108 | J104: =+VLOOKUP(C104,'Anexo_GL '!$B$9:$O$1882,7,0) -> 1042.696417 | L104: =+VLOOKUP(C104,'Anexo_GL '!$B$9:$O$1882,8,0) -> 5.028845993 | N104: =+VLOOKUP(C104,'Anexo_GL '!$B$9:$O$1882,9,0) -> Cumple | P104: =+VLOOKUP(C104,'Anexo_GL '!$B$9:$O$1882,11,0) -> 1171.8134 | Q104: =+VLOOKUP(C104,'Anexo_GL '!$B$9:$O$1882,12,0) -> 447.18571 | R104: =+VLOOKUP(C104,'Anexo_GL '!$B$9:$O$1882,13,0) -> 724.62769 | S104: =+VLOOKUP(C104,'Anexo_GL '!$B$9:$O$1882,14,0) -> Cumple
A105: 010701 : MUNICIPALIDAD PROVINCIA DE UTCUBAMBA - BAGUA GRANDE | B105: 78 | C105: 010701 | D105: AMAZONAS | E105: MUNICIPALIDAD PROVINCIA DE UTCUBAMBA - BAGUA GRANDE | F105: =+VLOOKUP(C105,'Anexo_GL '!$B$9:$O$1882,4,0) -> 2748.596413 | H105: =+VLOOKUP(C105,'Anexo_GL '!$B$9:$O$1882,5,0) -> 25543.03734 | I105: =+VLOOKUP(C105,'Anexo_GL '!$B$9:$O$1882,6,0) -> 0.98886 | J105: =+VLOOKUP(C105,'Anexo_GL '!$B$9:$O$1882,7,0) -> 22794.44093 | L105: =+VLOOKUP(C105,'Anexo_GL '!$B$9:$O$1882,8,0) -> 10.7606483 | N105: =+VLOOKUP(C105,'Anexo_GL '!$B$9:$O$1882,9,0) -> Cumple | P105: =+VLOOKUP(C105,'Anexo_GL '!$B$9:$O$1882,11,0) -> 26894.17328 | Q105: =+VLOOKUP(C105,'Anexo_GL '!$B$9:$O$1882,12,0) -> 19701.86559 | R105: =+VLOOKUP(C105,'Anexo_GL '!$B$9:$O$1882,13,0) -> 7192.30769 | S105: =+VLOOKUP(C105,'Anexo_GL '!$B$9:$O$1882,14,0) -> Cumple
A106: 010702 : MD DE CAJARURO | B106: 79 | C106: 010702 | D106: AMAZONAS | E106: MD DE CAJARURO | F106: =+VLOOKUP(C106,'Anexo_GL '!$B$9:$O$1882,4,0) -> 2732.49588 | H106: =+VLOOKUP(C106,'Anexo_GL '!$B$9:$O$1882,5,0) -> 9492.787947 | I106: =+VLOOKUP(C106,'Anexo_GL '!$B$9:$O$1882,6,0) -> 0.80291 | J106: =+VLOOKUP(C106,'Anexo_GL '!$B$9:$O$1882,7,0) -> 6760.292068 | L106: =+VLOOKUP(C106,'Anexo_GL '!$B$9:$O$1882,8,0) -> 28.78496702 | N106: =+VLOOKUP(C106,'Anexo_GL '!$B$9:$O$1882,9,0) -> Cumple | P106: =+VLOOKUP(C106,'Anexo_GL '!$B$9:$O$1882,11,0) -> 9931.72258 | Q106: =+VLOOKUP(C106,'Anexo_GL '!$B$9:$O$1882,12,0) -> 5914.5318 | R106: =+VLOOKUP(C106,'Anexo_GL '!$B$9:$O$1882,13,0) -> 4017.19078 | S106: =+VLOOKUP(C106,'Anexo_GL '!$B$9:$O$1882,14,0) -> Cumple
A107: 010703 : MD DE CUMBA | B107: 80 | C107: 010703 | D107: AMAZONAS | E107: MD DE CUMBA | F107: =+VLOOKUP(C107,'Anexo_GL '!$B$9:$O$1882,4,0) -> 80.84093 | H107: =+VLOOKUP(C107,'Anexo_GL '!$B$9:$O$1882,5,0) -> 3231.440163 | I107: =+VLOOKUP(C107,'Anexo_GL '!$B$9:$O$1882,6,0) -> 0.00261 | J107: =+VLOOKUP(C107,'Anexo_GL '!$B$9:$O$1882,7,0) -> 3150.599232 | L107: =+VLOOKUP(C107,'Anexo_GL '!$B$9:$O$1882,8,0) -> 2.501699736 | N107: =+VLOOKUP(C107,'Anexo_GL '!$B$9:$O$1882,9,0) -> Cumple | P107: =+VLOOKUP(C107,'Anexo_GL '!$B$9:$O$1882,11,0) -> 2831.05623 | Q107: =+VLOOKUP(C107,'Anexo_GL '!$B$9:$O$1882,12,0) -> 2173.2756 | R107: =+VLOOKUP(C107,'Anexo_GL '!$B$9:$O$1882,13,0) -> 657.78063 | S107: =+VLOOKUP(C107,'Anexo_GL '!$B$9:$O$1882,14,0) -> Cumple
A108: 010704 : MD DE EL MILAGRO | B108: 81 | C108: 010704 | D108: AMAZONAS | E108: MD DE EL MILAGRO | F108: =+VLOOKUP(C108,'Anexo_GL '!$B$9:$O$1882,4,0) -> 478.09522 | H108: =+VLOOKUP(C108,'Anexo_GL '!$B$9:$O$1882,5,0) -> 2583.795697 | I108: =+VLOOKUP(C108,'Anexo_GL '!$B$9:$O$1882,6,0) -> 0.00145 | J108: =+VLOOKUP(C108,'Anexo_GL '!$B$9:$O$1882,7,0) -> 2105.700478 | L108: =+VLOOKUP(C108,'Anexo_GL '!$B$9:$O$1882,8,0) -> 18.50359997 | N108: =+VLOOKUP(C108,'Anexo_GL '!$B$9:$O$1882,9,0) -> Cumple | P108: =+VLOOKUP(C108,'Anexo_GL '!$B$9:$O$1882,11,0) -> 2415.0167 | Q108: =+VLOOKUP(C108,'Anexo_GL '!$B$9:$O$1882,12,0) -> 2092.63774 | R108: =+VLOOKUP(C108,'Anexo_GL '!$B$9:$O$1882,13,0) -> 322.37896 | S108: =+VLOOKUP(C108,'Anexo_GL '!$B$9:$O$1882,14,0) -> Cumple
A109: 010705 : MD DE JAMALCA | B109: 82 | C109: 010705 | D109: AMAZONAS | E109: MD DE JAMALCA | F109: =+VLOOKUP(C109,'Anexo_GL '!$B$9:$O$1882,4,0) -> 1019.23433 | H109: =+VLOOKUP(C109,'Anexo_GL '!$B$9:$O$1882,5,0) -> 3395.683408 | I109: =+VLOOKUP(C109,'Anexo_GL '!$B$9:$O$1882,6,0) -> 0.0024 | J109: =+VLOOKUP(C109,'Anexo_GL '!$B$9:$O$1882,7,0) -> 2376.449077 | L109: =+VLOOKUP(C109,'Anexo_GL '!$B$9:$O$1882,8,0) -> 30.01558766 | N109: =+VLOOKUP(C109,'Anexo_GL '!$B$9:$O$1882,9,0) -> Cumple | P109: =+VLOOKUP(C109,'Anexo_GL '!$B$9:$O$1882,11,0) -> 3505.1486 | Q109: =+VLOOKUP(C109,'Anexo_GL '!$B$9:$O$1882,12,0) -> 2173.26054 | R109: =+VLOOKUP(C109,'Anexo_GL '!$B$9:$O$1882,13,0) -> 1331.88806 | S109: =+VLOOKUP(C109,'Anexo_GL '!$B$9:$O$1882,14,0) -> Cumple
A110: 010706 : MD DE LONYA GRANDE | B110: 83 | C110: 010706 | D110: AMAZONAS | E110: MD DE LONYA GRANDE | F110: =+VLOOKUP(C110,'Anexo_GL '!$B$9:$O$1882,4,0) -> 740.3220899 | H110: =+VLOOKUP(C110,'Anexo_GL '!$B$9:$O$1882,5,0) -> 3323.885938 | I110: =+VLOOKUP(C110,'Anexo_GL '!$B$9:$O$1882,6,0) -> 0.00306 | J110: =+VLOOKUP(C110,'Anexo_GL '!$B$9:$O$1882,7,0) -> 2583.563848 | L110: =+VLOOKUP(C110,'Anexo_GL '!$B$9:$O$1882,8,0) -> 22.27278865 | N110: =+VLOOKUP(C110,'Anexo_GL '!$B$9:$O$1882,9,0) -> Cumple | P110: =+VLOOKUP(C110,'Anexo_GL '!$B$9:$O$1882,11,0) -> 3289.4235 | Q110: =+VLOOKUP(C110,'Anexo_GL '!$B$9:$O$1882,12,0) -> 2230.14266 | R110: =+VLOOKUP(C110,'Anexo_GL '!$B$9:$O$1882,13,0) -> 1059.28084 | S110: =+VLOOKUP(C110,'Anexo_GL '!$B$9:$O$1882,14,0) -> Cumple
A111: 010707 : MD DE YAMON | B111: 84 | C111: 010707 | D111: AMAZONAS | E111: MD DE YAMON | F111: =+VLOOKUP(C111,'Anexo_GL '!$B$9:$O$1882,4,0) -> 1041.32422 | H111: =+VLOOKUP(C111,'Anexo_GL '!$B$9:$O$1882,5,0) -> 1557.296885 | I111: =+VLOOKUP(C111,'Anexo_GL '!$B$9:$O$1882,6,0) -> 0.00072 | J111: =+VLOOKUP(C111,'Anexo_GL '!$B$9:$O$1882,7,0) -> 515.972665 | L111: =+VLOOKUP(C111,'Anexo_GL '!$B$9:$O$1882,8,0) -> 66.86741815 | N111: =+VLOOKUP(C111,'Anexo_GL '!$B$9:$O$1882,9,0) -> Cumple | P111: =+VLOOKUP(C111,'Anexo_GL '!$B$9:$O$1882,11,0) -> 1364.8004 | Q111: =+VLOOKUP(C111,'Anexo_GL '!$B$9:$O$1882,12,0) -> 911.04074 | R111: =+VLOOKUP(C111,'Anexo_GL '!$B$9:$O$1882,13,0) -> 453.75966 | S111: =+VLOOKUP(C111,'Anexo_GL '!$B$9:$O$1882,14,0) -> Cumple
A112: 020101 : MP DE HUARAZ | B112: 85 | C112: 020101 | D112: ANCASH | E112: MP DE HUARAZ | F112: =+VLOOKUP(C112,'Anexo_GL '!$B$9:$O$1882,4,0) -> 19306.41709 | H112: =+VLOOKUP(C112,'Anexo_GL '!$B$9:$O$1882,5,0) -> 34424.14881 | I112: =+VLOOKUP(C112,'Anexo_GL '!$B$9:$O$1882,6,0) -> 18515.45932 | J112: =+VLOOKUP(C112,'Anexo_GL '!$B$9:$O$1882,7,0) -> 15117.73172 | L112: =+VLOOKUP(C112,'Anexo_GL '!$B$9:$O$1882,8,0) -> 56.08393456 | N112: =+VLOOKUP(C112,'Anexo_GL '!$B$9:$O$1882,9,0) -> Cumple | P112: =+VLOOKUP(C112,'Anexo_GL '!$B$9:$O$1882,11,0) -> 38455.20694 | Q112: =+VLOOKUP(C112,'Anexo_GL '!$B$9:$O$1882,12,0) -> 29524.64445 | R112: =+VLOOKUP(C112,'Anexo_GL '!$B$9:$O$1882,13,0) -> 8930.56249 | S112: =+VLOOKUP(C112,'Anexo_GL '!$B$9:$O$1882,14,0) -> Exonerado
A113: 020102 : MD DE COCHABAMBA | B113: 86 | C113: 020102 | D113: ANCASH | E113: MD DE COCHABAMBA | F113: =+VLOOKUP(C113,'Anexo_GL '!$B$9:$O$1882,4,0) -> 182.89438 | H113: =+VLOOKUP(C113,'Anexo_GL '!$B$9:$O$1882,5,0) -> 1595.253732 | I113: =+VLOOKUP(C113,'Anexo_GL '!$B$9:$O$1882,6,0) -> 1808.43529 | J113: =+VLOOKUP(C113,'Anexo_GL '!$B$9:$O$1882,7,0) -> 1625.54091 | L113: =+VLOOKUP(C113,'Anexo_GL '!$B$9:$O$1882,8,0) -> 10.11340472 | N113: =+VLOOKUP(C113,'Anexo_GL '!$B$9:$O$1882,9,0) -> Cumple | P113: =+VLOOKUP(C113,'Anexo_GL '!$B$9:$O$1882,11,0) -> 1956.99612 | Q113: =+VLOOKUP(C113,'Anexo_GL '!$B$9:$O$1882,12,0) -> 892.0623 | R113: =+VLOOKUP(C113,'Anexo_GL '!$B$9:$O$1882,13,0) -> 1064.93382 | S113: =+VLOOKUP(C113,'Anexo_GL '!$B$9:$O$1882,14,0) -> Exonerado
A114: 020103 : MD DE COLCABAMBA | B114: 87 | C114: 020103 | D114: ANCASH | E114: MD DE COLCABAMBA | F114: =+VLOOKUP(C114,'Anexo_GL '!$B$9:$O$1882,4,0) -> 63.97627 | H114: =+VLOOKUP(C114,'Anexo_GL '!$B$9:$O$1882,5,0) -> 729.9952225 | I114: =+VLOOKUP(C114,'Anexo_GL '!$B$9:$O$1882,6,0) -> 536.1948 | J114: =+VLOOKUP(C114,'Anexo_GL '!$B$9:$O$1882,7,0) -> 666.0189525 | L114: =+VLOOKUP(C114,'Anexo_GL '!$B$9:$O$1882,8,0) -> 8.763929958 | N114: =+VLOOKUP(C114,'Anexo_GL '!$B$9:$O$1882,9,0) -> Cumple | P114: =+VLOOKUP(C114,'Anexo_GL '!$B$9:$O$1882,11,0) -> 957.71517 | Q114: =+VLOOKUP(C114,'Anexo_GL '!$B$9:$O$1882,12,0) -> 536.5885 | R114: =+VLOOKUP(C114,'Anexo_GL '!$B$9:$O$1882,13,0) -> 421.12667 | S114: =+VLOOKUP(C114,'Anexo_GL '!$B$9:$O$1882,14,0) -> Exonerado
A115: 020104 : MD DE HUANCHAY | B115: 88 | C115: 020104 | D115: ANCASH | E115: MD DE HUANCHAY | F115: =+VLOOKUP(C115,'Anexo_GL '!$B$9:$O$1882,4,0) -> 61.66078004 | H115: =+VLOOKUP(C115,'Anexo_GL '!$B$9:$O$1882,5,0) -> 1512.058442 | I115: =+VLOOKUP(C115,'Anexo_GL '!$B$9:$O$1882,6,0) -> 1589.13227 | J115: =+VLOOKUP(C115,'Anexo_GL '!$B$9:$O$1882,7,0) -> 1527.47149 | L115: =+VLOOKUP(C115,'Anexo_GL '!$B$9:$O$1882,8,0) -> 3.880154044 | N115: =+VLOOKUP(C115,'Anexo_GL '!$B$9:$O$1882,9,0) -> Cumple | P115: =+VLOOKUP(C115,'Anexo_GL '!$B$9:$O$1882,11,0) -> 1779.9459 | Q115: =+VLOOKUP(C115,'Anexo_GL '!$B$9:$O$1882,12,0) -> 817.00017 | R115: =+VLOOKUP(C115,'Anexo_GL '!$B$9:$O$1882,13,0) -> 962.94573 | S115: =+VLOOKUP(C115,'Anexo_GL '!$B$9:$O$1882,14,0) -> Exonerado
A116: 020105 : MD DE INDEPENDENCIA | B116: 89 | C116: 020105 | D116: ANCASH | E116: MD DE INDEPENDENCIA | F116: =+VLOOKUP(C116,'Anexo_GL '!$B$9:$O$1882,4,0) -> 12982.62657 | H116: =+VLOOKUP(C116,'Anexo_GL '!$B$9:$O$1882,5,0) -> 27088.90838 | I116: =+VLOOKUP(C116,'Anexo_GL '!$B$9:$O$1882,6,0) -> 26767.46598 | J116: =+VLOOKUP(C116,'Anexo_GL '!$B$9:$O$1882,7,0) -> 14106.2818 | L116: =+VLOOKUP(C116,'Anexo_GL '!$B$9:$O$1882,8,0) -> 47.9259865 | N116: =+VLOOKUP(C116,'Anexo_GL '!$B$9:$O$1882,9,0) -> Cumple | P116: =+VLOOKUP(C116,'Anexo_GL '!$B$9:$O$1882,11,0) -> 30916.33648 | Q116: =+VLOOKUP(C116,'Anexo_GL '!$B$9:$O$1882,12,0) -> 13309.3537 | R116: =+VLOOKUP(C116,'Anexo_GL '!$B$9:$O$1882,13,0) -> 17606.98278 | S116: =+VLOOKUP(C116,'Anexo_GL '!$B$9:$O$1882,14,0) -> Exonerado
A117: 020106 : MD DE JANGAS | B117: 90 | C117: 020106 | D117: ANCASH | E117: MD DE JANGAS | F117: =+VLOOKUP(C117,'Anexo_GL '!$B$9:$O$1882,4,0) -> 40.36236 | H117: =+VLOOKUP(C117,'Anexo_GL '!$B$9:$O$1882,5,0) -> 3443.010165 | I117: =+VLOOKUP(C117,'Anexo_GL '!$B$9:$O$1882,6,0) -> 3900.75325 | J117: =+VLOOKUP(C117,'Anexo_GL '!$B$9:$O$1882,7,0) -> 3860.39089 | L117: =+VLOOKUP(C117,'Anexo_GL '!$B$9:$O$1882,8,0) -> 1.034732458 | N117: =+VLOOKUP(C117,'Anexo_GL '!$B$9:$O$1882,9,0) -> Cumple | P117: =+VLOOKUP(C117,'Anexo_GL '!$B$9:$O$1882,11,0) -> 3826.57972 | Q117: =+VLOOKUP(C117,'Anexo_GL '!$B$9:$O$1882,12,0) -> 1617.48974 | R117: =+VLOOKUP(C117,'Anexo_GL '!$B$9:$O$1882,13,0) -> 2209.08998 | S117: =+VLOOKUP(C117,'Anexo_GL '!$B$9:$O$1882,14,0) -> Exonerado
A118: 020107 : MD DE LA LIBERTAD | B118: 91 | C118: 020107 | D118: ANCASH | E118: MD DE LA LIBERTAD | F118: =+VLOOKUP(C118,'Anexo_GL '!$B$9:$O$1882,4,0) -> 151.32548 | H118: =+VLOOKUP(C118,'Anexo_GL '!$B$9:$O$1882,5,0) -> 1205.411235 | I118: =+VLOOKUP(C118,'Anexo_GL '!$B$9:$O$1882,6,0) -> 792.67248 | J118: =+VLOOKUP(C118,'Anexo_GL '!$B$9:$O$1882,7,0) -> 1054.085755 | L118: =+VLOOKUP(C118,'Anexo_GL '!$B$9:$O$1882,8,0) -> 12.55384682 | N118: =+VLOOKUP(C118,'Anexo_GL '!$B$9:$O$1882,9,0) -> Cumple | P118: =+VLOOKUP(C118,'Anexo_GL '!$B$9:$O$1882,11,0) -> 1566.20699 | Q118: =+VLOOKUP(C118,'Anexo_GL '!$B$9:$O$1882,12,0) -> 854.69353 | R118: =+VLOOKUP(C118,'Anexo_GL '!$B$9:$O$1882,13,0) -> 711.51346 | S118: =+VLOOKUP(C118,'Anexo_GL '!$B$9:$O$1882,14,0) -> Exonerado
A119: 020108 : MD DE OLLEROS | B119: 92 | C119: 020108 | D119: ANCASH | E119: MD DE OLLEROS | F119: =+VLOOKUP(C119,'Anexo_GL '!$B$9:$O$1882,4,0) -> 807.087841 | H119: =+VLOOKUP(C119,'Anexo_GL '!$B$9:$O$1882,5,0) -> 1259.685277 | I119: =+VLOOKUP(C119,'Anexo_GL '!$B$9:$O$1882,6,0) -> 1246.40439 | J119: =+VLOOKUP(C119,'Anexo_GL '!$B$9:$O$1882,7,0) -> 452.5974365 | L119: =+VLOOKUP(C119,'Anexo_GL '!$B$9:$O$1882,8,0) -> 64.07059409 | N119: =+VLOOKUP(C119,'Anexo_GL '!$B$9:$O$1882,9,0) -> Cumple | P119: =+VLOOKUP(C119,'Anexo_GL '!$B$9:$O$1882,11,0) -> 1429.21652 | Q119: =+VLOOKUP(C119,'Anexo_GL '!$B$9:$O$1882,12,0) -> 794.23555 | R119: =+VLOOKUP(C119,'Anexo_GL '!$B$9:$O$1882,13,0) -> 634.98097 | S119: =+VLOOKUP(C119,'Anexo_GL '!$B$9:$O$1882,14,0) -> Exonerado
A120: 020109 : MD DE PAMPAS | B120: 93 | C120: 020109 | D120: ANCASH | E120: MD DE PAMPAS | F120: =+VLOOKUP(C120,'Anexo_GL '!$B$9:$O$1882,4,0) -> 303.6496 | H120: =+VLOOKUP(C120,'Anexo_GL '!$B$9:$O$1882,5,0) -> 1402.70073 | I120: =+VLOOKUP(C120,'Anexo_GL '!$B$9:$O$1882,6,0) -> 1072.26258 | J120: =+VLOOKUP(C120,'Anexo_GL '!$B$9:$O$1882,7,0) -> 1099.05113 | L120: =+VLOOKUP(C120,'Anexo_GL '!$B$9:$O$1882,8,0) -> 21.64749711 | N120: =+VLOOKUP(C120,'Anexo_GL '!$B$9:$O$1882,9,0) -> Cumple | P120: =+VLOOKUP(C120,'Anexo_GL '!$B$9:$O$1882,11,0) -> 1603.72178 | Q120: =+VLOOKUP(C120,'Anexo_GL '!$B$9:$O$1882,12,0) -> 774.07402 | R120: =+VLOOKUP(C120,'Anexo_GL '!$B$9:$O$1882,13,0) -> 829.64776 | S120: =+VLOOKUP(C120,'Anexo_GL '!$B$9:$O$1882,14,0) -> Exonerado
A121: 020110 : MD DE PARIACOTO | B121: 94 | C121: 020110 | D121: ANCASH | E121: MD DE PARIACOTO | F121: =+VLOOKUP(C121,'Anexo_GL '!$B$9:$O$1882,4,0) -> 348.32239 | H121: =+VLOOKUP(C121,'Anexo_GL '!$B$9:$O$1882,5,0) -> 2815.23077 | I121: =+VLOOKUP(C121,'Anexo_GL '!$B$9:$O$1882,6,0) -> 2774.91392 | J121: =+VLOOKUP(C121,'Anexo_GL '!$B$9:$O$1882,7,0) -> 2466.90838 | L121: =+VLOOKUP(C121,'Anexo_GL '!$B$9:$O$1882,8,0) -> 12.37278285 | N121: =+VLOOKUP(C121,'Anexo_GL '!$B$9:$O$1882,9,0) -> Cumple | P121: =+VLOOKUP(C121,'Anexo_GL '!$B$9:$O$1882,11,0) -> 3004.01602 | Q121: =+VLOOKUP(C121,'Anexo_GL '!$B$9:$O$1882,12,0) -> 1643.01278 | R121: =+VLOOKUP(C121,'Anexo_GL '!$B$9:$O$1882,13,0) -> 1361.00324 | S121: =+VLOOKUP(C121,'Anexo_GL '!$B$9:$O$1882,14,0) -> Exonerado
A122: 020111 : MD DE PIRA | B122: 95 | C122: 020111 | D122: ANCASH | E122: MD DE PIRA | F122: =+VLOOKUP(C122,'Anexo_GL '!$B$9:$O$1882,4,0) -> 650.649716 | H122: =+VLOOKUP(C122,'Anexo_GL '!$B$9:$O$1882,5,0) -> 2838.289338 | I122: =+VLOOKUP(C122,'Anexo_GL '!$B$9:$O$1882,6,0) -> 3444.23569 | J122: =+VLOOKUP(C122,'Anexo_GL '!$B$9:$O$1882,7,0) -> 2793.585974 | L122: =+VLOOKUP(C122,'Anexo_GL '!$B$9:$O$1882,8,0) -> 18.89097537 | N122: =+VLOOKUP(C122,'Anexo_GL '!$B$9:$O$1882,9,0) -> Cumple | P122: =+VLOOKUP(C122,'Anexo_GL '!$B$9:$O$1882,11,0) -> 3336.83379 | Q122: =+VLOOKUP(C122,'Anexo_GL '!$B$9:$O$1882,12,0) -> 1088.07983 | R122: =+VLOOKUP(C122,'Anexo_GL '!$B$9:$O$1882,13,0) -> 2248.75396 | S122: =+VLOOKUP(C122,'Anexo_GL '!$B$9:$O$1882,14,0) -> Exonerado
A123: 020112 : MD DE TARICA | B123: 96 | C123: 020112 | D123: ANCASH | E123: MD DE TARICA | F123: =+VLOOKUP(C123,'Anexo_GL '!$B$9:$O$1882,4,0) -> 1026.18854 | H123: =+VLOOKUP(C123,'Anexo_GL '!$B$9:$O$1882,5,0) -> 2832.51923 | I123: =+VLOOKUP(C123,'Anexo_GL '!$B$9:$O$1882,6,0) -> 2934.03186 | J123: =+VLOOKUP(C123,'Anexo_GL '!$B$9:$O$1882,7,0) -> 1907.84332 | L123: =+VLOOKUP(C123,'Anexo_GL '!$B$9:$O$1882,8,0) -> 34.97537139 | N123: =+VLOOKUP(C123,'Anexo_GL '!$B$9:$O$1882,9,0) -> Cumple | P123: =+VLOOKUP(C123,'Anexo_GL '!$B$9:$O$1882,11,0) -> 3438.5958 | Q123: =+VLOOKUP(C123,'Anexo_GL '!$B$9:$O$1882,12,0) -> 1837.62298 | R123: =+VLOOKUP(C123,'Anexo_GL '!$B$9:$O$1882,13,0) -> 1600.97282 | S123: =+VLOOKUP(C123,'Anexo_GL '!$B$9:$O$1882,14,0) -> Exonerado
A124: 020201 : MP DE AIJA | B124: 97 | C124: 020201 | D124: ANCASH | E124: MP DE AIJA | F124: =+VLOOKUP(C124,'Anexo_GL '!$B$9:$O$1882,4,0) -> 122.68566 | H124: =+VLOOKUP(C124,'Anexo_GL '!$B$9:$O$1882,5,0) -> 2430.121305 | I124: =+VLOOKUP(C124,'Anexo_GL '!$B$9:$O$1882,6,0) -> 1096.69625 | J124: =+VLOOKUP(C124,'Anexo_GL '!$B$9:$O$1882,7,0) -> 2307.435645 | L124: =+VLOOKUP(C124,'Anexo_GL '!$B$9:$O$1882,8,0) -> 5.048540571 | N124: =+VLOOKUP(C124,'Anexo_GL '!$B$9:$O$1882,9,0) -> Cumple | P124: =+VLOOKUP(C124,'Anexo_GL '!$B$9:$O$1882,11,0) -> 2496.46223 | Q124: =+VLOOKUP(C124,'Anexo_GL '!$B$9:$O$1882,12,0) -> 1684.7984 | R124: =+VLOOKUP(C124,'Anexo_GL '!$B$9:$O$1882,13,0) -> 811.66383 | S124: =+VLOOKUP(C124,'Anexo_GL '!$B$9:$O$1882,14,0) -> Exonerado
A125: 020202 : MD DE CORIS | B125: 98 | C125: 020202 | D125: ANCASH | E125: MD DE CORIS | F125: =+VLOOKUP(C125,'Anexo_GL '!$B$9:$O$1882,4,0) -> 36.58611999 | H125: =+VLOOKUP(C125,'Anexo_GL '!$B$9:$O$1882,5,0) -> 1679.480045 | I125: =+VLOOKUP(C125,'Anexo_GL '!$B$9:$O$1882,6,0) -> 1935.18522 | J125: =+VLOOKUP(C125,'Anexo_GL '!$B$9:$O$1882,7,0) -> 1898.5991 | L125: =+VLOOKUP(C125,'Anexo_GL '!$B$9:$O$1882,8,0) -> 1.890574587 | N125: =+VLOOKUP(C125,'Anexo_GL '!$B$9:$O$1882,9,0) -> Cumple | P125: =+VLOOKUP(C125,'Anexo_GL '!$B$9:$O$1882,11,0) -> 1886.98279 | Q125: =+VLOOKUP(C125,'Anexo_GL '!$B$9:$O$1882,12,0) -> 718.80597 | R125: =+VLOOKUP(C125,'Anexo_GL '!$B$9:$O$1882,13,0) -> 1168.17682 | S125: =+VLOOKUP(C125,'Anexo_GL '!$B$9:$O$1882,14,0) -> Exonerado
A126: 020203 : MD DE HUACLLAN | B126: 99 | C126: 020203 | D126: ANCASH | E126: MD DE HUACLLAN | F126: =+VLOOKUP(C126,'Anexo_GL '!$B$9:$O$1882,4,0) -> 82.15474 | H126: =+VLOOKUP(C126,'Anexo_GL '!$B$9:$O$1882,5,0) -> 765.7057725 | I126: =+VLOOKUP(C126,'Anexo_GL '!$B$9:$O$1882,6,0) -> 568.87633 | J126: =+VLOOKUP(C126,'Anexo_GL '!$B$9:$O$1882,7,0) -> 683.5510325 | L126: =+VLOOKUP(C126,'Anexo_GL '!$B$9:$O$1882,8,0) -> 10.72928309 | N126: =+VLOOKUP(C126,'Anexo_GL '!$B$9:$O$1882,9,0) -> Cumple | P126: =+VLOOKUP(C126,'Anexo_GL '!$B$9:$O$1882,11,0) -> 900.20168 | Q126: =+VLOOKUP(C126,'Anexo_GL '!$B$9:$O$1882,12,0) -> 454.39556 | R126: =+VLOOKUP(C126,'Anexo_GL '!$B$9:$O$1882,13,0) -> 445.80612 | S126: =+VLOOKUP(C126,'Anexo_GL '!$B$9:$O$1882,14,0) -> Exonerado
A127: 020204 : MD DE LA MERCED | B127: 100 | C127: 020204 | D127: ANCASH | E127: MD DE LA MERCED | F127: =+VLOOKUP(C127,'Anexo_GL '!$B$9:$O$1882,4,0) -> 51.45129 | H127: =+VLOOKUP(C127,'Anexo_GL '!$B$9:$O$1882,5,0) -> 1929.159315 | I127: =+VLOOKUP(C127,'Anexo_GL '!$B$9:$O$1882,6,0) -> 2115.61098 | J127: =+VLOOKUP(C127,'Anexo_GL '!$B$9:$O$1882,7,0) -> 2064.15969 | L127: =+VLOOKUP(C127,'Anexo_GL '!$B$9:$O$1882,8,0) -> 2.431982557 | N127: =+VLOOKUP(C127,'Anexo_GL '!$B$9:$O$1882,9,0) -> Cumple | P127: =+VLOOKUP(C127,'Anexo_GL '!$B$9:$O$1882,11,0) -> 2461.76564 | Q127: =+VLOOKUP(C127,'Anexo_GL '!$B$9:$O$1882,12,0) -> 869.42576 | R127: =+VLOOKUP(C127,'Anexo_GL '!$B$9:$O$1882,13,0) -> 1592.33988 | S127: =+VLOOKUP(C127,'Anexo_GL '!$B$9:$O$1882,14,0) -> Exonerado
A128: 020205 : MD DE SUCCHA | B128: 101 | C128: 020205 | D128: ANCASH | E128: MD DE SUCCHA | F128: =+VLOOKUP(C128,'Anexo_GL '!$B$9:$O$1882,4,0) -> 26.04267001 | H128: =+VLOOKUP(C128,'Anexo_GL '!$B$9:$O$1882,5,0) -> 923.3920975 | I128: =+VLOOKUP(C128,'Anexo_GL '!$B$9:$O$1882,6,0) -> 596.92507 | J128: =+VLOOKUP(C128,'Anexo_GL '!$B$9:$O$1882,7,0) -> 897.3494275 | L128: =+VLOOKUP(C128,'Anexo_GL '!$B$9:$O$1882,8,0) -> 2.820326281 | N128: =+VLOOKUP(C128,'Anexo_GL '!$B$9:$O$1882,9,0) -> Cumple | P128: =+VLOOKUP(C128,'Anexo_GL '!$B$9:$O$1882,11,0) -> 1074.27008 | Q128: =+VLOOKUP(C128,'Anexo_GL '!$B$9:$O$1882,12,0) -> 613.11705 | R128: =+VLOOKUP(C128,'Anexo_GL '!$B$9:$O$1882,13,0) -> 461.15303 | S128: =+VLOOKUP(C128,'Anexo_GL '!$B$9:$O$1882,14,0) -> Exonerado
A129: 020301 : MP DE ANTONIO RAYMONDI - LLAMELLIN | B129: 102 | C129: 020301 | D129: ANCASH | E129: MP DE ANTONIO RAYMONDI - LLAMELLIN | F129: =+VLOOKUP(C129,'Anexo_GL '!$B$9:$O$1882,4,0) -> 1801.4826 | H129: =+VLOOKUP(C129,'Anexo_GL '!$B$9:$O$1882,5,0) -> 3196.055102 | I129: =+VLOOKUP(C129,'Anexo_GL '!$B$9:$O$1882,6,0) -> 1851.05817 | J129: =+VLOOKUP(C129,'Anexo_GL '!$B$9:$O$1882,7,0) -> 1394.572502 | L129: =+VLOOKUP(C129,'Anexo_GL '!$B$9:$O$1882,8,0) -> 56.36581793 | N129: =+VLOOKUP(C129,'Anexo_GL '!$B$9:$O$1882,9,0) -> Cumple | P129: =+VLOOKUP(C129,'Anexo_GL '!$B$9:$O$1882,11,0) -> 4814.83486 | Q129: =+VLOOKUP(C129,'Anexo_GL '!$B$9:$O$1882,12,0) -> 3370.08789 | R129: =+VLOOKUP(C129,'Anexo_GL '!$B$9:$O$1882,13,0) -> 1444.74697 | S129: =+VLOOKUP(C129,'Anexo_GL '!$B$9:$O$1882,14,0) -> Exonerado
A130: 020302 : MD DE ACSO | B130: 103 | C130: 020302 | D130: ANCASH | E130: MD DE ACSO | F130: =+VLOOKUP(C130,'Anexo_GL '!$B$9:$O$1882,4,0) -> 352.74225 | H130: =+VLOOKUP(C130,'Anexo_GL '!$B$9:$O$1882,5,0) -> 1349.898585 | I130: =+VLOOKUP(C130,'Anexo_GL '!$B$9:$O$1882,6,0) -> 1271.59907 | J130: =+VLOOKUP(C130,'Anexo_GL '!$B$9:$O$1882,7,0) -> 997.156335 | L130: =+VLOOKUP(C130,'Anexo_GL '!$B$9:$O$1882,8,0) -> 26.13101858 | N130: =+VLOOKUP(C130,'Anexo_GL '!$B$9:$O$1882,9,0) -> Cumple | P130: =+VLOOKUP(C130,'Anexo_GL '!$B$9:$O$1882,11,0) -> 1470.58195 | Q130: =+VLOOKUP(C130,'Anexo_GL '!$B$9:$O$1882,12,0) -> 871.352 | R130: =+VLOOKUP(C130,'Anexo_GL '!$B$9:$O$1882,13,0) -> 599.22995 | S130: =+VLOOKUP(C130,'Anexo_GL '!$B$9:$O$1882,14,0) -> Exonerado
A131: 020303 : MD DE CHACCHO | B131: 104 | C131: 020303 | D131: ANCASH | E131: MD DE CHACCHO | F131: =+VLOOKUP(C131,'Anexo_GL '!$B$9:$O$1882,4,0) -> 372.41614 | H131: =+VLOOKUP(C131,'Anexo_GL '!$B$9:$O$1882,5,0) -> 1115.99316 | I131: =+VLOOKUP(C131,'Anexo_GL '!$B$9:$O$1882,6,0) -> 1174.30439 | J131: =+VLOOKUP(C131,'Anexo_GL '!$B$9:$O$1882,7,0) -> 801.88825 | L131: =+VLOOKUP(C131,'Anexo_GL '!$B$9:$O$1882,8,0) -> 31.71376546 | N131: =+VLOOKUP(C131,'Anexo_GL '!$B$9:$O$1882,9,0) -> Cumple | P131: =+VLOOKUP(C131,'Anexo_GL '!$B$9:$O$1882,11,0) -> 1337.64063 | Q131: =+VLOOKUP(C131,'Anexo_GL '!$B$9:$O$1882,12,0) -> 655.00993 | R131: =+VLOOKUP(C131,'Anexo_GL '!$B$9:$O$1882,13,0) -> 682.6307 | S131: =+VLOOKUP(C131,'Anexo_GL '!$B$9:$O$1882,14,0) -> Exonerado
A132: 020304 : MD DE CHINGAS | B132: 105 | C132: 020304 | D132: ANCASH | E132: MD DE CHINGAS | F132: =+VLOOKUP(C132,'Anexo_GL '!$B$9:$O$1882,4,0) -> 52.95917007 | H132: =+VLOOKUP(C132,'Anexo_GL '!$B$9:$O$1882,5,0) -> 1110.562538 | I132: =+VLOOKUP(C132,'Anexo_GL '!$B$9:$O$1882,6,0) -> 1133.00036 | J132: =+VLOOKUP(C132,'Anexo_GL '!$B$9:$O$1882,7,0) -> 1080.04119 | L132: =+VLOOKUP(C132,'Anexo_GL '!$B$9:$O$1882,8,0) -> 4.67424124 | N132: =+VLOOKUP(C132,'Anexo_GL '!$B$9:$O$1882,9,0) -> Cumple | P132: =+VLOOKUP(C132,'Anexo_GL '!$B$9:$O$1882,11,0) -> 1309.91157 | Q132: =+VLOOKUP(C132,'Anexo_GL '!$B$9:$O$1882,12,0) -> 711.82949 | R132: =+VLOOKUP(C132,'Anexo_GL '!$B$9:$O$1882,13,0) -> 598.08208 | S132: =+VLOOKUP(C132,'Anexo_GL '!$B$9:$O$1882,14,0) -> Exonerado
A133: 020305 : MD DE MIRGAS | B133: 106 | C133: 020305 | D133: ANCASH | E133: MD DE MIRGAS | F133: =+VLOOKUP(C133,'Anexo_GL '!$B$9:$O$1882,4,0) -> 137.39205 | H133: =+VLOOKUP(C133,'Anexo_GL '!$B$9:$O$1882,5,0) -> 3077.107165 | I133: =+VLOOKUP(C133,'Anexo_GL '!$B$9:$O$1882,6,0) -> 3904.4835 | J133: =+VLOOKUP(C133,'Anexo_GL '!$B$9:$O$1882,7,0) -> 3767.09145 | L133: =+VLOOKUP(C133,'Anexo_GL '!$B$9:$O$1882,8,0) -> 3.518827778 | N133: =+VLOOKUP(C133,'Anexo_GL '!$B$9:$O$1882,9,0) -> Cumple | P133: =+VLOOKUP(C133,'Anexo_GL '!$B$9:$O$1882,11,0) -> 3589.98869 | Q133: =+VLOOKUP(C133,'Anexo_GL '!$B$9:$O$1882,12,0) -> 1565.58764 | R133: =+VLOOKUP(C133,'Anexo_GL '!$B$9:$O$1882,13,0) -> 2024.40105 | S133: =+VLOOKUP(C133,'Anexo_GL '!$B$9:$O$1882,14,0) -> Exonerado
A134: 020306 : MD DE SAN JUAN DE RONTOY | B134: 107 | C134: 020306 | D134: ANCASH | E134: MD DE SAN JUAN DE RONTOY | F134: =+VLOOKUP(C134,'Anexo_GL '!$B$9:$O$1882,4,0) -> 1.90448 | H134: =+VLOOKUP(C134,'Anexo_GL '!$B$9:$O$1882,5,0) -> 1084.762673 | I134: =+VLOOKUP(C134,'Anexo_GL '!$B$9:$O$1882,6,0) -> 1111.89358 | J134: =+VLOOKUP(C134,'Anexo_GL '!$B$9:$O$1882,7,0) -> 1109.9891 | L134: =+VLOOKUP(C134,'Anexo_GL '!$B$9:$O$1882,8,0) -> 0.171282579 | N134: =+VLOOKUP(C134,'Anexo_GL '!$B$9:$O$1882,9,0) -> Cumple | P134: =+VLOOKUP(C134,'Anexo_GL '!$B$9:$O$1882,11,0) -> 1294.98135 | Q134: =+VLOOKUP(C134,'Anexo_GL '!$B$9:$O$1882,12,0) -> 565.55542 | R134: =+VLOOKUP(C134,'Anexo_GL '!$B$9:$O$1882,13,0) -> 729.42593 | S134: =+VLOOKUP(C134,'Anexo_GL '!$B$9:$O$1882,14,0) -> Exonerado
A135: 020401 : MP DE ASUNCION - CHACAS | B135: 108 | C135: 020401 | D135: ANCASH | E135: MP DE ASUNCION - CHACAS | F135: =+VLOOKUP(C135,'Anexo_GL '!$B$9:$O$1882,4,0) -> 1389.01396 | H135: =+VLOOKUP(C135,'Anexo_GL '!$B$9:$O$1882,5,0) -> 3777.910385 | I135: =+VLOOKUP(C135,'Anexo_GL '!$B$9:$O$1882,6,0) -> 2891.3956 | J135: =+VLOOKUP(C135,'Anexo_GL '!$B$9:$O$1882,7,0) -> 2388.896425 | L135: =+VLOOKUP(C135,'Anexo_GL '!$B$9:$O$1882,8,0) -> 36.766726 | N135: =+VLOOKUP(C135,'Anexo_GL '!$B$9:$O$1882,9,0) -> Cumple | P135: =+VLOOKUP(C135,'Anexo_GL '!$B$9:$O$1882,11,0) -> 5216.41275 | Q135: =+VLOOKUP(C135,'Anexo_GL '!$B$9:$O$1882,12,0) -> 3033.23204 | R135: =+VLOOKUP(C135,'Anexo_GL '!$B$9:$O$1882,13,0) -> 2183.18071 | S135: =+VLOOKUP(C135,'Anexo_GL '!$B$9:$O$1882,14,0) -> Exonerado
A136: 020402 : MD DE ACOCHACA | B136: 109 | C136: 020402 | D136: ANCASH | E136: MD DE ACOCHACA | F136: =+VLOOKUP(C136,'Anexo_GL '!$B$9:$O$1882,4,0) -> 1021.49939 | H136: =+VLOOKUP(C136,'Anexo_GL '!$B$9:$O$1882,5,0) -> 2079.976457 | I136: =+VLOOKUP(C136,'Anexo_GL '!$B$9:$O$1882,6,0) -> 2355.46384 | J136: =+VLOOKUP(C136,'Anexo_GL '!$B$9:$O$1882,7,0) -> 1333.96445 | L136: =+VLOOKUP(C136,'Anexo_GL '!$B$9:$O$1882,8,0) -> 43.36722868 | N136: =+VLOOKUP(C136,'Anexo_GL '!$B$9:$O$1882,9,0) -> Cumple | P136: =+VLOOKUP(C136,'Anexo_GL '!$B$9:$O$1882,11,0) -> 2295.36386 | Q136: =+VLOOKUP(C136,'Anexo_GL '!$B$9:$O$1882,12,0) -> 1280.16004 | R136: =+VLOOKUP(C136,'Anexo_GL '!$B$9:$O$1882,13,0) -> 1015.20382 | S136: =+VLOOKUP(C136,'Anexo_GL '!$B$9:$O$1882,14,0) -> Exonerado
A137: 020501 : MP DE BOLOGNESI - CHIQUIAN | B137: 110 | C137: 020501 | D137: ANCASH | E137: MP DE BOLOGNESI - CHIQUIAN | F137: =+VLOOKUP(C137,'Anexo_GL '!$B$9:$O$1882,4,0) -> 1812.774686 | H137: =+VLOOKUP(C137,'Anexo_GL '!$B$9:$O$1882,5,0) -> 4006.875233 | I137: =+VLOOKUP(C137,'Anexo_GL '!$B$9:$O$1882,6,0) -> 1346.7645 | J137: =+VLOOKUP(C137,'Anexo_GL '!$B$9:$O$1882,7,0) -> 2194.100546 | L137: =+VLOOKUP(C137,'Anexo_GL '!$B$9:$O$1882,8,0) -> 45.24160552 | N137: =+VLOOKUP(C137,'Anexo_GL '!$B$9:$O$1882,9,0) -> Cumple | P137: =+VLOOKUP(C137,'Anexo_GL '!$B$9:$O$1882,11,0) -> 4155.77525 | Q137: =+VLOOKUP(C137,'Anexo_GL '!$B$9:$O$1882,12,0) -> 2989.3276 | R137: =+VLOOKUP(C137,'Anexo_GL '!$B$9:$O$1882,13,0) -> 1166.44765 | S137: =+VLOOKUP(C137,'Anexo_GL '!$B$9:$O$1882,14,0) -> Exonerado
A138: 020502 : MD DE ABELARDO PARDO LAZAMETA | B138: 111 | C138: 020502 | D138: ANCASH | E138: MD DE ABELARDO PARDO LAZAMETA | F138: =+VLOOKUP(C138,'Anexo_GL '!$B$9:$O$1882,4,0) -> 263.91077 | H138: =+VLOOKUP(C138,'Anexo_GL '!$B$9:$O$1882,5,0) -> 1260.123505 | I138: =+VLOOKUP(C138,'Anexo_GL '!$B$9:$O$1882,6,0) -> 1056.15692 | J138: =+VLOOKUP(C138,'Anexo_GL '!$B$9:$O$1882,7,0) -> 996.212735 | L138: =+VLOOKUP(C138,'Anexo_GL '!$B$9:$O$1882,8,0) -> 20.94324635 | N138: =+VLOOKUP(C138,'Anexo_GL '!$B$9:$O$1882,9,0) -> Cumple | P138: =+VLOOKUP(C138,'Anexo_GL '!$B$9:$O$1882,11,0) -> 1257.19482 | Q138: =+VLOOKUP(C138,'Anexo_GL '!$B$9:$O$1882,12,0) -> 514.30759 | R138: =+VLOOKUP(C138,'Anexo_GL '!$B$9:$O$1882,13,0) -> 742.88723 | S138: =+VLOOKUP(C138,'Anexo_GL '!$B$9:$O$1882,14,0) -> Exonerado
A139: 020503 : MD DE ANTONIO RAYMONDI | B139: 112 | C139: 020503 | D139: ANCASH | E139: MD DE ANTONIO RAYMONDI | F139: =+VLOOKUP(C139,'Anexo_GL '!$B$9:$O$1882,4,0) -> 1704.32246 | H139: =+VLOOKUP(C139,'Anexo_GL '!$B$9:$O$1882,5,0) -> 1071.848162 | I139: =+VLOOKUP(C139,'Anexo_GL '!$B$9:$O$1882,6,0) -> 728.37035 | J139: =+VLOOKUP(C139,'Anexo_GL '!$B$9:$O$1882,7,0) -> 0 | L139: =+VLOOKUP(C139,'Anexo_GL '!$B$9:$O$1882,8,0) -> 159.0078259 | N139: =+VLOOKUP(C139,'Anexo_GL '!$B$9:$O$1882,9,0) -> No Cumple | P139: =+VLOOKUP(C139,'Anexo_GL '!$B$9:$O$1882,11,0) -> 1245.8283 | Q139: =+VLOOKUP(C139,'Anexo_GL '!$B$9:$O$1882,12,0) -> 731.79836 | R139: =+VLOOKUP(C139,'Anexo_GL '!$B$9:$O$1882,13,0) -> 514.02994 | S139: =+VLOOKUP(C139,'Anexo_GL '!$B$9:$O$1882,14,0) -> Exonerado
A140: 020504 : MD DE AQUIA | B140: 113 | C140: 020504 | D140: ANCASH | E140: MD DE AQUIA | F140: =+VLOOKUP(C140,'Anexo_GL '!$B$9:$O$1882,4,0) -> 518.97138 | H140: =+VLOOKUP(C140,'Anexo_GL '!$B$9:$O$1882,5,0) -> 2035.67553 | I140: =+VLOOKUP(C140,'Anexo_GL '!$B$9:$O$1882,6,0) -> 1739.07643 | J140: =+VLOOKUP(C140,'Anexo_GL '!$B$9:$O$1882,7,0) -> 1516.70415 | L140: =+VLOOKUP(C140,'Anexo_GL '!$B$9:$O$1882,8,0) -> 25.4938163 | N140: =+VLOOKUP(C140,'Anexo_GL '!$B$9:$O$1882,9,0) -> Cumple | P140: =+VLOOKUP(C140,'Anexo_GL '!$B$9:$O$1882,11,0) -> 2393.87657 | Q140: =+VLOOKUP(C140,'Anexo_GL '!$B$9:$O$1882,12,0) -> 847.09887 | R140: =+VLOOKUP(C140,'Anexo_GL '!$B$9:$O$1882,13,0) -> 1546.7777 | S140: =+VLOOKUP(C140,'Anexo_GL '!$B$9:$O$1882,14,0) -> Exonerado
A141: 020505 : MD DE CAJACAY | B141: 114 | C141: 020505 | D141: ANCASH | E141: MD DE CAJACAY | F141: =+VLOOKUP(C141,'Anexo_GL '!$B$9:$O$1882,4,0) -> 8.483249999 | H141: =+VLOOKUP(C141,'Anexo_GL '!$B$9:$O$1882,5,0) -> 1279.055507 | I141: =+VLOOKUP(C141,'Anexo_GL '!$B$9:$O$1882,6,0) -> 1109.88942 | J141: =+VLOOKUP(C141,'Anexo_GL '!$B$9:$O$1882,7,0) -> 1270.572258 | L141: =+VLOOKUP(C141,'Anexo_GL '!$B$9:$O$1882,8,0) -> 0.6632433033 | N141: =+VLOOKUP(C141,'Anexo_GL '!$B$9:$O$1882,9,0) -> Cumple | P141: =+VLOOKUP(C141,'Anexo_GL '!$B$9:$O$1882,11,0) -> 1665.591 | Q141: =+VLOOKUP(C141,'Anexo_GL '!$B$9:$O$1882,12,0) -> 718.73151 | R141: =+VLOOKUP(C141,'Anexo_GL '!$B$9:$O$1882,13,0) -> 946.85949 | S141: =+VLOOKUP(C141,'Anexo_GL '!$B$9:$O$1882,14,0) -> Exonerado
A142: 020506 : MD DE CANIS | B142: 115 | C142: 020506 | D142: ANCASH | E142: MD DE CANIS | F142: =+VLOOKUP(C142,'Anexo_GL '!$B$9:$O$1882,4,0) -> 334.61631 | H142: =+VLOOKUP(C142,'Anexo_GL '!$B$9:$O$1882,5,0) -> 1031.46119 | I142: =+VLOOKUP(C142,'Anexo_GL '!$B$9:$O$1882,6,0) -> 1085.01187 | J142: =+VLOOKUP(C142,'Anexo_GL '!$B$9:$O$1882,7,0) -> 750.39556 | L142: =+VLOOKUP(C142,'Anexo_GL '!$B$9:$O$1882,8,0) -> 30.83987551 | N142: =+VLOOKUP(C142,'Anexo_GL '!$B$9:$O$1882,9,0) -> Cumple | P142: =+VLOOKUP(C142,'Anexo_GL '!$B$9:$O$1882,11,0) -> 1302.97275 | Q142: =+VLOOKUP(C142,'Anexo_GL '!$B$9:$O$1882,12,0) -> 664.81763 | R142: =+VLOOKUP(C142,'Anexo_GL '!$B$9:$O$1882,13,0) -> 638.15512 | S142: =+VLOOKUP(C142,'Anexo_GL '!$B$9:$O$1882,14,0) -> Exonerado
A143: 020507 : MD DE COLQUIOC | B143: 116 | C143: 020507 | D143: ANCASH | E143: MD DE COLQUIOC | F143: =+VLOOKUP(C143,'Anexo_GL '!$B$9:$O$1882,4,0) -> 3131.444 | H143: =+VLOOKUP(C143,'Anexo_GL '!$B$9:$O$1882,5,0) -> 1978.075357 | I143: =+VLOOKUP(C143,'Anexo_GL '!$B$9:$O$1882,6,0) -> 2260.26554 | J143: =+VLOOKUP(C143,'Anexo_GL '!$B$9:$O$1882,7,0) -> 0 | L143: =+VLOOKUP(C143,'Anexo_GL '!$B$9:$O$1882,8,0) -> 138.5431908 | N143: =+VLOOKUP(C143,'Anexo_GL '!$B$9:$O$1882,9,0) -> No Cumple | P143: =+VLOOKUP(C143,'Anexo_GL '!$B$9:$O$1882,11,0) -> 2562.48522 | Q143: =+VLOOKUP(C143,'Anexo_GL '!$B$9:$O$1882,12,0) -> 1014.00548 | R143: =+VLOOKUP(C143,'Anexo_GL '!$B$9:$O$1882,13,0) -> 1548.47974 | S143: =+VLOOKUP(C143,'Anexo_GL '!$B$9:$O$1882,14,0) -> Exonerado
A144: 020508 : MD DE HUALLANCA | B144: 117 | C144: 020508 | D144: ANCASH | E144: MD DE HUALLANCA | F144: =+VLOOKUP(C144,'Anexo_GL '!$B$9:$O$1882,4,0) -> 343.4955499 | H144: =+VLOOKUP(C144,'Anexo_GL '!$B$9:$O$1882,5,0) -> 5576.321663 | I144: =+VLOOKUP(C144,'Anexo_GL '!$B$9:$O$1882,6,0) -> 5632.32094 | J144: =+VLOOKUP(C144,'Anexo_GL '!$B$9:$O$1882,7,0) -> 5288.82539 | L144: =+VLOOKUP(C144,'Anexo_GL '!$B$9:$O$1882,8,0) -> 6.098650157 | N144: =+VLOOKUP(C144,'Anexo_GL '!$B$9:$O$1882,9,0) -> Cumple | P144: =+VLOOKUP(C144,'Anexo_GL '!$B$9:$O$1882,11,0) -> 7098.19557 | Q144: =+VLOOKUP(C144,'Anexo_GL '!$B$9:$O$1882,12,0) -> 4219.48879 | R144: =+VLOOKUP(C144,'Anexo_GL '!$B$9:$O$1882,13,0) -> 2878.70678 | S144: =+VLOOKUP(C144,'Anexo_GL '!$B$9:$O$1882,14,0) -> Exonerado
A145: 020509 : MD DE HUASTA | B145: 118 | C145: 020509 | D145: ANCASH | E145: MD DE HUASTA | F145: =+VLOOKUP(C145,'Anexo_GL '!$B$9:$O$1882,4,0) -> 44.22669 | H145: =+VLOOKUP(C145,'Anexo_GL '!$B$9:$O$1882,5,0) -> 2329.612513 | I145: =+VLOOKUP(C145,'Anexo_GL '!$B$9:$O$1882,6,0) -> 2208.39286 | J145: =+VLOOKUP(C145,'Anexo_GL '!$B$9:$O$1882,7,0) -> 2285.385823 | L145: =+VLOOKUP(C145,'Anexo_GL '!$B$9:$O$1882,8,0) -> 1.898456922 | N145: =+VLOOKUP(C145,'Anexo_GL '!$B$9:$O$1882,9,0) -> Cumple | P145: =+VLOOKUP(C145,'Anexo_GL '!$B$9:$O$1882,11,0) -> 3006.00795 | Q145: =+VLOOKUP(C145,'Anexo_GL '!$B$9:$O$1882,12,0) -> 865.34367 | R145: =+VLOOKUP(C145,'Anexo_GL '!$B$9:$O$1882,13,0) -> 2140.66428 | S145: =+VLOOKUP(C145,'Anexo_GL '!$B$9:$O$1882,14,0) -> Exonerado
A146: 020510 : MD DE HUAYLLACAYAN | B146: 119 | C146: 020510 | D146: ANCASH | E146: MD DE HUAYLLACAYAN | F146: =+VLOOKUP(C146,'Anexo_GL '!$B$9:$O$1882,4,0) -> 1198.01429 | H146: =+VLOOKUP(C146,'Anexo_GL '!$B$9:$O$1882,5,0) -> 1053.431725 | I146: =+VLOOKUP(C146,'Anexo_GL '!$B$9:$O$1882,6,0) -> 905.30454 | J146: =+VLOOKUP(C146,'Anexo_GL '!$B$9:$O$1882,7,0) -> 0 | L146: =+VLOOKUP(C146,'Anexo_GL '!$B$9:$O$1882,8,0) -> 113.7249108 | N146: =+VLOOKUP(C146,'Anexo_GL '!$B$9:$O$1882,9,0) -> No Cumple | P146: =+VLOOKUP(C146,'Anexo_GL '!$B$9:$O$1882,11,0) -> 1382.09498 | Q146: =+VLOOKUP(C146,'Anexo_GL '!$B$9:$O$1882,12,0) -> 551.20947 | R146: =+VLOOKUP(C146,'Anexo_GL '!$B$9:$O$1882,13,0) -> 830.88551 | S146: =+VLOOKUP(C146,'Anexo_GL '!$B$9:$O$1882,14,0) -> Exonerado
A147: 020511 : MD DE LA PRIMAVERA | B147: 120 | C147: 020511 | D147: ANCASH | E147: MD DE LA PRIMAVERA | F147: =+VLOOKUP(C147,'Anexo_GL '!$B$9:$O$1882,4,0) -> 188.11448 | H147: =+VLOOKUP(C147,'Anexo_GL '!$B$9:$O$1882,5,0) -> 820.492175 | I147: =+VLOOKUP(C147,'Anexo_GL '!$B$9:$O$1882,6,0) -> 581.43115 | J147: =+VLOOKUP(C147,'Anexo_GL '!$B$9:$O$1882,7,0) -> 632.377695 | L147: =+VLOOKUP(C147,'Anexo_GL '!$B$9:$O$1882,8,0) -> 22.92702913 | N147: =+VLOOKUP(C147,'Anexo_GL '!$B$9:$O$1882,9,0) -> Cumple | P147: =+VLOOKUP(C147,'Anexo_GL '!$B$9:$O$1882,11,0) -> 1092.27302 | Q147: =+VLOOKUP(C147,'Anexo_GL '!$B$9:$O$1882,12,0) -> 546.83462 | R147: =+VLOOKUP(C147,'Anexo_GL '!$B$9:$O$1882,13,0) -> 545.4384 | S147: =+VLOOKUP(C147,'Anexo_GL '!$B$9:$O$1882,14,0) -> Exonerado
A148: 020512 : MD DE MANGAS | B148: 121 | C148: 020512 | D148: ANCASH | E148: MD DE MANGAS | F148: =+VLOOKUP(C148,'Anexo_GL '!$B$9:$O$1882,4,0) -> 66.48989001 | H148: =+VLOOKUP(C148,'Anexo_GL '!$B$9:$O$1882,5,0) -> 757.6904225 | I148: =+VLOOKUP(C148,'Anexo_GL '!$B$9:$O$1882,6,0) -> 489.20848 | J148: =+VLOOKUP(C148,'Anexo_GL '!$B$9:$O$1882,7,0) -> 691.2005325 | L148: =+VLOOKUP(C148,'Anexo_GL '!$B$9:$O$1882,8,0) -> 8.775337266 | N148: =+VLOOKUP(C148,'Anexo_GL '!$B$9:$O$1882,9,0) -> Cumple | P148: =+VLOOKUP(C148,'Anexo_GL '!$B$9:$O$1882,11,0) -> 899.49382 | Q148: =+VLOOKUP(C148,'Anexo_GL '!$B$9:$O$1882,12,0) -> 602.57712 | R148: =+VLOOKUP(C148,'Anexo_GL '!$B$9:$O$1882,13,0) -> 296.9167 | S148: =+VLOOKUP(C148,'Anexo_GL '!$B$9:$O$1882,14,0) -> Exonerado
A149: 020513 : MD DE PACLLON | B149: 122 | C149: 020513 | D149: ANCASH | E149: MD DE PACLLON | F149: =+VLOOKUP(C149,'Anexo_GL '!$B$9:$O$1882,4,0) -> 3459.94922 | H149: =+VLOOKUP(C149,'Anexo_GL '!$B$9:$O$1882,5,0) -> 1438.289057 | I149: =+VLOOKUP(C149,'Anexo_GL '!$B$9:$O$1882,6,0) -> 1364.88451 | J149: =+VLOOKUP(C149,'Anexo_GL '!$B$9:$O$1882,7,0) -> 0 | L149: =+VLOOKUP(C149,'Anexo_GL '!$B$9:$O$1882,8,0) -> 240.5600739 | N149: =+VLOOKUP(C149,'Anexo_GL '!$B$9:$O$1882,9,0) -> No Cumple | P149: =+VLOOKUP(C149,'Anexo_GL '!$B$9:$O$1882,11,0) -> 1808.57241 | Q149: =+VLOOKUP(C149,'Anexo_GL '!$B$9:$O$1882,12,0) -> 634.93313 | R149: =+VLOOKUP(C149,'Anexo_GL '!$B$9:$O$1882,13,0) -> 1173.63928 | S149: =+VLOOKUP(C149,'Anexo_GL '!$B$9:$O$1882,14,0) -> Exonerado
A150: 020514 : MD DE SAN MIGUEL DE CORPANQUI | B150: 123 | C150: 020514 | D150: ANCASH | E150: MD DE SAN MIGUEL DE CORPANQUI | F150: =+VLOOKUP(C150,'Anexo_GL '!$B$9:$O$1882,4,0) -> 90.95911 | H150: =+VLOOKUP(C150,'Anexo_GL '!$B$9:$O$1882,5,0) -> 874.00432 | I150: =+VLOOKUP(C150,'Anexo_GL '!$B$9:$O$1882,6,0) -> 839.57978 | J150: =+VLOOKUP(C150,'Anexo_GL '!$B$9:$O$1882,7,0) -> 783.04521 | L150: =+VLOOKUP(C150,'Anexo_GL '!$B$9:$O$1882,8,0) -> 10.40716938 | N150: =+VLOOKUP(C150,'Anexo_GL '!$B$9:$O$1882,9,0) -> Cumple | P150: =+VLOOKUP(C150,'Anexo_GL '!$B$9:$O$1882,11,0) -> 1175.77769 | Q150: =+VLOOKUP(C150,'Anexo_GL '!$B$9:$O$1882,12,0) -> 570.78603 | R150: =+VLOOKUP(C150,'Anexo_GL '!$B$9:$O$1882,13,0) -> 604.99166 | S150: =+VLOOKUP(C150,'Anexo_GL '!$B$9:$O$1882,14,0) -> Exonerado
A151: 020515 : MD DE TICLLOS | B151: 124 | C151: 020515 | D151: ANCASH | E151: MD DE TICLLOS | F151: =+VLOOKUP(C151,'Anexo_GL '!$B$9:$O$1882,4,0) -> 76.43426 | H151: =+VLOOKUP(C151,'Anexo_GL '!$B$9:$O$1882,5,0) -> 968.8321875 | I151: =+VLOOKUP(C151,'Anexo_GL '!$B$9:$O$1882,6,0) -> 912.51973 | J151: =+VLOOKUP(C151,'Anexo_GL '!$B$9:$O$1882,7,0) -> 892.3979275 | L151: =+VLOOKUP(C151,'Anexo_GL '!$B$9:$O$1882,8,0) -> 7.889318809 | N151: =+VLOOKUP(C151,'Anexo_GL '!$B$9:$O$1882,9,0) -> Cumple | P151: =+VLOOKUP(C151,'Anexo_GL '!$B$9:$O$1882,11,0) -> 1250.67825 | Q151: =+VLOOKUP(C151,'Anexo_GL '!$B$9:$O$1882,12,0) -> 639.65008 | R151: =+VLOOKUP(C151,'Anexo_GL '!$B$9:$O$1882,13,0) -> 611.02817 | S151: =+VLOOKUP(C151,'Anexo_GL '!$B$9:$O$1882,14,0) -> Exonerado
A152: 020601 : MP DE CARHUAZ | B152: 125 | C152: 020601 | D152: ANCASH | E152: MP DE CARHUAZ | F152: =+VLOOKUP(C152,'Anexo_GL '!$B$9:$O$1882,4,0) -> 678.0698099 | H152: =+VLOOKUP(C152,'Anexo_GL '!$B$9:$O$1882,5,0) -> 10516.72359 | I152: =+VLOOKUP(C152,'Anexo_GL '!$B$9:$O$1882,6,0) -> 7525.99081 | J152: =+VLOOKUP(C152,'Anexo_GL '!$B$9:$O$1882,7,0) -> 9838.653783 | L152: =+VLOOKUP(C152,'Anexo_GL '!$B$9:$O$1882,8,0) -> 6.44753857 | N152: =+VLOOKUP(C152,'Anexo_GL '!$B$9:$O$1882,9,0) -> Cumple | P152: =+VLOOKUP(C152,'Anexo_GL '!$B$9:$O$1882,11,0) -> 12409.52987 | Q152: =+VLOOKUP(C152,'Anexo_GL '!$B$9:$O$1882,12,0) -> 8330.8196 | R152: =+VLOOKUP(C152,'Anexo_GL '!$B$9:$O$1882,13,0) -> 4078.71027 | S152: =+VLOOKUP(C152,'Anexo_GL '!$B$9:$O$1882,14,0) -> Exonerado
A153: 020602 : MD DE ACOPAMPA | B153: 126 | C153: 020602 | D153: ANCASH | E153: MD DE ACOPAMPA | F153: =+VLOOKUP(C153,'Anexo_GL '!$B$9:$O$1882,4,0) -> 114.1906 | H153: =+VLOOKUP(C153,'Anexo_GL '!$B$9:$O$1882,5,0) -> 1259.522483 | I153: =+VLOOKUP(C153,'Anexo_GL '!$B$9:$O$1882,6,0) -> 1180.37362 | J153: =+VLOOKUP(C153,'Anexo_GL '!$B$9:$O$1882,7,0) -> 1145.331882 | L153: =+VLOOKUP(C153,'Anexo_GL '!$B$9:$O$1882,8,0) -> 9.066181953 | N153: =+VLOOKUP(C153,'Anexo_GL '!$B$9:$O$1882,9,0) -> Cumple | P153: =+VLOOKUP(C153,'Anexo_GL '!$B$9:$O$1882,11,0) -> 1569.48213 | Q153: =+VLOOKUP(C153,'Anexo_GL '!$B$9:$O$1882,12,0) -> 759.68863 | R153: =+VLOOKUP(C153,'Anexo_GL '!$B$9:$O$1882,13,0) -> 809.7935 | S153: =+VLOOKUP(C153,'Anexo_GL '!$B$9:$O$1882,14,0) -> Exonerado
A154: 020603 : MD DE AMASHCA | B154: 127 | C154: 020603 | D154: ANCASH | E154: MD DE AMASHCA | F154: =+VLOOKUP(C154,'Anexo_GL '!$B$9:$O$1882,4,0) -> 397.46372 | H154: =+VLOOKUP(C154,'Anexo_GL '!$B$9:$O$1882,5,0) -> 1136.118215 | I154: =+VLOOKUP(C154,'Anexo_GL '!$B$9:$O$1882,6,0) -> 1067.95179 | J154: =+VLOOKUP(C154,'Anexo_GL '!$B$9:$O$1882,7,0) -> 738.654495 | L154: =+VLOOKUP(C154,'Anexo_GL '!$B$9:$O$1882,8,0) -> 34.98436296 | N154: =+VLOOKUP(C154,'Anexo_GL '!$B$9:$O$1882,9,0) -> Cumple | P154: =+VLOOKUP(C154,'Anexo_GL '!$B$9:$O$1882,11,0) -> 1403.62521 | Q154: =+VLOOKUP(C154,'Anexo_GL '!$B$9:$O$1882,12,0) -> 619.77762 | R154: =+VLOOKUP(C154,'Anexo_GL '!$B$9:$O$1882,13,0) -> 783.84759 | S154: =+VLOOKUP(C154,'Anexo_GL '!$B$9:$O$1882,14,0) -> Exonerado
A155: 020604 : MD DE ANTA | B155: 128 | C155: 020604 | D155: ANCASH | E155: MD DE ANTA | F155: =+VLOOKUP(C155,'Anexo_GL '!$B$9:$O$1882,4,0) -> 88.15481 | H155: =+VLOOKUP(C155,'Anexo_GL '!$B$9:$O$1882,5,0) -> 1401.870777 | I155: =+VLOOKUP(C155,'Anexo_GL '!$B$9:$O$1882,6,0) -> 1425.70676 | J155: =+VLOOKUP(C155,'Anexo_GL '!$B$9:$O$1882,7,0) -> 1337.55195 | L155: =+VLOOKUP(C155,'Anexo_GL '!$B$9:$O$1882,8,0) -> 6.183235745 | N155: =+VLOOKUP(C155,'Anexo_GL '!$B$9:$O$1882,9,0) -> Cumple | P155: =+VLOOKUP(C155,'Anexo_GL '!$B$9:$O$1882,11,0) -> 1657.96648 | Q155: =+VLOOKUP(C155,'Anexo_GL '!$B$9:$O$1882,12,0) -> 917.83362 | R155: =+VLOOKUP(C155,'Anexo_GL '!$B$9:$O$1882,13,0) -> 740.13286 | S155: =+VLOOKUP(C155,'Anexo_GL '!$B$9:$O$1882,14,0) -> Exonerado
A156: 020605 : MD DE ATAQUERO | B156: 129 | C156: 020605 | D156: ANCASH | E156: MD DE ATAQUERO | F156: =+VLOOKUP(C156,'Anexo_GL '!$B$9:$O$1882,4,0) -> 113.42376 | H156: =+VLOOKUP(C156,'Anexo_GL '!$B$9:$O$1882,5,0) -> 984.119715 | I156: =+VLOOKUP(C156,'Anexo_GL '!$B$9:$O$1882,6,0) -> 966.85124 | J156: =+VLOOKUP(C156,'Anexo_GL '!$B$9:$O$1882,7,0) -> 870.695955 | L156: =+VLOOKUP(C156,'Anexo_GL '!$B$9:$O$1882,8,0) -> 11.52540268 | N156: =+VLOOKUP(C156,'Anexo_GL '!$B$9:$O$1882,9,0) -> Cumple | P156: =+VLOOKUP(C156,'Anexo_GL '!$B$9:$O$1882,11,0) -> 1129.8578 | Q156: =+VLOOKUP(C156,'Anexo_GL '!$B$9:$O$1882,12,0) -> 658.8375 | R156: =+VLOOKUP(C156,'Anexo_GL '!$B$9:$O$1882,13,0) -> 471.0203 | S156: =+VLOOKUP(C156,'Anexo_GL '!$B$9:$O$1882,14,0) -> Exonerado
A157: 020606 : MD DE MARCARA | B157: 130 | C157: 020606 | D157: ANCASH | E157: MD DE MARCARA | F157: =+VLOOKUP(C157,'Anexo_GL '!$B$9:$O$1882,4,0) -> 845.047018 | H157: =+VLOOKUP(C157,'Anexo_GL '!$B$9:$O$1882,5,0) -> 4924.409318 | I157: =+VLOOKUP(C157,'Anexo_GL '!$B$9:$O$1882,6,0) -> 5570.46029 | J157: =+VLOOKUP(C157,'Anexo_GL '!$B$9:$O$1882,7,0) -> 4725.413272 | L157: =+VLOOKUP(C157,'Anexo_GL '!$B$9:$O$1882,8,0) -> 15.17014706 | N157: =+VLOOKUP(C157,'Anexo_GL '!$B$9:$O$1882,9,0) -> Cumple | P157: =+VLOOKUP(C157,'Anexo_GL '!$B$9:$O$1882,11,0) -> 5563.25158 | Q157: =+VLOOKUP(C157,'Anexo_GL '!$B$9:$O$1882,12,0) -> 2696.91716 | R157: =+VLOOKUP(C157,'Anexo_GL '!$B$9:$O$1882,13,0) -> 2866.33442 | S157: =+VLOOKUP(C157,'Anexo_GL '!$B$9:$O$1882,14,0) -> Exonerado
A158: 020607 : MD DE PARIAHUANCA | B158: 131 | C158: 020607 | D158: ANCASH | E158: MD DE PARIAHUANCA | F158: =+VLOOKUP(C158,'Anexo_GL '!$B$9:$O$1882,4,0) -> 453.14607 | H158: =+VLOOKUP(C158,'Anexo_GL '!$B$9:$O$1882,5,0) -> 1292.209085 | I158: =+VLOOKUP(C158,'Anexo_GL '!$B$9:$O$1882,6,0) -> 863.2716 | J158: =+VLOOKUP(C158,'Anexo_GL '!$B$9:$O$1882,7,0) -> 839.063015 | L158: =+VLOOKUP(C158,'Anexo_GL '!$B$9:$O$1882,8,0) -> 35.06755023 | N158: =+VLOOKUP(C158,'Anexo_GL '!$B$9:$O$1882,9,0) -> Cumple | P158: =+VLOOKUP(C158,'Anexo_GL '!$B$9:$O$1882,11,0) -> 1439.70636 | Q158: =+VLOOKUP(C158,'Anexo_GL '!$B$9:$O$1882,12,0) -> 766.31121 | R158: =+VLOOKUP(C158,'Anexo_GL '!$B$9:$O$1882,13,0) -> 673.39515 | S158: =+VLOOKUP(C158,'Anexo_GL '!$B$9:$O$1882,14,0) -> Exonerado
A159: 020608 : MD DE SAN MIGUEL DE ACO | B159: 132 | C159: 020608 | D159: ANCASH | E159: MD DE SAN MIGUEL DE ACO | F159: =+VLOOKUP(C159,'Anexo_GL '!$B$9:$O$1882,4,0) -> 2412.10408 | H159: =+VLOOKUP(C159,'Anexo_GL '!$B$9:$O$1882,5,0) -> 1258.881865 | I159: =+VLOOKUP(C159,'Anexo_GL '!$B$9:$O$1882,6,0) -> 1120.72964 | J159: =+VLOOKUP(C159,'Anexo_GL '!$B$9:$O$1882,7,0) -> 0 | L159: =+VLOOKUP(C159,'Anexo_GL '!$B$9:$O$1882,8,0) -> 191.6068653 | N159: =+VLOOKUP(C159,'Anexo_GL '!$B$9:$O$1882,9,0) -> No Cumple | P159: =+VLOOKUP(C159,'Anexo_GL '!$B$9:$O$1882,11,0) -> 1423.84502 | Q159: =+VLOOKUP(C159,'Anexo_GL '!$B$9:$O$1882,12,0) -> 767.4776 | R159: =+VLOOKUP(C159,'Anexo_GL '!$B$9:$O$1882,13,0) -> 656.36742 | S159: =+VLOOKUP(C159,'Anexo_GL '!$B$9:$O$1882,14,0) -> Exonerado
A160: 020609 : MD DE SHILLA | B160: 133 | C160: 020609 | D160: ANCASH | E160: MD DE SHILLA | F160: =+VLOOKUP(C160,'Anexo_GL '!$B$9:$O$1882,4,0) -> 89.78527 | H160: =+VLOOKUP(C160,'Anexo_GL '!$B$9:$O$1882,5,0) -> 2324.209395 | I160: =+VLOOKUP(C160,'Anexo_GL '!$B$9:$O$1882,6,0) -> 1738.61675 | J160: =+VLOOKUP(C160,'Anexo_GL '!$B$9:$O$1882,7,0) -> 2234.424125 | L160: =+VLOOKUP(C160,'Anexo_GL '!$B$9:$O$1882,8,0) -> 3.863045653 | N160: =+VLOOKUP(C160,'Anexo_GL '!$B$9:$O$1882,9,0) -> Cumple | P160: =+VLOOKUP(C160,'Anexo_GL '!$B$9:$O$1882,11,0) -> 2015.76678 | Q160: =+VLOOKUP(C160,'Anexo_GL '!$B$9:$O$1882,12,0) -> 807.86532 | R160: =+VLOOKUP(C160,'Anexo_GL '!$B$9:$O$1882,13,0) -> 1207.90146 | S160: =+VLOOKUP(C160,'Anexo_GL '!$B$9:$O$1882,14,0) -> Exonerado
A161: 020610 : MD DE TINCO | B161: 134 | C161: 020610 | D161: ANCASH | E161: MD DE TINCO | F161: =+VLOOKUP(C161,'Anexo_GL '!$B$9:$O$1882,4,0) -> 2301.69244 | H161: =+VLOOKUP(C161,'Anexo_GL '!$B$9:$O$1882,5,0) -> 2094.367035 | I161: =+VLOOKUP(C161,'Anexo_GL '!$B$9:$O$1882,6,0) -> 1294.43531 | J161: =+VLOOKUP(C161,'Anexo_GL '!$B$9:$O$1882,7,0) -> 0 | L161: =+VLOOKUP(C161,'Anexo_GL '!$B$9:$O$1882,8,0) -> 109.8991916 | N161: =+VLOOKUP(C161,'Anexo_GL '!$B$9:$O$1882,9,0) -> No Cumple | P161: =+VLOOKUP(C161,'Anexo_GL '!$B$9:$O$1882,11,0) -> 1659.15936 | Q161: =+VLOOKUP(C161,'Anexo_GL '!$B$9:$O$1882,12,0) -> 1064.97005 | R161: =+VLOOKUP(C161,'Anexo_GL '!$B$9:$O$1882,13,0) -> 594.18931 | S161: =+VLOOKUP(C161,'Anexo_GL '!$B$9:$O$1882,14,0) -> Exonerado
A162: 020611 : MD DE YUNGAR | B162: 135 | C162: 020611 | D162: ANCASH | E162: MD DE YUNGAR | F162: =+VLOOKUP(C162,'Anexo_GL '!$B$9:$O$1882,4,0) -> 217.99641 | H162: =+VLOOKUP(C162,'Anexo_GL '!$B$9:$O$1882,5,0) -> 1646.473633 | I162: =+VLOOKUP(C162,'Anexo_GL '!$B$9:$O$1882,6,0) -> 1705.45968 | J162: =+VLOOKUP(C162,'Anexo_GL '!$B$9:$O$1882,7,0) -> 1487.46327 | L162: =+VLOOKUP(C162,'Anexo_GL '!$B$9:$O$1882,8,0) -> 12.78226701 | N162: =+VLOOKUP(C162,'Anexo_GL '!$B$9:$O$1882,9,0) -> Cumple | P162: =+VLOOKUP(C162,'Anexo_GL '!$B$9:$O$1882,11,0) -> 2035.27019 | Q162: =+VLOOKUP(C162,'Anexo_GL '!$B$9:$O$1882,12,0) -> 1053.82441 | R162: =+VLOOKUP(C162,'Anexo_GL '!$B$9:$O$1882,13,0) -> 981.44578 | S162: =+VLOOKUP(C162,'Anexo_GL '!$B$9:$O$1882,14,0) -> Exonerado
A163: 020701 : MP DE CARLOS FERMIN FITZCARRALD | B163: 136 | C163: 020701 | D163: ANCASH | E163: MP DE CARLOS FERMIN FITZCARRALD | F163: =+VLOOKUP(C163,'Anexo_GL '!$B$9:$O$1882,4,0) -> 4266.978807 | H163: =+VLOOKUP(C163,'Anexo_GL '!$B$9:$O$1882,5,0) -> 11671.51695 | I163: =+VLOOKUP(C163,'Anexo_GL '!$B$9:$O$1882,6,0) -> 10091.95172 | J163: =+VLOOKUP(C163,'Anexo_GL '!$B$9:$O$1882,7,0) -> 7404.538146 | L163: =+VLOOKUP(C163,'Anexo_GL '!$B$9:$O$1882,8,0) -> 36.5589051 | N163: =+VLOOKUP(C163,'Anexo_GL '!$B$9:$O$1882,9,0) -> Cumple | P163: =+VLOOKUP(C163,'Anexo_GL '!$B$9:$O$1882,11,0) -> 13336.18022 | Q163: =+VLOOKUP(C163,'Anexo_GL '!$B$9:$O$1882,12,0) -> 7923.34433 | R163: =+VLOOKUP(C163,'Anexo_GL '!$B$9:$O$1882,13,0) -> 5412.83589 | S163: =+VLOOKUP(C163,'Anexo_GL '!$B$9:$O$1882,14,0) -> Exonerado
A164: 020702 : MD DE SAN NICOLAS | B164: 137 | C164: 020702 | D164: ANCASH | E164: MD DE SAN NICOLAS | F164: =+VLOOKUP(C164,'Anexo_GL '!$B$9:$O$1882,4,0) -> 52.06319 | H164: =+VLOOKUP(C164,'Anexo_GL '!$B$9:$O$1882,5,0) -> 3098.368002 | I164: =+VLOOKUP(C164,'Anexo_GL '!$B$9:$O$1882,6,0) -> 2973.90794 | J164: =+VLOOKUP(C164,'Anexo_GL '!$B$9:$O$1882,7,0) -> 3046.304813 | L164: =+VLOOKUP(C164,'Anexo_GL '!$B$9:$O$1882,8,0) -> 1.68034236 | N164: =+VLOOKUP(C164,'Anexo_GL '!$B$9:$O$1882,9,0) -> Cumple | P164: =+VLOOKUP(C164,'Anexo_GL '!$B$9:$O$1882,11,0) -> 3781.21584 | Q164: =+VLOOKUP(C164,'Anexo_GL '!$B$9:$O$1882,12,0) -> 1453.7317 | R164: =+VLOOKUP(C164,'Anexo_GL '!$B$9:$O$1882,13,0) -> 2327.48414 | S164: =+VLOOKUP(C164,'Anexo_GL '!$B$9:$O$1882,14,0) -> Exonerado
A165: 020703 : MD DE YAUYA | B165: 138 | C165: 020703 | D165: ANCASH | E165: MD DE YAUYA | F165: =+VLOOKUP(C165,'Anexo_GL '!$B$9:$O$1882,4,0) -> 556.30666 | H165: =+VLOOKUP(C165,'Anexo_GL '!$B$9:$O$1882,5,0) -> 4418.3088 | I165: =+VLOOKUP(C165,'Anexo_GL '!$B$9:$O$1882,6,0) -> 4325.27706 | J165: =+VLOOKUP(C165,'Anexo_GL '!$B$9:$O$1882,7,0) -> 3862.00214 | L165: =+VLOOKUP(C165,'Anexo_GL '!$B$9:$O$1882,8,0) -> 12.59094113 | N165: =+VLOOKUP(C165,'Anexo_GL '!$B$9:$O$1882,9,0) -> Cumple | P165: =+VLOOKUP(C165,'Anexo_GL '!$B$9:$O$1882,11,0) -> 5340.70138 | Q165: =+VLOOKUP(C165,'Anexo_GL '!$B$9:$O$1882,12,0) -> 2741.2325 | R165: =+VLOOKUP(C165,'Anexo_GL '!$B$9:$O$1882,13,0) -> 2599.46888 | S165: =+VLOOKUP(C165,'Anexo_GL '!$B$9:$O$1882,14,0) -> Exonerado
A166: 020801 : MP DE CASMA | B166: 139 | C166: 020801 | D166: ANCASH | E166: MP DE CASMA | F166: =+VLOOKUP(C166,'Anexo_GL '!$B$9:$O$1882,4,0) -> 4117.31161 | H166: =+VLOOKUP(C166,'Anexo_GL '!$B$9:$O$1882,5,0) -> 16197.52805 | I166: =+VLOOKUP(C166,'Anexo_GL '!$B$9:$O$1882,6,0) -> 12771.02966 | J166: =+VLOOKUP(C166,'Anexo_GL '!$B$9:$O$1882,7,0) -> 12080.21644 | L166: =+VLOOKUP(C166,'Anexo_GL '!$B$9:$O$1882,8,0) -> 25.4193825 | N166: =+VLOOKUP(C166,'Anexo_GL '!$B$9:$O$1882,9,0) -> Cumple | P166: =+VLOOKUP(C166,'Anexo_GL '!$B$9:$O$1882,11,0) -> 17883.55133 | Q166: =+VLOOKUP(C166,'Anexo_GL '!$B$9:$O$1882,12,0) -> 14538.21401 | R166: =+VLOOKUP(C166,'Anexo_GL '!$B$9:$O$1882,13,0) -> 3345.33732 | S166: =+VLOOKUP(C166,'Anexo_GL '!$B$9:$O$1882,14,0) -> Exonerado
A167: 020802 : MD DE BUENA VISTA ALTA | B167: 140 | C167: 020802 | D167: ANCASH | E167: MD DE BUENA VISTA ALTA | F167: =+VLOOKUP(C167,'Anexo_GL '!$B$9:$O$1882,4,0) -> 1075.0448 | H167: =+VLOOKUP(C167,'Anexo_GL '!$B$9:$O$1882,5,0) -> 2609.91844 | I167: =+VLOOKUP(C167,'Anexo_GL '!$B$9:$O$1882,6,0) -> 2737.96426 | J167: =+VLOOKUP(C167,'Anexo_GL '!$B$9:$O$1882,7,0) -> 1662.91946 | L167: =+VLOOKUP(C167,'Anexo_GL '!$B$9:$O$1882,8,0) -> 39.26438397 | N167: =+VLOOKUP(C167,'Anexo_GL '!$B$9:$O$1882,9,0) -> Cumple | P167: =+VLOOKUP(C167,'Anexo_GL '!$B$9:$O$1882,11,0) -> 2962.21459 | Q167: =+VLOOKUP(C167,'Anexo_GL '!$B$9:$O$1882,12,0) -> 1373.83109 | R167: =+VLOOKUP(C167,'Anexo_GL '!$B$9:$O$1882,13,0) -> 1588.3835 | S167: =+VLOOKUP(C167,'Anexo_GL '!$B$9:$O$1882,14,0) -> Exonerado
A168: 020803 : MD DE COMANDANTE NOEL | B168: 141 | C168: 020803 | D168: ANCASH | E168: MD DE COMANDANTE NOEL | F168: =+VLOOKUP(C168,'Anexo_GL '!$B$9:$O$1882,4,0) -> 746.5478399 | H168: =+VLOOKUP(C168,'Anexo_GL '!$B$9:$O$1882,5,0) -> 1873.204952 | I168: =+VLOOKUP(C168,'Anexo_GL '!$B$9:$O$1882,6,0) -> 1670.30697 | J168: =+VLOOKUP(C168,'Anexo_GL '!$B$9:$O$1882,7,0) -> 1126.657113 | L168: =+VLOOKUP(C168,'Anexo_GL '!$B$9:$O$1882,8,0) -> 39.8540394 | N168: =+VLOOKUP(C168,'Anexo_GL '!$B$9:$O$1882,9,0) -> Cumple | P168: =+VLOOKUP(C168,'Anexo_GL '!$B$9:$O$1882,11,0) -> 2176.59156 | Q168: =+VLOOKUP(C168,'Anexo_GL '!$B$9:$O$1882,12,0) -> 1359.57449 | R168: =+VLOOKUP(C168,'Anexo_GL '!$B$9:$O$1882,13,0) -> 817.01707 | S168: =+VLOOKUP(C168,'Anexo_GL '!$B$9:$O$1882,14,0) -> Exonerado
A169: 020804 : MD DE YAUTAN | B169: 142 | C169: 020804 | D169: ANCASH | E169: MD DE YAUTAN | F169: =+VLOOKUP(C169,'Anexo_GL '!$B$9:$O$1882,4,0) -> 540.4533793 | H169: =+VLOOKUP(C169,'Anexo_GL '!$B$9:$O$1882,5,0) -> 3650.817697 | I169: =+VLOOKUP(C169,'Anexo_GL '!$B$9:$O$1882,6,0) -> 3740.57806 | J169: =+VLOOKUP(C169,'Anexo_GL '!$B$9:$O$1882,7,0) -> 3200.124681 | L169: =+VLOOKUP(C169,'Anexo_GL '!$B$9:$O$1882,8,0) -> 14.44839195 | N169: =+VLOOKUP(C169,'Anexo_GL '!$B$9:$O$1882,9,0) -> Cumple | P169: =+VLOOKUP(C169,'Anexo_GL '!$B$9:$O$1882,11,0) -> 4327.73009 | Q169: =+VLOOKUP(C169,'Anexo_GL '!$B$9:$O$1882,12,0) -> 2312.74991 | R169: =+VLOOKUP(C169,'Anexo_GL '!$B$9:$O$1882,13,0) -> 2014.98018 | S169: =+VLOOKUP(C169,'Anexo_GL '!$B$9:$O$1882,14,0) -> Exonerado
A170: 020901 : MP DE CORONGO | B170: 143 | C170: 020901 | D170: ANCASH | E170: MP DE CORONGO | F170: =+VLOOKUP(C170,'Anexo_GL '!$B$9:$O$1882,4,0) -> 1931.40084 | H170: =+VLOOKUP(C170,'Anexo_GL '!$B$9:$O$1882,5,0) -> 2378.506385 | I170: =+VLOOKUP(C170,'Anexo_GL '!$B$9:$O$1882,6,0) -> 662.88316 | J170: =+VLOOKUP(C170,'Anexo_GL '!$B$9:$O$1882,7,0) -> 447.105545 | L170: =+VLOOKUP(C170,'Anexo_GL '!$B$9:$O$1882,8,0) -> 81.20225584 | N170: =+VLOOKUP(C170,'Anexo_GL '!$B$9:$O$1882,9,0) -> Cumple | P170: =+VLOOKUP(C170,'Anexo_GL '!$B$9:$O$1882,11,0) -> 3123.28217 | Q170: =+VLOOKUP(C170,'Anexo_GL '!$B$9:$O$1882,12,0) -> 2563.74194 | R170: =+VLOOKUP(C170,'Anexo_GL '!$B$9:$O$1882,13,0) -> 559.54023 | S170: =+VLOOKUP(C170,'Anexo_GL '!$B$9:$O$1882,14,0) -> Exonerado
A171: 020902 : MD DE ACO | B171: 144 | C171: 020902 | D171: ANCASH | E171: MD DE ACO | F171: =+VLOOKUP(C171,'Anexo_GL '!$B$9:$O$1882,4,0) -> 276.47438 | H171: =+VLOOKUP(C171,'Anexo_GL '!$B$9:$O$1882,5,0) -> 664.5813025 | I171: =+VLOOKUP(C171,'Anexo_GL '!$B$9:$O$1882,6,0) -> 367.45212 | J171: =+VLOOKUP(C171,'Anexo_GL '!$B$9:$O$1882,7,0) -> 388.1069225 | L171: =+VLOOKUP(C171,'Anexo_GL '!$B$9:$O$1882,8,0) -> 41.60128775 | N171: =+VLOOKUP(C171,'Anexo_GL '!$B$9:$O$1882,9,0) -> Cumple | P171: =+VLOOKUP(C171,'Anexo_GL '!$B$9:$O$1882,11,0) -> 774.01185 | Q171: =+VLOOKUP(C171,'Anexo_GL '!$B$9:$O$1882,12,0) -> 568.25052 | R171: =+VLOOKUP(C171,'Anexo_GL '!$B$9:$O$1882,13,0) -> 205.76133 | S171: =+VLOOKUP(C171,'Anexo_GL '!$B$9:$O$1882,14,0) -> Exonerado
A172: 020903 : MD DE BAMBAS | B172: 145 | C172: 020903 | D172: ANCASH | E172: MD DE BAMBAS | F172: =+VLOOKUP(C172,'Anexo_GL '!$B$9:$O$1882,4,0) -> 26.58273001 | H172: =+VLOOKUP(C172,'Anexo_GL '!$B$9:$O$1882,5,0) -> 724.716755 | I172: =+VLOOKUP(C172,'Anexo_GL '!$B$9:$O$1882,6,0) -> 436.678 | J172: =+VLOOKUP(C172,'Anexo_GL '!$B$9:$O$1882,7,0) -> 698.134025 | L172: =+VLOOKUP(C172,'Anexo_GL '!$B$9:$O$1882,8,0) -> 3.66801648 | N172: =+VLOOKUP(C172,'Anexo_GL '!$B$9:$O$1882,9,0) -> Cumple | P172: =+VLOOKUP(C172,'Anexo_GL '!$B$9:$O$1882,11,0) -> 909.9024 | Q172: =+VLOOKUP(C172,'Anexo_GL '!$B$9:$O$1882,12,0) -> 584.5298 | R172: =+VLOOKUP(C172,'Anexo_GL '!$B$9:$O$1882,13,0) -> 325.3726 | S172: =+VLOOKUP(C172,'Anexo_GL '!$B$9:$O$1882,14,0) -> Exonerado
A173: 020904 : MD DE CUSCA | B173: 146 | C173: 020904 | D173: ANCASH | E173: MD DE CUSCA | F173: =+VLOOKUP(C173,'Anexo_GL '!$B$9:$O$1882,4,0) -> 18.153 | H173: =+VLOOKUP(C173,'Anexo_GL '!$B$9:$O$1882,5,0) -> 2390.606143 | I173: =+VLOOKUP(C173,'Anexo_GL '!$B$9:$O$1882,6,0) -> 1835.89511 | J173: =+VLOOKUP(C173,'Anexo_GL '!$B$9:$O$1882,7,0) -> 2372.453143 | L173: =+VLOOKUP(C173,'Anexo_GL '!$B$9:$O$1882,8,0) -> 0.7593471663 | N173: =+VLOOKUP(C173,'Anexo_GL '!$B$9:$O$1882,9,0) -> Cumple | P173: =+VLOOKUP(C173,'Anexo_GL '!$B$9:$O$1882,11,0) -> 4151.13889 | Q173: =+VLOOKUP(C173,'Anexo_GL '!$B$9:$O$1882,12,0) -> 1029.09112 | R173: =+VLOOKUP(C173,'Anexo_GL '!$B$9:$O$1882,13,0) -> 3122.04777 | S173: =+VLOOKUP(C173,'Anexo_GL '!$B$9:$O$1882,14,0) -> Exonerado
A174: 020905 : MD DE LA PAMPA | B174: 147 | C174: 020905 | D174: ANCASH | E174: MD DE LA PAMPA | F174: =+VLOOKUP(C174,'Anexo_GL '!$B$9:$O$1882,4,0) -> 505.05384 | H174: =+VLOOKUP(C174,'Anexo_GL '!$B$9:$O$1882,5,0) -> 815.9319325 | I174: =+VLOOKUP(C174,'Anexo_GL '!$B$9:$O$1882,6,0) -> 415.66631 | J174: =+VLOOKUP(C174,'Anexo_GL '!$B$9:$O$1882,7,0) -> 310.8780925 | L174: =+VLOOKUP(C174,'Anexo_GL '!$B$9:$O$1882,8,0) -> 61.89901631 | N174: =+VLOOKUP(C174,'Anexo_GL '!$B$9:$O$1882,9,0) -> Cumple | P174: =+VLOOKUP(C174,'Anexo_GL '!$B$9:$O$1882,11,0) -> 781.55017 | Q174: =+VLOOKUP(C174,'Anexo_GL '!$B$9:$O$1882,12,0) -> 583.6292 | R174: =+VLOOKUP(C174,'Anexo_GL '!$B$9:$O$1882,13,0) -> 197.92097 | S174: =+VLOOKUP(C174,'Anexo_GL '!$B$9:$O$1882,14,0) -> Exonerado
A175: 020906 : MD DE YANAC | B175: 148 | C175: 020906 | D175: ANCASH | E175: MD DE YANAC | F175: =+VLOOKUP(C175,'Anexo_GL '!$B$9:$O$1882,4,0) -> 47.83581 | H175: =+VLOOKUP(C175,'Anexo_GL '!$B$9:$O$1882,5,0) -> 728.5423425 | I175: =+VLOOKUP(C175,'Anexo_GL '!$B$9:$O$1882,6,0) -> 352.93709 | J175: =+VLOOKUP(C175,'Anexo_GL '!$B$9:$O$1882,7,0) -> 680.7065325 | L175: =+VLOOKUP(C175,'Anexo_GL '!$B$9:$O$1882,8,0) -> 6.565961539 | N175: =+VLOOKUP(C175,'Anexo_GL '!$B$9:$O$1882,9,0) -> Cumple | P175: =+VLOOKUP(C175,'Anexo_GL '!$B$9:$O$1882,11,0) -> 988.28616 | Q175: =+VLOOKUP(C175,'Anexo_GL '!$B$9:$O$1882,12,0) -> 723.34893 | R175: =+VLOOKUP(C175,'Anexo_GL '!$B$9:$O$1882,13,0) -> 264.93723 | S175: =+VLOOKUP(C175,'Anexo_GL '!$B$9:$O$1882,14,0) -> Exonerado
A176: 020907 : MD DE YUPAN | B176: 149 | C176: 020907 | D176: ANCASH | E176: MD DE YUPAN | F176: =+VLOOKUP(C176,'Anexo_GL '!$B$9:$O$1882,4,0) -> 118.92493 | H176: =+VLOOKUP(C176,'Anexo_GL '!$B$9:$O$1882,5,0) -> 603.3415 | I176: =+VLOOKUP(C176,'Anexo_GL '!$B$9:$O$1882,6,0) -> 297.17492 | J176: =+VLOOKUP(C176,'Anexo_GL '!$B$9:$O$1882,7,0) -> 484.41657 | L176: =+VLOOKUP(C176,'Anexo_GL '!$B$9:$O$1882,8,0) -> 19.71104756 | N176: =+VLOOKUP(C176,'Anexo_GL '!$B$9:$O$1882,9,0) -> Cumple | P176: =+VLOOKUP(C176,'Anexo_GL '!$B$9:$O$1882,11,0) -> 723.51272 | Q176: =+VLOOKUP(C176,'Anexo_GL '!$B$9:$O$1882,12,0) -> 444.70313 | R176: =+VLOOKUP(C176,'Anexo_GL '!$B$9:$O$1882,13,0) -> 278.80959 | S176: =+VLOOKUP(C176,'Anexo_GL '!$B$9:$O$1882,14,0) -> Exonerado
A177: 021001 : MP DE HUARI | B177: 150 | C177: 021001 | D177: ANCASH | E177: MP DE HUARI | F177: =+VLOOKUP(C177,'Anexo_GL '!$B$9:$O$1882,4,0) -> 10993.40477 | H177: =+VLOOKUP(C177,'Anexo_GL '!$B$9:$O$1882,5,0) -> 26608.44182 | I177: =+VLOOKUP(C177,'Anexo_GL '!$B$9:$O$1882,6,0) -> 37027.33098 | J177: =+VLOOKUP(C177,'Anexo_GL '!$B$9:$O$1882,7,0) -> 26033.92621 | L177: =+VLOOKUP(C177,'Anexo_GL '!$B$9:$O$1882,8,0) -> 29.68997354 | N177: =+VLOOKUP(C177,'Anexo_GL '!$B$9:$O$1882,9,0) -> Cumple | P177: =+VLOOKUP(C177,'Anexo_GL '!$B$9:$O$1882,11,0) -> 34038.89217 | Q177: =+VLOOKUP(C177,'Anexo_GL '!$B$9:$O$1882,12,0) -> 13719.72264 | R177: =+VLOOKUP(C177,'Anexo_GL '!$B$9:$O$1882,13,0) -> 20319.16953 | S177: =+VLOOKUP(C177,'Anexo_GL '!$B$9:$O$1882,14,0) -> Exonerado
A178: 021002 : MD DE ANRA | B178: 151 | C178: 021002 | D178: ANCASH | E178: MD DE ANRA | F178: =+VLOOKUP(C178,'Anexo_GL '!$B$9:$O$1882,4,0) -> 917.93979 | H178: =+VLOOKUP(C178,'Anexo_GL '!$B$9:$O$1882,5,0) -> 4787.47908 | I178: =+VLOOKUP(C178,'Anexo_GL '!$B$9:$O$1882,6,0) -> 8172.11513 | J178: =+VLOOKUP(C178,'Anexo_GL '!$B$9:$O$1882,7,0) -> 7254.17534 | L178: =+VLOOKUP(C178,'Anexo_GL '!$B$9:$O$1882,8,0) -> 11.23258514 | N178: =+VLOOKUP(C178,'Anexo_GL '!$B$9:$O$1882,9,0) -> Cumple | P178: =+VLOOKUP(C178,'Anexo_GL '!$B$9:$O$1882,11,0) -> 5648.79057 | Q178: =+VLOOKUP(C178,'Anexo_GL '!$B$9:$O$1882,12,0) -> 2084.04897 | R178: =+VLOOKUP(C178,'Anexo_GL '!$B$9:$O$1882,13,0) -> 3564.7416 | S178: =+VLOOKUP(C178,'Anexo_GL '!$B$9:$O$1882,14,0) -> Exonerado
A179: 021003 : MD DE CAJAY | B179: 152 | C179: 021003 | D179: ANCASH | E179: MD DE CAJAY | F179: =+VLOOKUP(C179,'Anexo_GL '!$B$9:$O$1882,4,0) -> 1131.22759 | H179: =+VLOOKUP(C179,'Anexo_GL '!$B$9:$O$1882,5,0) -> 7772.378365 | I179: =+VLOOKUP(C179,'Anexo_GL '!$B$9:$O$1882,6,0) -> 13902.41213 | J179: =+VLOOKUP(C179,'Anexo_GL '!$B$9:$O$1882,7,0) -> 12771.18454 | L179: =+VLOOKUP(C179,'Anexo_GL '!$B$9:$O$1882,8,0) -> 8.13691595 | N179: =+VLOOKUP(C179,'Anexo_GL '!$B$9:$O$1882,9,0) -> Cumple | P179: =+VLOOKUP(C179,'Anexo_GL '!$B$9:$O$1882,11,0) -> 9591.9442 | Q179: =+VLOOKUP(C179,'Anexo_GL '!$B$9:$O$1882,12,0) -> 2580.65244 | R179: =+VLOOKUP(C179,'Anexo_GL '!$B$9:$O$1882,13,0) -> 7011.29176 | S179: =+VLOOKUP(C179,'Anexo_GL '!$B$9:$O$1882,14,0) -> Exonerado
A180: 021004 : MD DE CHAVIN DE HUANTAR | B180: 153 | C180: 021004 | D180: ANCASH | E180: MD DE CHAVIN DE HUANTAR | F180: =+VLOOKUP(C180,'Anexo_GL '!$B$9:$O$1882,4,0) -> 4018.027469 | H180: =+VLOOKUP(C180,'Anexo_GL '!$B$9:$O$1882,5,0) -> 24584.27735 | I180: =+VLOOKUP(C180,'Anexo_GL '!$B$9:$O$1882,6,0) -> 45023.97641 | J180: =+VLOOKUP(C180,'Anexo_GL '!$B$9:$O$1882,7,0) -> 41005.94894 | L180: =+VLOOKUP(C180,'Anexo_GL '!$B$9:$O$1882,8,0) -> 8.924195039 | N180: =+VLOOKUP(C180,'Anexo_GL '!$B$9:$O$1882,9,0) -> Cumple | P180: =+VLOOKUP(C180,'Anexo_GL '!$B$9:$O$1882,11,0) -> 30773.7088 | Q180: =+VLOOKUP(C180,'Anexo_GL '!$B$9:$O$1882,12,0) -> 6424.86938 | R180: =+VLOOKUP(C180,'Anexo_GL '!$B$9:$O$1882,13,0) -> 24348.83942 | S180: =+VLOOKUP(C180,'Anexo_GL '!$B$9:$O$1882,14,0) -> Exonerado
A181: 021005 : MD DE HUACACHI | B181: 154 | C181: 021005 | D181: ANCASH | E181: MD DE HUACACHI | F181: =+VLOOKUP(C181,'Anexo_GL '!$B$9:$O$1882,4,0) -> 770.96695 | H181: =+VLOOKUP(C181,'Anexo_GL '!$B$9:$O$1882,5,0) -> 5308.375535 | I181: =+VLOOKUP(C181,'Anexo_GL '!$B$9:$O$1882,6,0) -> 9486.8078 | J181: =+VLOOKUP(C181,'Anexo_GL '!$B$9:$O$1882,7,0) -> 8715.84085 | L181: =+VLOOKUP(C181,'Anexo_GL '!$B$9:$O$1882,8,0) -> 8.126726779 | N181: =+VLOOKUP(C181,'Anexo_GL '!$B$9:$O$1882,9,0) -> Cumple | P181: =+VLOOKUP(C181,'Anexo_GL '!$B$9:$O$1882,11,0) -> 6507.2046 | Q181: =+VLOOKUP(C181,'Anexo_GL '!$B$9:$O$1882,12,0) -> 1302.21174 | R181: =+VLOOKUP(C181,'Anexo_GL '!$B$9:$O$1882,13,0) -> 5204.99286 | S181: =+VLOOKUP(C181,'Anexo_GL '!$B$9:$O$1882,14,0) -> Exonerado
A182: 021006 : MD DE HUACCHIS | B182: 155 | C182: 021006 | D182: ANCASH | E182: MD DE HUACCHIS | F182: =+VLOOKUP(C182,'Anexo_GL '!$B$9:$O$1882,4,0) -> 469.57473 | H182: =+VLOOKUP(C182,'Anexo_GL '!$B$9:$O$1882,5,0) -> 5553.78752 | I182: =+VLOOKUP(C182,'Anexo_GL '!$B$9:$O$1882,6,0) -> 9752.75327 | J182: =+VLOOKUP(C182,'Anexo_GL '!$B$9:$O$1882,7,0) -> 9283.17854 | L182: =+VLOOKUP(C182,'Anexo_GL '!$B$9:$O$1882,8,0) -> 4.814791444 | N182: =+VLOOKUP(C182,'Anexo_GL '!$B$9:$O$1882,9,0) -> Cumple | P182: =+VLOOKUP(C182,'Anexo_GL '!$B$9:$O$1882,11,0) -> 7006.97096 | Q182: =+VLOOKUP(C182,'Anexo_GL '!$B$9:$O$1882,12,0) -> 1568.96957 | R182: =+VLOOKUP(C182,'Anexo_GL '!$B$9:$O$1882,13,0) -> 5438.00139 | S182: =+VLOOKUP(C182,'Anexo_GL '!$B$9:$O$1882,14,0) -> Exonerado
A183: 021007 : MD DE HUACHIS | B183: 156 | C183: 021007 | D183: ANCASH | E183: MD DE HUACHIS | F183: =+VLOOKUP(C183,'Anexo_GL '!$B$9:$O$1882,4,0) -> 8901.41261 | H183: =+VLOOKUP(C183,'Anexo_GL '!$B$9:$O$1882,5,0) -> 11364.99384 | I183: =+VLOOKUP(C183,'Anexo_GL '!$B$9:$O$1882,6,0) -> 20269.35583 | J183: =+VLOOKUP(C183,'Anexo_GL '!$B$9:$O$1882,7,0) -> 11367.94322 | L183: =+VLOOKUP(C183,'Anexo_GL '!$B$9:$O$1882,8,0) -> 43.91561668 | N183: =+VLOOKUP(C183,'Anexo_GL '!$B$9:$O$1882,9,0) -> Cumple | P183: =+VLOOKUP(C183,'Anexo_GL '!$B$9:$O$1882,11,0) -> 13878.38342 | Q183: =+VLOOKUP(C183,'Anexo_GL '!$B$9:$O$1882,12,0) -> 2378.72513 | R183: =+VLOOKUP(C183,'Anexo_GL '!$B$9:$O$1882,13,0) -> 11499.65829 | S183: =+VLOOKUP(C183,'Anexo_GL '!$B$9:$O$1882,14,0) -> Exonerado
A184: 021008 : MD DE HUANTAR | B184: 157 | C184: 021008 | D184: ANCASH | E184: MD DE HUANTAR | F184: =+VLOOKUP(C184,'Anexo_GL '!$B$9:$O$1882,4,0) -> 4103.83795 | H184: =+VLOOKUP(C184,'Anexo_GL '!$B$9:$O$1882,5,0) -> 6938.85886 | I184: =+VLOOKUP(C184,'Anexo_GL '!$B$9:$O$1882,6,0) -> 12857.77028 | J184: =+VLOOKUP(C184,'Anexo_GL '!$B$9:$O$1882,7,0) -> 8753.93233 | L184: =+VLOOKUP(C184,'Anexo_GL '!$B$9:$O$1882,8,0) -> 31.91718207 | N184: =+VLOOKUP(C184,'Anexo_GL '!$B$9:$O$1882,9,0) -> Cumple | P184: =+VLOOKUP(C184,'Anexo_GL '!$B$9:$O$1882,11,0) -> 8235.88778 | Q184: =+VLOOKUP(C184,'Anexo_GL '!$B$9:$O$1882,12,0) -> 1836.83786 | R184: =+VLOOKUP(C184,'Anexo_GL '!$B$9:$O$1882,13,0) -> 6399.04992 | S184: =+VLOOKUP(C184,'Anexo_GL '!$B$9:$O$1882,14,0) -> Exonerado
A185: 021009 : MD DE MASIN | B185: 158 | C185: 021009 | D185: ANCASH | E185: MD DE MASIN | F185: =+VLOOKUP(C185,'Anexo_GL '!$B$9:$O$1882,4,0) -> 224.46369 | H185: =+VLOOKUP(C185,'Anexo_GL '!$B$9:$O$1882,5,0) -> 4906.473512 | I185: =+VLOOKUP(C185,'Anexo_GL '!$B$9:$O$1882,6,0) -> 8576.73473 | J185: =+VLOOKUP(C185,'Anexo_GL '!$B$9:$O$1882,7,0) -> 8352.27104 | L185: =+VLOOKUP(C185,'Anexo_GL '!$B$9:$O$1882,8,0) -> 2.617122915 | N185: =+VLOOKUP(C185,'Anexo_GL '!$B$9:$O$1882,9,0) -> Cumple | P185: =+VLOOKUP(C185,'Anexo_GL '!$B$9:$O$1882,11,0) -> 6012.9332 | Q185: =+VLOOKUP(C185,'Anexo_GL '!$B$9:$O$1882,12,0) -> 1576.99231 | R185: =+VLOOKUP(C185,'Anexo_GL '!$B$9:$O$1882,13,0) -> 4435.94089 | S185: =+VLOOKUP(C185,'Anexo_GL '!$B$9:$O$1882,14,0) -> Exonerado
A186: 021010 : MD DE PAUCAS | B186: 159 | C186: 021010 | D186: ANCASH | E186: MD DE PAUCAS | F186: =+VLOOKUP(C186,'Anexo_GL '!$B$9:$O$1882,4,0) -> 132.90376 | H186: =+VLOOKUP(C186,'Anexo_GL '!$B$9:$O$1882,5,0) -> 5503.277537 | I186: =+VLOOKUP(C186,'Anexo_GL '!$B$9:$O$1882,6,0) -> 9767.6709 | J186: =+VLOOKUP(C186,'Anexo_GL '!$B$9:$O$1882,7,0) -> 9634.76714 | L186: =+VLOOKUP(C186,'Anexo_GL '!$B$9:$O$1882,8,0) -> 1.360649446 | N186: =+VLOOKUP(C186,'Anexo_GL '!$B$9:$O$1882,9,0) -> Cumple | P186: =+VLOOKUP(C186,'Anexo_GL '!$B$9:$O$1882,11,0) -> 6793.668 | Q186: =+VLOOKUP(C186,'Anexo_GL '!$B$9:$O$1882,12,0) -> 1388.79886 | R186: =+VLOOKUP(C186,'Anexo_GL '!$B$9:$O$1882,13,0) -> 5404.86914 | S186: =+VLOOKUP(C186,'Anexo_GL '!$B$9:$O$1882,14,0) -> Exonerado
A187: 021011 : MD DE PONTO | B187: 160 | C187: 021011 | D187: ANCASH | E187: MD DE PONTO | F187: =+VLOOKUP(C187,'Anexo_GL '!$B$9:$O$1882,4,0) -> 706.2602501 | H187: =+VLOOKUP(C187,'Anexo_GL '!$B$9:$O$1882,5,0) -> 10526.35979 | I187: =+VLOOKUP(C187,'Anexo_GL '!$B$9:$O$1882,6,0) -> 18946.74272 | J187: =+VLOOKUP(C187,'Anexo_GL '!$B$9:$O$1882,7,0) -> 18240.48247 | L187: =+VLOOKUP(C187,'Anexo_GL '!$B$9:$O$1882,8,0) -> 3.727607751 | N187: =+VLOOKUP(C187,'Anexo_GL '!$B$9:$O$1882,9,0) -> Cumple | P187: =+VLOOKUP(C187,'Anexo_GL '!$B$9:$O$1882,11,0) -> 13020.25904 | Q187: =+VLOOKUP(C187,'Anexo_GL '!$B$9:$O$1882,12,0) -> 2345.45379 | R187: =+VLOOKUP(C187,'Anexo_GL '!$B$9:$O$1882,13,0) -> 10674.80525 | S187: =+VLOOKUP(C187,'Anexo_GL '!$B$9:$O$1882,14,0) -> Exonerado
A188: 021012 : MD DE RAHUAPAMPA | B188: 161 | C188: 021012 | D188: ANCASH | E188: MD DE RAHUAPAMPA | F188: =+VLOOKUP(C188,'Anexo_GL '!$B$9:$O$1882,4,0) -> 499.10758 | H188: =+VLOOKUP(C188,'Anexo_GL '!$B$9:$O$1882,5,0) -> 1938.872635 | I188: =+VLOOKUP(C188,'Anexo_GL '!$B$9:$O$1882,6,0) -> 2791.67404 | J188: =+VLOOKUP(C188,'Anexo_GL '!$B$9:$O$1882,7,0) -> 2292.56646 | L188: =+VLOOKUP(C188,'Anexo_GL '!$B$9:$O$1882,8,0) -> 17.87843326 | N188: =+VLOOKUP(C188,'Anexo_GL '!$B$9:$O$1882,9,0) -> Cumple | P188: =+VLOOKUP(C188,'Anexo_GL '!$B$9:$O$1882,11,0) -> 2417.58306 | Q188: =+VLOOKUP(C188,'Anexo_GL '!$B$9:$O$1882,12,0) -> 937.41816 | R188: =+VLOOKUP(C188,'Anexo_GL '!$B$9:$O$1882,13,0) -> 1480.1649 | S188: =+VLOOKUP(C188,'Anexo_GL '!$B$9:$O$1882,14,0) -> Exonerado
A189: 021013 : MD DE RAPAYAN | B189: 162 | C189: 021013 | D189: ANCASH | E189: MD DE RAPAYAN | F189: =+VLOOKUP(C189,'Anexo_GL '!$B$9:$O$1882,4,0) -> 76.05914 | H189: =+VLOOKUP(C189,'Anexo_GL '!$B$9:$O$1882,5,0) -> 5466.350142 | I189: =+VLOOKUP(C189,'Anexo_GL '!$B$9:$O$1882,6,0) -> 9711.77721 | J189: =+VLOOKUP(C189,'Anexo_GL '!$B$9:$O$1882,7,0) -> 9635.71807 | L189: =+VLOOKUP(C189,'Anexo_GL '!$B$9:$O$1882,8,0) -> 0.7831639705 | N189: =+VLOOKUP(C189,'Anexo_GL '!$B$9:$O$1882,9,0) -> Cumple | P189: =+VLOOKUP(C189,'Anexo_GL '!$B$9:$O$1882,11,0) -> 6903.02035 | Q189: =+VLOOKUP(C189,'Anexo_GL '!$B$9:$O$1882,12,0) -> 2133.26645 | R189: =+VLOOKUP(C189,'Anexo_GL '!$B$9:$O$1882,13,0) -> 4769.7539 | S189: =+VLOOKUP(C189,'Anexo_GL '!$B$9:$O$1882,14,0) -> Exonerado
A190: 021014 : MD DE SAN MARCOS | B190: 163 | C190: 021014 | D190: ANCASH | E190: MD DE SAN MARCOS | F190: =+VLOOKUP(C190,'Anexo_GL '!$B$9:$O$1882,4,0) -> 9942.24196 | H190: =+VLOOKUP(C190,'Anexo_GL '!$B$9:$O$1882,5,0) -> 97566.77397 | I190: =+VLOOKUP(C190,'Anexo_GL '!$B$9:$O$1882,6,0) -> 178113.5068 | J190: =+VLOOKUP(C190,'Anexo_GL '!$B$9:$O$1882,7,0) -> 168171.2649 | L190: =+VLOOKUP(C190,'Anexo_GL '!$B$9:$O$1882,8,0) -> 5.581969687 | N190: =+VLOOKUP(C190,'Anexo_GL '!$B$9:$O$1882,9,0) -> Cumple | P190: =+VLOOKUP(C190,'Anexo_GL '!$B$9:$O$1882,11,0) -> 140764.9845 | Q190: =+VLOOKUP(C190,'Anexo_GL '!$B$9:$O$1882,12,0) -> 15735.86109 | R190: =+VLOOKUP(C190,'Anexo_GL '!$B$9:$O$1882,13,0) -> 125029.1235 | S190: =+VLOOKUP(C190,'Anexo_GL '!$B$9:$O$1882,14,0) -> Exonerado
A191: 021015 : MD DE SAN PEDRO DE CHANA | B191: 164 | C191: 021015 | D191: ANCASH | E191: MD DE SAN PEDRO DE CHANA | F191: =+VLOOKUP(C191,'Anexo_GL '!$B$9:$O$1882,4,0) -> 143.03765 | H191: =+VLOOKUP(C191,'Anexo_GL '!$B$9:$O$1882,5,0) -> 9198.798698 | I191: =+VLOOKUP(C191,'Anexo_GL '!$B$9:$O$1882,6,0) -> 15349.57817 | J191: =+VLOOKUP(C191,'Anexo_GL '!$B$9:$O$1882,7,0) -> 15206.54052 | L191: =+VLOOKUP(C191,'Anexo_GL '!$B$9:$O$1882,8,0) -> 0.9318669765 | N191: =+VLOOKUP(C191,'Anexo_GL '!$B$9:$O$1882,9,0) -> Cumple | P191: =+VLOOKUP(C191,'Anexo_GL '!$B$9:$O$1882,11,0) -> 10876.47306 | Q191: =+VLOOKUP(C191,'Anexo_GL '!$B$9:$O$1882,12,0) -> 2636.45356 | R191: =+VLOOKUP(C191,'Anexo_GL '!$B$9:$O$1882,13,0) -> 8240.0195 | S191: =+VLOOKUP(C191,'Anexo_GL '!$B$9:$O$1882,14,0) -> Exonerado
A192: 021016 : MD DE UCO | B192: 165 | C192: 021016 | D192: ANCASH | E192: MD DE UCO | F192: =+VLOOKUP(C192,'Anexo_GL '!$B$9:$O$1882,4,0) -> 263.76719 | H192: =+VLOOKUP(C192,'Anexo_GL '!$B$9:$O$1882,5,0) -> 4642.99319 | I192: =+VLOOKUP(C192,'Anexo_GL '!$B$9:$O$1882,6,0) -> 7966.27245 | J192: =+VLOOKUP(C192,'Anexo_GL '!$B$9:$O$1882,7,0) -> 7702.50526 | L192: =+VLOOKUP(C192,'Anexo_GL '!$B$9:$O$1882,8,0) -> 3.311049072 | N192: =+VLOOKUP(C192,'Anexo_GL '!$B$9:$O$1882,9,0) -> Cumple | P192: =+VLOOKUP(C192,'Anexo_GL '!$B$9:$O$1882,11,0) -> 5750.73744 | Q192: =+VLOOKUP(C192,'Anexo_GL '!$B$9:$O$1882,12,0) -> 1225.70279 | R192: =+VLOOKUP(C192,'Anexo_GL '!$B$9:$O$1882,13,0) -> 4525.03465 | S192: =+VLOOKUP(C192,'Anexo_GL '!$B$9:$O$1882,14,0) -> Exonerado
A193: 021101 : MP DE HUARMEY | B193: 166 | C193: 021101 | D193: ANCASH | E193: MP DE HUARMEY | F193: =+VLOOKUP(C193,'Anexo_GL '!$B$9:$O$1882,4,0) -> 23699.10426 | H193: =+VLOOKUP(C193,'Anexo_GL '!$B$9:$O$1882,5,0) -> 15901.6882 | I193: =+VLOOKUP(C193,'Anexo_GL '!$B$9:$O$1882,6,0) -> 12060.69858 | J193: =+VLOOKUP(C193,'Anexo_GL '!$B$9:$O$1882,7,0) -> 0 | L193: =+VLOOKUP(C193,'Anexo_GL '!$B$9:$O$1882,8,0) -> 149.0351462 | N193: =+VLOOKUP(C193,'Anexo_GL '!$B$9:$O$1882,9,0) -> No Cumple | P193: =+VLOOKUP(C193,'Anexo_GL '!$B$9:$O$1882,11,0) -> 16054.81354 | Q193: =+VLOOKUP(C193,'Anexo_GL '!$B$9:$O$1882,12,0) -> 10713.24203 | R193: =+VLOOKUP(C193,'Anexo_GL '!$B$9:$O$1882,13,0) -> 5341.57151 | S193: =+VLOOKUP(C193,'Anexo_GL '!$B$9:$O$1882,14,0) -> Exonerado
A194: 021102 : MD DE COCHAPETI | B194: 167 | C194: 021102 | D194: ANCASH | E194: MD DE COCHAPETI | F194: =+VLOOKUP(C194,'Anexo_GL '!$B$9:$O$1882,4,0) -> 7.51163 | H194: =+VLOOKUP(C194,'Anexo_GL '!$B$9:$O$1882,5,0) -> 839.9335975 | I194: =+VLOOKUP(C194,'Anexo_GL '!$B$9:$O$1882,6,0) -> 672.82319 | J194: =+VLOOKUP(C194,'Anexo_GL '!$B$9:$O$1882,7,0) -> 832.4219675 | L194: =+VLOOKUP(C194,'Anexo_GL '!$B$9:$O$1882,8,0) -> 0.8943123626 | N194: =+VLOOKUP(C194,'Anexo_GL '!$B$9:$O$1882,9,0) -> Cumple | P194: =+VLOOKUP(C194,'Anexo_GL '!$B$9:$O$1882,11,0) -> 963.32768 | Q194: =+VLOOKUP(C194,'Anexo_GL '!$B$9:$O$1882,12,0) -> 513.51253 | R194: =+VLOOKUP(C194,'Anexo_GL '!$B$9:$O$1882,13,0) -> 449.81515 | S194: =+VLOOKUP(C194,'Anexo_GL '!$B$9:$O$1882,14,0) -> Exonerado
A195: 021103 : MD DE CULEBRAS | B195: 168 | C195: 021103 | D195: ANCASH | E195: MD DE CULEBRAS | F195: =+VLOOKUP(C195,'Anexo_GL '!$B$9:$O$1882,4,0) -> 4686.55771 | H195: =+VLOOKUP(C195,'Anexo_GL '!$B$9:$O$1882,5,0) -> 2622.17789 | I195: =+VLOOKUP(C195,'Anexo_GL '!$B$9:$O$1882,6,0) -> 3977.02044 | J195: =+VLOOKUP(C195,'Anexo_GL '!$B$9:$O$1882,7,0) -> 0 | L195: =+VLOOKUP(C195,'Anexo_GL '!$B$9:$O$1882,8,0) -> 117.8409259 | N195: =+VLOOKUP(C195,'Anexo_GL '!$B$9:$O$1882,9,0) -> No Cumple | P195: =+VLOOKUP(C195,'Anexo_GL '!$B$9:$O$1882,11,0) -> 2549.53831 | Q195: =+VLOOKUP(C195,'Anexo_GL '!$B$9:$O$1882,12,0) -> 1281.16949 | R195: =+VLOOKUP(C195,'Anexo_GL '!$B$9:$O$1882,13,0) -> 1268.36882 | S195: =+VLOOKUP(C195,'Anexo_GL '!$B$9:$O$1882,14,0) -> Exonerado
A196: 021104 : MD DE HUAYAN | B196: 169 | C196: 021104 | D196: ANCASH | E196: MD DE HUAYAN | F196: =+VLOOKUP(C196,'Anexo_GL '!$B$9:$O$1882,4,0) -> 37.92517 | H196: =+VLOOKUP(C196,'Anexo_GL '!$B$9:$O$1882,5,0) -> 865.9996875 | I196: =+VLOOKUP(C196,'Anexo_GL '!$B$9:$O$1882,6,0) -> 823.06366 | J196: =+VLOOKUP(C196,'Anexo_GL '!$B$9:$O$1882,7,0) -> 828.0745175 | L196: =+VLOOKUP(C196,'Anexo_GL '!$B$9:$O$1882,8,0) -> 4.379351465 | N196: =+VLOOKUP(C196,'Anexo_GL '!$B$9:$O$1882,9,0) -> Cumple | P196: =+VLOOKUP(C196,'Anexo_GL '!$B$9:$O$1882,11,0) -> 1032.53441 | Q196: =+VLOOKUP(C196,'Anexo_GL '!$B$9:$O$1882,12,0) -> 762.58281 | R196: =+VLOOKUP(C196,'Anexo_GL '!$B$9:$O$1882,13,0) -> 269.9516 | S196: =+VLOOKUP(C196,'Anexo_GL '!$B$9:$O$1882,14,0) -> Exonerado
A197: 021105 : MD DE MALVAS | B197: 170 | C197: 021105 | D197: ANCASH | E197: MD DE MALVAS | F197: =+VLOOKUP(C197,'Anexo_GL '!$B$9:$O$1882,4,0) -> 269.47061 | H197: =+VLOOKUP(C197,'Anexo_GL '!$B$9:$O$1882,5,0) -> 896.3823325 | I197: =+VLOOKUP(C197,'Anexo_GL '!$B$9:$O$1882,6,0) -> 700.16758 | J197: =+VLOOKUP(C197,'Anexo_GL '!$B$9:$O$1882,7,0) -> 626.9117225 | L197: =+VLOOKUP(C197,'Anexo_GL '!$B$9:$O$1882,8,0) -> 30.06201709 | N197: =+VLOOKUP(C197,'Anexo_GL '!$B$9:$O$1882,9,0) -> Cumple | P197: =+VLOOKUP(C197,'Anexo_GL '!$B$9:$O$1882,11,0) -> 1032.69554 | Q197: =+VLOOKUP(C197,'Anexo_GL '!$B$9:$O$1882,12,0) -> 480.41432 | R197: =+VLOOKUP(C197,'Anexo_GL '!$B$9:$O$1882,13,0) -> 552.28122 | S197: =+VLOOKUP(C197,'Anexo_GL '!$B$9:$O$1882,14,0) -> Exonerado
A198: 021201 : MP DE HUAYLAS - CARAZ | B198: 171 | C198: 021201 | D198: ANCASH | E198: MP DE HUAYLAS - CARAZ | F198: =+VLOOKUP(C198,'Anexo_GL '!$B$9:$O$1882,4,0) -> 1143.50592 | H198: =+VLOOKUP(C198,'Anexo_GL '!$B$9:$O$1882,5,0) -> 17937.02465 | I198: =+VLOOKUP(C198,'Anexo_GL '!$B$9:$O$1882,6,0) -> 15250.53416 | J198: =+VLOOKUP(C198,'Anexo_GL '!$B$9:$O$1882,7,0) -> 16793.51873 | L198: =+VLOOKUP(C198,'Anexo_GL '!$B$9:$O$1882,8,0) -> 6.375114839 | N198: =+VLOOKUP(C198,'Anexo_GL '!$B$9:$O$1882,9,0) -> Cumple | P198: =+VLOOKUP(C198,'Anexo_GL '!$B$9:$O$1882,11,0) -> 17916.64391 | Q198: =+VLOOKUP(C198,'Anexo_GL '!$B$9:$O$1882,12,0) -> 9758.65971 | R198: =+VLOOKUP(C198,'Anexo_GL '!$B$9:$O$1882,13,0) -> 8157.9842 | S198: =+VLOOKUP(C198,'Anexo_GL '!$B$9:$O$1882,14,0) -> Exonerado
A199: 021202 : MD DE HUALLANCA | B199: 172 | C199: 021202 | D199: ANCASH | E199: MD DE HUALLANCA | F199: =+VLOOKUP(C199,'Anexo_GL '!$B$9:$O$1882,4,0) -> 15.75991008 | H199: =+VLOOKUP(C199,'Anexo_GL '!$B$9:$O$1882,5,0) -> 2942.77751 | I199: =+VLOOKUP(C199,'Anexo_GL '!$B$9:$O$1882,6,0) -> 4060.61701 | J199: =+VLOOKUP(C199,'Anexo_GL '!$B$9:$O$1882,7,0) -> 4044.8571 | L199: =+VLOOKUP(C199,'Anexo_GL '!$B$9:$O$1882,8,0) -> 0.388116142 | N199: =+VLOOKUP(C199,'Anexo_GL '!$B$9:$O$1882,9,0) -> Cumple | P199: =+VLOOKUP(C199,'Anexo_GL '!$B$9:$O$1882,11,0) -> 4202.4916 | Q199: =+VLOOKUP(C199,'Anexo_GL '!$B$9:$O$1882,12,0) -> 1203.45679 | R199: =+VLOOKUP(C199,'Anexo_GL '!$B$9:$O$1882,13,0) -> 2999.03481 | S199: =+VLOOKUP(C199,'Anexo_GL '!$B$9:$O$1882,14,0) -> Exonerado
A200: 021203 : MD DE HUATA | B200: 173 | C200: 021203 | D200: ANCASH | E200: MD DE HUATA | F200: =+VLOOKUP(C200,'Anexo_GL '!$B$9:$O$1882,4,0) -> 242.12296 | H200: =+VLOOKUP(C200,'Anexo_GL '!$B$9:$O$1882,5,0) -> 1229.674647 | I200: =+VLOOKUP(C200,'Anexo_GL '!$B$9:$O$1882,6,0) -> 1350.2068 | J200: =+VLOOKUP(C200,'Anexo_GL '!$B$9:$O$1882,7,0) -> 1108.08384 | L200: =+VLOOKUP(C200,'Anexo_GL '!$B$9:$O$1882,8,0) -> 17.93228711 | N200: =+VLOOKUP(C200,'Anexo_GL '!$B$9:$O$1882,9,0) -> Cumple | P200: =+VLOOKUP(C200,'Anexo_GL '!$B$9:$O$1882,11,0) -> 1431.00442 | Q200: =+VLOOKUP(C200,'Anexo_GL '!$B$9:$O$1882,12,0) -> 861.72031 | R200: =+VLOOKUP(C200,'Anexo_GL '!$B$9:$O$1882,13,0) -> 569.28411 | S200: =+VLOOKUP(C200,'Anexo_GL '!$B$9:$O$1882,14,0) -> Exonerado
... 1701 more rows

Sheet Anexo_GR
B1: Anexo N° 2: Cumplimiento de las Reglas Fiscales Subnacionales 2017
B2: Gobiernos Regionales
B5: N° | C5: UBIGEO | D5: Gobiernos Regional | E5: R1: Regla Fiscal de Saldo de Deuda Total | L5: R2: Regla Fiscal de Ahorro en Cuenta Corriente
E6: 2017 | L6: 2017
E7: S/ Miles | I7: SDT/Prom. ICT 2014-2017 % | J7: Cumple R1 | L7: S/ Miles | O7: Cumple R2
E8: Saldo de Deuda Total | F8: Prom. ICT 2014-2017 | G8: Límite Ley N° 29230 1/ | H8: Espacio Total | L8: Ingreso Corriente Total | M8: Gasto Corriente Total | N8: Ahorro en Cuenta Corriente
B9: 1 | C9: 010000 | D9: AMAZONAS | E9: 482829.3316 | F9: 485514.3145 | G9: 4.58218 | H9: 2684.98293 | I9: 99.44698172 | J9: Cumple | L9: 591260.2598 | M9: 585659.1562 | N9: 5601.10362 | O9: Cumple
B10: 2 | C10: 020000 | D10: ANCASH | E10: 406053.4992 | F10: 1206924.008 | G10: 248175.0317 | H10: 800870.5083 | I10: 33.64366743 | J10: Cumple | L10: 1428137.102 | M10: 1264581.907 | N10: 163555.1954 | O10: Cumple
B11: 3 | C11: 030000 | D11: APURIMAC | E11: 579167.9013 | F11: 625787.7305 | G11: 17533.37207 | H11: 46619.82923 | I11: 92.5502168 | J11: Cumple | L11: 763519.2789 | M11: 712087.6416 | N11: 51431.63732 | O11: Cumple
B12: 4 | C12: 040000 | D12: AREQUIPA | E12: 1320783.763 | F12: 1134266.201 | G12: 228223.0279 | H12: 0 | I12: 116.4438967 | J12: No Cumple | L12: 1299780.736 | M12: 1203343.497 | N12: 96437.23956 | O12: Cumple
B13: 5 | C13: 050000 | D13: AYACUCHO | E13: 561871.5293 | F13: 890499.8473 | G13: 72423.70113 | H13: 328628.318 | I13: 63.09619603 | J13: Cumple | L13: 1040195.268 | M13: 980285.1422 | N13: 59910.12589 | O13: Cumple
B14: 6 | C14: 060000 | D14: CAJAMARCA | E14: 1462745.881 | F14: 1414566.535 | G14: 152939.9025 | H14: 0 | I14: 103.4059441 | J14: No Cumple | L14: 1669006.206 | M14: 1586182.578 | N14: 82823.62781 | O14: Cumple
B15: 7 | C15: 070000 | D15: CALLAO | E15: 589657.7819 | F15: 871366.5761 | G15: 662747.8684 | H15: 281708.7941 | I15: 67.67046134 | J15: Cumple | L15: 920102.3247 | M15: 864999.5462 | N15: 55102.77851 | O15: Cumple
B16: 8 | C16: 080000 | D16: CUSCO | E16: 1097678.795 | F16: 1529163.146 | G16: 918644.8005 | H16: 431484.3513 | I16: 71.78297474 | J16: Cumple | L16: 1651449.289 | M16: 1318804.318 | N16: 332644.9714 | O16: Cumple
B17: 9 | C17: 090000 | D17: HUANCAVELICA | E17: 239737.2662 | F17: 658576.9333 | G17: 91546.91424 | H17: 418839.6672 | I17: 36.40231749 | J17: Cumple | L17: 789081.2589 | M17: 754043.5088 | N17: 35037.75013 | O17: Cumple
B18: 10 | C18: 100000 | D18: HUANUCO | E18: 223285.1615 | F18: 725858.3996 | G18: 1109.5929 | H18: 502573.2381 | I18: 30.76153168 | J18: Cumple | L18: 872701.5572 | M18: 854086.258 | N18: 18615.29919 | O18: Cumple
B19: 11 | C19: 110000 | D19: ICA | E19: 257162.2798 | F19: 770932.1252 | G19: 103228.3578 | H19: 513769.8454 | I19: 33.3573179 | J19: Cumple | L19: 870748.4322 | M19: 823038.7486 | N19: 47709.68365 | O19: Cumple
B20: 12 | C20: 120000 | D20: JUNIN | E20: 669109.3454 | F20: 1131332.075 | G20: 37006.03448 | H20: 462222.7295 | I20: 59.14349644 | J20: Cumple | L20: 1338298.736 | M20: 1301118.79 | N20: 37179.94568 | O20: Cumple
B21: 13 | C21: 130000 | D21: LA LIBERTAD | E21: 1422405.447 | F21: 1407672.558 | G21: 175261.7726 | H21: 0 | I21: 101.0466134 | J21: No Cumple | L21: 1609307.716 | M21: 1519975.575 | N21: 89332.14115 | O21: Cumple
B22: 14 | C22: 140000 | D22: LAMBAYEQUE | E22: 410044.0222 | F22: 844438.636 | G22: 6.72283 | H22: 434394.6137 | I22: 48.55817875 | J22: Cumple | L22: 990250.5492 | M22: 947419.6993 | N22: 42830.84988 | O22: Cumple
B23: 15 | C23: 150000 | D23: LIMA | E23: 290935.0128 | F23: 953273.5455 | G23: 114778.1122 | H23: 662338.5326 | I23: 30.51957271 | J23: Cumple | L23: 1138516.52 | M23: 1040163.791 | N23: 98352.72902 | O23: Cumple
B24: 16 | C24: 160000 | D24: LORETO | E24: 453293.9883 | F24: 1139692.66 | G24: 123907.3503 | H24: 686398.6715 | I24: 39.77335331 | J24: Cumple | L24: 1314741.736 | M24: 1284474.738 | N24: 30266.9974 | O24: Cumple
B25: 17 | C25: 170000 | D25: MADRE DE DIOS | E25: 140615.1293 | F25: 182358.9979 | G25: 304.36732 | H25: 41743.86868 | I25: 77.10896136 | J25: Cumple | L25: 215221.2254 | M25: 209879.3495 | N25: 5341.87593 | O25: Cumple
B26: 18 | C26: 180000 | D26: MOQUEGUA | E26: 394591.2816 | F26: 292607.3873 | G26: 126247.5342 | H26: 0 | I26: 134.8534927 | J26: No Cumple | L26: 305932.7109 | M26: 281223.4601 | N26: 24709.25072 | O26: Cumple
B27: 19 | C27: 190000 | D27: PASCO | E27: 283578.3369 | F27: 328434.8441 | G27: 36482.24869 | H27: 44856.50723 | I27: 86.34234216 | J27: Cumple | L27: 374566.851 | M27: 351879.072 | N27: 22687.77896 | O27: Cumple
B28: 20 | C28: 200000 | D28: PIURA | E28: 1449528.074 | F28: 1384760.818 | G28: 207786.4344 | H28: 0 | I28: 104.6771439 | J28: No Cumple | L28: 1606924.05 | M28: 1493620.274 | N28: 113303.7766 | O28: Cumple
B29: 21 | C29: 210000 | D29: PUNO | E29: 1170128.759 | F29: 1217861.144 | G29: 74740.7535 | H29: 47732.38496 | I29: 96.08063816 | J29: Cumple | L29: 1414055.281 | M29: 1373561.385 | N29: 40493.89548 | O29: Cumple
B30: 22 | C30: 220000 | D30: SAN MARTIN | E30: 565820.3791 | F30: 838736.2508 | G30: 1019.87926 | H30: 272915.8717 | I30: 67.46106163 | J30: Cumple | L30: 942561.3155 | M30: 861465.5574 | N30: 81095.75814 | O30: Cumple
B31: 23 | C31: 230000 | D31: TACNA | E31: 343385.1917 | F31: 400826.1692 | G31: 117163.72 | H31: 57440.97744 | I31: 85.66935448 | J31: Cumple | L31: 435336.4546 | M31: 405042.411 | N31: 30294.04364 | O31: Cumple
B32: 24 | C32: 240000 | D32: TUMBES | E32: 183571.9888 | F32: 359622.1623 | G32: 86440.89998 | H32: 176050.1735 | I32: 51.04579419 | J32: Cumple | L32: 393766.4728 | M32: 378142.9892 | N32: 15623.48359 | O32: Cumple
B33: 25 | C33: 250000 | D33: UCAYALI | E33: 358699.9046 | F33: 515210.3114 | G33: 73337.20062 | H33: 156510.4069 | I33: 69.62203523 | J33: Cumple | L33: 581207.5492 | M33: 563029.3915 | N33: 18178.15767 | O33: Cumple
B34: 26 | C34: 260000 | D34: MM LIMA | E34: 5195.06745 | F34: 21635.93317 | G34: 9191.84998 | H34: 16440.86572 | I34: 24.01129366 | J34: Cumple | L34: 34533.80553 | M34: 16060.52531 | N34: 18473.28022 | O34: Cumple
B36: TOTAL | E36: =+SUM(E9:E34) -> 15361875.12 | G36: =+SUM(G9:G34) -> 3680252.032 | H36: =+SUM(H9:H34) -> 6386225.138 | L36: =+SUM(L9:L34) -> 24591202.69 | M36: =+SUM(M9:M34) -> 22974169.31 | N36: =+SUM(N9:N34) -> 1617033.376
B38: 1/ Corresponde a la suma de los flujos transferidos por concepto de Recursos Determinados provenientes de Canon, Sobrecanon, Regalías, Renta de Aduanas y Participaciones de los años 2015 y 2016, informados por la DGETP mediante el Memorando N° 149-2017-EF/52.06, más el tope presupuestal por el mismo concepto incluido en el Presupuesto Institucional de Apertura 2017, aprobado mediante Ley N° 30518 – Ley de Presupuesto del Sector Público para el Año Fiscal 2017, (que considera los montos publicados mediante R.D. N° 015-2016-EF/50.01).
B39: Nota: En el caso de saldo de pasivos la información disponible es al 2017, deuda exigible a diciembre 2017 y deuda real a enero 2018.
B40: Fuente: DGCP-MEF, SIAF-MEF, SUNAT, SBS y AFP.

Sheet Anexo_GL
A1: Anexo N° 2: Cumplimiento de las Reglas Fiscales Subnacionales 2017
A2: Gobiernos Locales
A5: N° | B5: Ubigeo | C5: Departamento | D5: Municipalidad | E5: R1: Regla Fiscal de Saldo de Deuda Total | L5: R2: Regla Fiscal de Ahorro en Cuenta Corriente
E6: 2017 | L6: 2017
E7: S/ Miles | I7: SDT/Prom. ICT 2014-2017 ó SDT/ Lím Ley N° 29230 ó SDT/ ICT 2017 % | J7: Cumple R1 | L7: S/ Miles | O7: Cumple R2 2/
E8: Saldo de Deuda Total | F8: Prom. ICT 2014-2017 ó ICT 2017 | G8: Límite Ley N° 29230 1/ | H8: Espacio Total | L8: Ingreso Corriente Total | M8: Gasto Corriente Total | N8: Ahorro en Cuenta Corriente
A9: 1 | B9: 010101 | C9: AMAZONAS | D9: MUNICIPALIDAD PROVINCIAL DE CHACHAPOYAS | E9: 4451.114048 | F9: 13782.02555 | G9: 0.93996 | H9: 9330.911505 | I9: 32.29651571 | J9: Cumple | L9: 16069.10944 | M9: 14123.97273 | N9: 1945.13671 | O9: Cumple
A10: 2 | B10: 010102 | C10: AMAZONAS | D10: MUNICIPALIDAD DISTRITAL DE ASUNCION | E10: 718.0378 | F10: 695.5574075 | G10: 0.00055 | H10: 0 | I10: 103.2319967 | J10: No Cumple | L10: 468.60707 | M10: 312.44876 | N10: 156.15831 | O10: Cumple
A11: 3 | B11: 010103 | C11: AMAZONAS | D11: MUNICIPALIDAD DISTRITAL DE BALSAS | E11: 43.72784 | F11: 629.626535 | G11: 0.04301 | H11: 585.898695 | I11: 6.945044017 | J11: Cumple | L11: 783.15044 | M11: 391.96803 | N11: 391.18241 | O11: Cumple
A12: 4 | B12: 010104 | C12: AMAZONAS | D12: MUNICIPALIDAD DISTRITAL DE CHETO | E12: 208.33745 | F12: 491.5443625 | G12: 0.00124 | H12: 283.2069125 | I12: 42.38426191 | J12: Cumple | L12: 466.77284 | M12: 237.65247 | N12: 229.12037 | O12: Cumple
A13: 5 | B13: 010105 | C13: AMAZONAS | D13: MUNICIPALIDAD DISTRITAL DE CHILIQUIN | E13: 3.76024 | F13: 832.4214725 | G13: 0.00133 | H13: 828.6612325 | I13: 0.4517230903 | J13: Cumple | L13: 462.59791 | M13: 289.71258 | N13: 172.88533 | O13: Cumple
A14: 6 | B14: 010106 | C14: AMAZONAS | D14: MUNICIPALIDAD DISTRITAL DE CHUQUIBAMBA | E14: 154.69619 | F14: 586.360035 | G14: 0.00262 | H14: 431.663845 | I14: 26.38245801 | J14: Cumple | L14: 703.05655 | M14: 419.50453 | N14: 283.55202 | O14: Cumple
A15: 7 | B15: 010107 | C15: AMAZONAS | D15: MUNICIPALIDAD DISTRITAL DE GRANADA | E15: 171.31427 | F15: 551.947615 | G15: 0.00067 | H15: 380.633345 | I15: 31.03813937 | J15: Cumple | L15: 579.39651 | M15: 383.67457 | N15: 195.72194 | O15: Cumple
A16: 8 | B16: 010108 | C16: AMAZONAS | D16: MUNICIPALIDAD DISTRITAL DE HUANCAS | E16: 134.28501 | F16: 718.5139425 | G16: 0.00275 | H16: 584.2289325 | I16: 18.6892699 | J16: Cumple | L16: 799.84936 | M16: 495.0177 | N16: 304.83166 | O16: Cumple
A17: 9 | B17: 010109 | C17: AMAZONAS | D17: MUNICIPALIDAD DISTRITAL DE JALCA GRANDE | E17: 16.64592 | F17: 1234.754665 | G17: 0.98325 | H17: 1218.108745 | I17: 1.348115579 | J17: Cumple | L17: 1298.24108 | M17: 687.03904 | N17: 611.20204 | O17: Cumple
A18: 10 | B18: 010110 | C18: AMAZONAS | D18: MUNICIPALIDAD DISTRITAL DE LEIMEBAMBA | E18: 116.99838 | F18: 983.620295 | G18: 0.00389 | H18: 866.621915 | I18: 11.89466917 | J18: Cumple | L18: 906.55055 | M18: 876.61345 | N18: 29.9371 | O18: Cumple
A19: 11 | B19: 010111 | C19: AMAZONAS | D19: MUNICIPALIDAD DISTRITAL DE LEVANTO | E19: 26.02434 | F19: 696.0744175 | G19: 0.00182 | H19: 670.0500775 | I19: 3.738729559 | J19: Cumple | L19: 649.2069 | M19: 423.41334 | N19: 225.79356 | O19: Cumple
A20: 12 | B20: 010112 | C20: AMAZONAS | D20: MUNICIPALIDAD DISTRITAL DE MAGDALENA | E20: 11.6592 | F20: 714.63822 | G20: 0.00175 | H20: 702.97902 | I20: 1.63148285 | J20: Cumple | L20: 422.52159 | M20: 479.93708 | N20: -57.41549 | O20: No Cumple
A21: 13 | B21: 010113 | C21: AMAZONAS | D21: MUNICIPALIDAD DISTRITAL DE MARISCAL CASTILLA | E21: 8.61935 | F21: 602.90069 | G21: 0.00094 | H21: 594.28134 | I21: 1.42964673 | J21: Cumple | L21: 609.1305 | M21: 236.75417 | N21: 372.37633 | O21: Cumple
A22: 14 | B22: 010114 | C22: AMAZONAS | D22: MUNICIPALIDAD DISTRITAL DE MOLINOPAMPA | E22: 1354.90473 | F22: 891.5860925 | G22: 0.00405 | H22: 0 | I22: 151.9656645 | J22: No Cumple | L22: 709.64796 | M22: 451.66855 | N22: 257.97941 | O22: Cumple
A23: 15 | B23: 010115 | C23: AMAZONAS | D23: MUNICIPALIDAD DISTRITAL DE MONTEVIDEO | E23: 13.45385 | F23: 542.7416075 | G23: 0.00124 | H23: 529.2877575 | I23: 2.478868363 | J23: Cumple | L23: 590.73272 | M23: 304.87396 | N23: 285.85876 | O23: Cumple
A24: 16 | B24: 010116 | C24: AMAZONAS | D24: MUNICIPALIDAD DISTRITAL DE OLLEROS | E24: 383.38543 | F24: 520.51641 | G24: 0.0006 | H24: 137.13098 | I24: 73.65482099 | J24: Cumple | L24: 565.48465 | M24: 414.83047 | N24: 150.65418 | O24: Cumple
A25: 17 | B25: 010117 | C25: AMAZONAS | D25: MUNICIPALIDAD DISTRITAL DE QUINJALCA | E25: 8.90213 | F25: 574.569995 | G25: 0.0017 | H25: 565.667865 | I25: 1.549355183 | J25: Cumple | L25: 599.83748 | M25: 263.37234 | N25: 336.46514 | O25: Cumple
A26: 18 | B26: 010118 | C26: AMAZONAS | D26: MUNICIPALIDAD DISTRITAL DE SAN FRANCISCO DE DAGUAS | E26: 53.2465 | F26: 546.1003 | G26: 0.00057 | H26: 492.8538 | I26: 9.750315098 | J26: Cumple | L26: 598.13157 | M26: 275.31759 | N26: 322.81398 | O26: Cumple
A27: 19 | B27: 010119 | C27: AMAZONAS | D27: MUNICIPALIDAD DISTRITAL DE SAN ISIDRO DE MAYNO | E27: 18.53980999 | F27: 498.01759 | G27: 0.00164 | H27: 479.47778 | I27: 3.722721921 | J27: Cumple | L27: 444.92221 | M27: 219.45824 | N27: 225.46397 | O27: Cumple
A28: 20 | B28: 010120 | C28: AMAZONAS | D28: MUNICIPALIDAD DISTRITAL DE SOLOCO | E28: 1380.70437 | F28: 885.89456 | G28: 0.00158 | H28: 0 | I28: 155.8542554 | J28: No Cumple | L28: 702.55826 | M28: 375.28315 | N28: 327.27511 | O28: Cumple
A29: 21 | B29: 010121 | C29: AMAZONAS | D29: MUNICIPALIDAD DISTRITAL DE SONCHE | E29: 14.06640997 | F29: 470.7127225 | G29: 0.00046 | H29: 456.6463125 | I29: 2.988321602 | J29: Cumple | L29: 482.80044 | M29: 341.09206 | N29: 141.70838 | O29: Cumple
A30: 22 | B30: 010201 | C30: AMAZONAS | D30: MUNICIPALIDAD PROVINCIAL DE BAGUA - LA PECA | E30: 2012.2073 | F30: 11633.76614 | G30: 0.80018 | H30: 9621.55884 | I30: 17.2962674 | J30: Cumple | L30: 12793.14816 | M30: 11620.68767 | N30: 1172.46049 | O30: Cumple
A31: 23 | B31: 010202 | C31: AMAZONAS | D31: MUNICIPALIDAD DISTRITAL DE ARAMANGO | E31: 1147.85155 | F31: 3695.93651 | G31: 1.10658 | H31: 2548.08496 | I31: 31.05712306 | J31: Cumple | L31: 3384.02543 | M31: 2387.98344 | N31: 996.04199 | O31: Cumple
A32: 24 | B32: 010203 | C32: AMAZONAS | D32: MUNICIPALIDAD DISTRITAL DE COPALLIN | E32: 148.16118 | F32: 1873.864365 | G32: 0.00141 | H32: 1725.703185 | I32: 7.906718479 | J32: Cumple | L32: 1832.03142 | M32: 1519.68162 | N32: 312.3498 | O32: Cumple
A33: 25 | B33: 010204 | C33: AMAZONAS | D33: MUNICIPALIDAD DISTRITAL DE EL PARCO | E33: 123.9875799 | F33: 653.993685 | G33: 0.00047 | H33: 530.0061051 | I33: 18.95852861 | J33: Cumple | L33: 564.19892 | M33: 502.74681 | N33: 61.45211 | O33: Cumple
A34: 26 | B34: 010205 | C34: AMAZONAS | D34: MUNICIPALIDAD DISTRITAL DE IMAZA | E34: 6354.174412 | F34: 7932.299943 | G34: 2.19605 | H34: 1578.125531 | I34: 80.10506988 | J34: Cumple | L34: 8016.96339 | M34: 4924.85828 | N34: 3092.10511 | O34: Cumple
A35: 27 | B35: 010206 | C35: AMAZONAS | D35: MUNICIPALIDAD DISTRITAL DE LA PECA | E35: 149.29369 | F35: 2199.704705 | G35: 0.00204 | H35: 2050.411015 | I35: 6.786987802 | J35: Cumple | L35: 2067.65192 | M35: 1565.64603 | N35: 502.00589 | O35: Cumple
A36: 28 | B36: 010301 | C36: AMAZONAS | D36: MUNICIPALIDAD PROVINCIAL DE BONGARA - JUMBILLA | E36: 1632.96662 | F36: 3733.640743 | G36: 0.00052 | H36: 2100.674122 | I36: 43.73657598 | J36: Cumple | L36: 3706.81722 | M36: 2636.74519 | N36: 1070.07203 | O36: Cumple
A37: 29 | B37: 010302 | C37: AMAZONAS | D37: MUNICIPALIDAD DISTRITAL DE CHISQUILLA | E37: 10.05369998 | F37: 1001.775467 | G37: 4e-05 | H37: 991.7217675 | I37: 1.00358816 | J37: Cumple | L37: 440.6194 | M37: 383.38638 | N37: 57.23302 | O37: Cumple
A38: 30 | B38: 010303 | C38: AMAZONAS | D38: MUNICIPALIDAD DISTRITAL DE CHURUJA | E38: 1.72522 | F38: 3627.96194 | G38: 4e-05 | H38: 3626.23672 | I38: 0.04755342059 | J38: Cumple | L38: 435.27359 | M38: 272.103 | N38: 163.17059 | O38: Cumple
A39: 31 | B39: 010304 | C39: AMAZONAS | D39: MUNICIPALIDAD DISTRITAL DE COROSHA | E39: 42.4829 | F39: 748.524715 | G39: 0.00019 | H39: 706.041815 | I39: 5.67555074 | J39: Cumple | L39: 434.90881 | M39: 334.31156 | N39: 100.59725 | O39: Cumple
A40: 32 | B40: 010305 | C40: AMAZONAS | D40: MUNICIPALIDAD DISTRITAL DE CUISPES | E40: 20.56163 | F40: 555.8233925 | G40: 0.00012 | H40: 535.2617625 | I40: 3.699309939 | J40: Cumple | L40: 465.87995 | M40: 287.19733 | N40: 178.68262 | O40: Cumple
A41: 33 | B41: 010306 | C41: AMAZONAS | D41: MUNICIPALIDAD DISTRITAL DE FLORIDA | E41: 121.22881 | F41: 1946.398893 | G41: 0.00197 | H41: 1825.170083 | I41: 6.228364107 | J41: Cumple | L41: 1750.54244 | M41: 1363.63719 | N41: 386.90525 | O41: Cumple
A42: 34 | B42: 010307 | C42: AMAZONAS | D42: MUNICIPALIDAD DISTRITAL DE JAZAN | E42: 990.1160376 | F42: 2315.205465 | G42: 0.00128 | H42: 1325.089427 | I42: 42.76579563 | J42: Cumple | L42: 2700.34162 | M42: 1643.81771 | N42: 1056.52391 | O42: Cumple
A43: 35 | B43: 010308 | C43: AMAZONAS | D43: MUNICIPALIDAD DISTRITAL DE RECTA | E43: 21.04264 | F43: 432.3656375 | G43: 3e-05 | H43: 411.3229975 | I43: 4.866862252 | J43: Cumple | L43: 414.8461 | M43: 284.63697 | N43: 130.20913 | O43: Cumple
A44: 36 | B44: 010309 | C44: AMAZONAS | D44: MUNICIPALIDAD DISTRITAL DE SAN CARLOS | E44: 52.08680999 | F44: 1670.318418 | G44: 3e-05 | H44: 1618.231608 | I44: 3.11837608 | J44: Cumple | L44: 540.25282 | M44: 297.57629 | N44: 242.67653 | O44: Cumple
A45: 37 | B45: 010310 | C45: AMAZONAS | D45: MUNICIPALIDAD DISTRITAL DE SHIPASBAMBA | E45: 9.38221 | F45: 729.29701 | G45: 0.00053 | H45: 719.9148 | I45: 1.28647312 | J45: Cumple | L45: 821.24778 | M45: 464.26852 | N45: 356.97926 | O45: Cumple
A46: 38 | B46: 010311 | C46: AMAZONAS | D46: MUNICIPALIDAD DISTRITAL DE VALERA | E46: 43.41838 | F46: 582.4132875 | G46: 0.00044 | H46: 538.9949075 | I46: 7.4549089 | J46: Cumple | L46: 468.799 | M46: 286.70904 | N46: 182.08996 | O46: Cumple
A47: 39 | B47: 010312 | C47: AMAZONAS | D47: MUNICIPALIDAD DISTRITAL DE YAMBRASBAMBA | E47: 340.34146 | F47: 2469.25229 | G47: 0.00246 | H47: 2128.91083 | I47: 13.78317887 | J47: Cumple | L47: 2320.98977 | M47: 1767.12979 | N47: 553.85998 | O47: Cumple
A48: 40 | B48: 010401 | C48: AMAZONAS | D48: MUNICIPALIDAD PROVINCIAL DE CONDORCANQUI - NIEVA | E48: 2195.30029 | F48: 16229.00684 | G48: 2.38973 | H48: 14033.70655 | I48: 13.52701562 | J48: Cumple | L48: 16080.02968 | M48: 10985.61602 | N48: 5094.41366 | O48: Cumple
A49: 41 | B49: 010402 | C49: AMAZONAS | D49: MUNICIPALIDAD DISTRITAL DE EL CENEPA | E49: 1134.84564 | F49: 4080.38825 | G49: 0.60595 | H49: 2945.54261 | I49: 27.81219753 | J49: Cumple | L49: 4207.92137 | M49: 3413.76748 | N49: 794.15389 | O49: Cumple
A50: 42 | B50: 010403 | C50: AMAZONAS | D50: MUNICIPALIDAD DISTRITAL DE RIO SANTIAGO | E50: 1802.77395 | F50: 6466.00218 | G50: 1.03704 | H50: 4663.22823 | I50: 27.88081259 | J50: Cumple | L50: 7042.83647 | M50: 4285.65716 | N50: 2757.17931 | O50: Cumple
A51: 43 | B51: 010501 | C51: AMAZONAS | D51: MUNICIPALIDAD PROVINCIAL DE LUYA - LAMUD | E51: 1279.08794 | F51: 5874.012588 | G51: 0.00044 | H51: 4594.924647 | I51: 21.77536941 | J51: Cumple | L51: 6049.64647 | M51: 3791.00798 | N51: 2258.63849 | O51: Cumple
A52: 44 | B52: 010502 | C52: AMAZONAS | D52: MUNICIPALIDAD DISTRITAL DE CAMPORREDONDO | E52: 12.17590001 | F52: 1953.020555 | G52: 0.00202 | H52: 1940.844655 | I52: 0.6234394195 | J52: Cumple | L52: 1882.23333 | M52: 1122.83825 | N52: 759.39508 | O52: Cumple
A53: 45 | B53: 010503 | C53: AMAZONAS | D53: MUNICIPALIDAD DISTRITAL DE COCABAMBA | E53: 317.92283 | F53: 934.0606675 | G53: 0.00068 | H53: 616.1378375 | I53: 34.03663606 | J53: Cumple | L53: 824.47343 | M53: 489.95276 | N53: 334.52067 | O53: Cumple
A54: 46 | B54: 010504 | C54: AMAZONAS | D54: MUNICIPALIDAD DISTRITAL DE COLCAMAR | E54: 423.84588 | F54: 734.9189775 | G54: 0.0005 | H54: 311.0730975 | I54: 57.67246363 | J54: Cumple | L54: 601.42301 | M54: 403.98779 | N54: 197.43522 | O54: Cumple
A55: 47 | B55: 010505 | C55: AMAZONAS | D55: MUNICIPALIDAD DISTRITAL DE CONILA | E55: 367.66321 | F55: 915.4187325 | G55: 0.00057 | H55: 547.7555225 | I55: 40.16339157 | J55: Cumple | L55: 742.45485 | M55: 382.71765 | N55: 359.7372 | O55: Cumple
A56: 48 | B56: 010506 | C56: AMAZONAS | D56: MUNICIPALIDAD DISTRITAL DE INGUILPATA | E56: 15.66242 | F56: 540.683965 | G56: 5e-05 | H56: 525.021545 | I56: 2.896779082 | J56: Cumple | L56: 592.94178 | M56: 327.63298 | N56: 265.3088 | O56: Cumple
A57: 49 | B57: 010507 | C57: AMAZONAS | D57: MUNICIPALIDAD DISTRITAL DE LONGUITA | E57: 2893.40199 | F57: 591.9870575 | G57: 0.00044 | H57: 0 | I57: 488.7610216 | J57: No Cumple | L57: 597.71436 | M57: 352.30457 | N57: 245.40979 | O57: Cumple
A58: 50 | B58: 010508 | C58: AMAZONAS | D58: MUNICIPALIDAD DISTRITAL DE LONYA CHICO | E58: 8.88775 | F58: 720.77785 | G58: 9e-05 | H58: 711.8901 | I58: 1.23307757 | J58: Cumple | L58: 749.06439 | M58: 424.27859 | N58: 324.7858 | O58: Cumple
A59: 51 | B59: 010509 | C59: AMAZONAS | D59: MUNICIPALIDAD DISTRITAL DE LUYA | E59: 96.40387989 | F59: 1191.328412 | G59: 0.00068 | H59: 1094.924533 | I59: 8.092133024 | J59: Cumple | L59: 1176.61247 | M59: 835.24554 | N59: 341.36693 | O59: Cumple
A60: 52 | B60: 010510 | C60: AMAZONAS | D60: MUNICIPALIDAD DISTRITAL DE LUYA VIEJO | E60: 46.48212 | F60: 493.722455 | G60: 7e-05 | H60: 447.240335 | I60: 9.41462547 | J60: Cumple | L60: 584.97534 | M60: 307.94436 | N60: 277.03098 | O60: Cumple
A61: 53 | B61: 010511 | C61: AMAZONAS | D61: MUNICIPALIDAD DISTRITAL DE MARIA | E61: 19.94693 | F61: 559.939725 | G61: 5e-05 | H61: 539.992795 | I61: 3.562335214 | J61: Cumple | L61: 603.02789 | M61: 276.53108 | N61: 326.49681 | O61: Cumple
A62: 54 | B62: 010512 | C62: AMAZONAS | D62: MUNICIPALIDAD DISTRITAL DE OCALLI | E62: 308.84661 | F62: 1318.667637 | G62: 0.00132 | H62: 1009.821028 | I62: 23.42111092 | J62: Cumple | L62: 1143.29822 | M62: 736.94528 | N62: 406.35294 | O62: Cumple
A63: 55 | B63: 010513 | C63: AMAZONAS | D63: MUNICIPALIDAD DISTRITAL DE OCUMAL | E63: 4119.96145 | F63: 1427.399623 | G63: 0.00132 | H63: 0 | I63: 288.6340577 | J63: No Cumple | L63: 1440.23008 | M63: 658.47574 | N63: 781.75434 | O63: Cumple
A64: 56 | B64: 010514 | C64: AMAZONAS | D64: MUNICIPALIDAD DISTRITAL DE PIZUQUIA | E64: 857.68714 | F64: 2146.60085 | G64: 0.00148 | H64: 1288.91371 | I64: 39.95559491 | J64: Cumple | L64: 2171.05919 | M64: 1267.30343 | N64: 903.75576 | O64: Cumple
A65: 57 | B65: 010515 | C65: AMAZONAS | D65: MUNICIPALIDAD DISTRITAL DE PROVIDENCIA | E65: 70.05701001 | F65: 652.093555 | G65: 0.00047 | H65: 582.036545 | I65: 10.74339862 | J65: Cumple | L65: 511.57712 | M65: 384.8559 | N65: 126.72122 | O65: Cumple
A66: 58 | B66: 010516 | C66: AMAZONAS | D66: MUNICIPALIDAD DISTRITAL DE SAN CRISTOBAL DE OLTO | E66: 25.75778 | F66: 546.7938375 | G66: 0.00012 | H66: 521.0360575 | I66: 4.710693178 | J66: Cumple | L66: 471.62967 | M66: 253.84712 | N66: 217.78255 | O66: Cumple
A67: 59 | B67: 010517 | C67: AMAZONAS | D67: MUNICIPALIDAD DISTRITAL DE SAN FRANCISCO DE YESO | E67: 19.84001 | F67: 517.249655 | G67: 0.00015 | H67: 497.409645 | I67: 3.835673897 | J67: Cumple | L67: 473.47665 | M67: 306.84859 | N67: 166.62806 | O67: Cumple
A68: 60 | B68: 010518 | C68: AMAZONAS | D68: MUNICIPALIDAD DISTRITAL DE SAN JERONIMO DE PACLAS | E68: 37.5929 | F68: 542.778955 | G68: 0.00016 | H68: 505.186055 | I68: 6.926005449 | J68: Cumple | L68: 456.59374 | M68: 282.09885 | N68: 174.49489 | O68: Cumple
A69: 61 | B69: 010519 | C69: AMAZONAS | D69: MUNICIPALIDAD DISTRITAL DE SAN JUAN DE LOPECANCHA | E69: 969.54402 | F69: 647.71707 | G69: 9e-05 | H69: 0 | I69: 149.6863468 | J69: No Cumple | L69: 463.44197 | M69: 235.16869 | N69: 228.27328 | O69: Cumple
A70: 62 | B70: 010520 | C70: AMAZONAS | D70: MUNICIPALIDAD DISTRITAL DE SANTA CATALINA | E70: 49.39260001 | F70: 831.525195 | G70: 0.00047 | H70: 782.132595 | I70: 5.940000412 | J70: Cumple | L70: 742.19286 | M70: 358.76275 | N70: 383.43011 | O70: Cumple
A71: 63 | B71: 010521 | C71: AMAZONAS | D71: MUNICIPALIDAD DISTRITAL DE SANTO TOMAS | E71: 164.11109 | F71: 1302.033042 | G71: 0.00108 | H71: 1137.921952 | I71: 12.60421853 | J71: Cumple | L71: 1196.17165 | M71: 897.15742 | N71: 299.01423 | O71: Cumple
A72: 64 | B72: 010522 | C72: AMAZONAS | D72: MUNICIPALIDAD DISTRITAL DE TINGO | E72: 65.10034 | F72: 577.191375 | G72: 0.00016 | H72: 512.091035 | I72: 11.27881372 | J72: Cumple | L72: 505.2199 | M72: 576.7178 | N72: -71.4979 | O72: No Cumple
A73: 65 | B73: 010523 | C73: AMAZONAS | D73: MUNICIPALIDAD DISTRITAL DE TRITA | E73: 5.794560003 | F73: 500.18563 | G73: 0.00044 | H73: 494.39107 | I73: 1.158481903 | J73: Cumple | L73: 601.46764 | M73: 248.69646 | N73: 352.77118 | O73: Cumple
A74: 66 | B74: 010601 | C74: AMAZONAS | D74: MUNICIPALIDAD PROVINCIAL DE RODRIGUEZ DE MENDOZA - SAN NICOLAS | E74: 5641.87233 | F74: 5828.725613 | G74: 0.00053 | H74: 186.8532825 | I74: 96.79426868 | J74: Cumple | L74: 5904.17279 | M74: 4783.45454 | N74: 1120.71825 | O74: Cumple
A75: 67 | B75: 010602 | C75: AMAZONAS | D75: MUNICIPALIDAD DISTRITAL DE CHIRIMOTO | E75: 2106.69637 | F75: 888.0525125 | G75: 0.00056 | H75: 0 | I75: 237.2265536 | J75: No Cumple | L75: 633.30983 | M75: 441.77729 | N75: 191.53254 | O75: Cumple
A76: 68 | B76: 010603 | C76: AMAZONAS | D76: MUNICIPALIDAD DISTRITAL DE COCHAMAL | E76: 231.78839 | F76: 456.3314575 | G76: 9e-05 | H76: 224.5430675 | I76: 50.79386621 | J76: Cumple | L76: 466.56529 | M76: 287.68772 | N76: 178.87757 | O76: Cumple
A77: 69 | B77: 010604 | C77: AMAZONAS | D77: MUNICIPALIDAD DISTRITAL DE HUAMBO | E77: 99.63177006 | F77: 719.8563925 | G77: 0.00068 | H77: 620.2246224 | I77: 13.8405064 | J77: Cumple | L77: 673.09522 | M77: 474.12527 | N77: 198.96995 | O77: Cumple
A78: 70 | B78: 010605 | C78: AMAZONAS | D78: MUNICIPALIDAD DISTRITAL DE LIMABAMBA | E78: 2211.25421 | F78: 956.65737 | G78: 0.00073 | H78: 0 | I78: 231.1438013 | J78: No Cumple | L78: 813.16116 | M78: 622.35732 | N78: 190.80384 | O78: Cumple
A79: 71 | B79: 010606 | C79: AMAZONAS | D79: MUNICIPALIDAD DISTRITAL DE LONGAR | E79: 69.04142 | F79: 541.57419 | G79: 0.00018 | H79: 472.53277 | I79: 12.74828477 | J79: Cumple | L79: 684.54958 | M79: 433.47588 | N79: 251.0737 | O79: Cumple
A80: 72 | B80: 010607 | C80: AMAZONAS | D80: MUNICIPALIDAD DISTRITAL DE MARISCAL BENAVIDES | E80: 796.66861 | F80: 998.0894 | G80: 0.0001 | H80: 201.42079 | I80: 79.81936388 | J80: Cumple | L80: 675.91482 | M80: 480.19632 | N80: 195.7185 | O80: Cumple
A81: 73 | B81: 010608 | C81: AMAZONAS | D81: MUNICIPALIDAD DISTRITAL DE MILPUC | E81: 92.57007 | F81: 497.6422675 | G81: 0.0001 | H81: 405.0721975 | I81: 18.60172981 | J81: Cumple | L81: 600.36323 | M81: 470.1463 | N81: 130.21693 | O81: Cumple
A82: 74 | B82: 010609 | C82: AMAZONAS | D82: MUNICIPALIDAD DISTRITAL DE OMIA | E82: 119.2923099 | F82: 3483.929433 | G82: 0.00251 | H82: 3364.637123 | I82: 3.424073658 | J82: Cumple | L82: 4283.23827 | M82: 1982.68575 | N82: 2300.55252 | O82: Cumple
A83: 75 | B83: 010610 | C83: AMAZONAS | D83: MUNICIPALIDAD DISTRITAL DE SANTA ROSA | E83: 29.03246 | F83: 497.6251275 | G83: 5e-05 | H83: 468.5926675 | I83: 5.834202976 | J83: Cumple | L83: 484.9433 | M83: 367.62442 | N83: 117.31888 | O83: Cumple
A84: 76 | B84: 010611 | C84: AMAZONAS | D84: MUNICIPALIDAD DISTRITAL DE TOTORA | E84: 110.32345 | F84: 542.7546975 | G84: 6e-05 | H84: 432.4312475 | I84: 20.32657672 | J84: Cumple | L84: 603.42063 | M84: 354.9697 | N84: 248.45093 | O84: Cumple
A85: 77 | B85: 010612 | C85: AMAZONAS | D85: MUNICIPALIDAD DISTRITAL DE VISTA ALEGRE | E85: 55.21213 | F85: 1097.908547 | G85: 0.00108 | H85: 1042.696417 | I85: 5.028845993 | J85: Cumple | L85: 1171.8134 | M85: 447.18571 | N85: 724.62769 | O85: Cumple
A86: 78 | B86: 010701 | C86: AMAZONAS | D86: MUNICIPALIDAD PROVINCIA DE UTCUBAMBA - BAGUA GRANDE | E86: 2748.596413 | F86: 25543.03734 | G86: 0.98886 | H86: 22794.44093 | I86: 10.7606483 | J86: Cumple | L86: 26894.17328 | M86: 19701.86559 | N86: 7192.30769 | O86: Cumple
A87: 79 | B87: 010702 | C87: AMAZONAS | D87: MUNICIPALIDAD DISTRITAL DE CAJARURO | E87: 2732.49588 | F87: 9492.787947 | G87: 0.80291 | H87: 6760.292068 | I87: 28.78496702 | J87: Cumple | L87: 9931.72258 | M87: 5914.5318 | N87: 4017.19078 | O87: Cumple
A88: 80 | B88: 010703 | C88: AMAZONAS | D88: MUNICIPALIDAD DISTRITAL DE CUMBA | E88: 80.84093 | F88: 3231.440163 | G88: 0.00261 | H88: 3150.599232 | I88: 2.501699736 | J88: Cumple | L88: 2831.05623 | M88: 2173.2756 | N88: 657.78063 | O88: Cumple
A89: 81 | B89: 010704 | C89: AMAZONAS | D89: MUNICIPALIDAD DISTRITAL DE EL MILAGRO | E89: 478.09522 | F89: 2583.795697 | G89: 0.00145 | H89: 2105.700478 | I89: 18.50359997 | J89: Cumple | L89: 2415.0167 | M89: 2092.63774 | N89: 322.37896 | O89: Cumple
A90: 82 | B90: 010705 | C90: AMAZONAS | D90: MUNICIPALIDAD DISTRITAL DE JAMALCA | E90: 1019.23433 | F90: 3395.683408 | G90: 0.0024 | H90: 2376.449077 | I90: 30.01558766 | J90: Cumple | L90: 3505.1486 | M90: 2173.26054 | N90: 1331.88806 | O90: Cumple
A91: 83 | B91: 010706 | C91: AMAZONAS | D91: MUNICIPALIDAD DISTRITAL DE LONYA GRANDE | E91: 740.3220899 | F91: 3323.885938 | G91: 0.00306 | H91: 2583.563848 | I91: 22.27278865 | J91: Cumple | L91: 3289.4235 | M91: 2230.14266 | N91: 1059.28084 | O91: Cumple
A92: 84 | B92: 010707 | C92: AMAZONAS | D92: MUNICIPALIDAD DISTRITAL DE YAMON | E92: 1041.32422 | F92: 1557.296885 | G92: 0.00072 | H92: 515.972665 | I92: 66.86741815 | J92: Cumple | L92: 1364.8004 | M92: 911.04074 | N92: 453.75966 | O92: Cumple
A93: 85 | B93: 020101 | C93: ANCASH | D93: MUNICIPALIDAD PROVINCIAL DE HUARAZ | E93: 19306.41709 | F93: 34424.14881 | G93: 18515.45932 | H93: 15117.73172 | I93: 56.08393456 | J93: Cumple | L93: 38455.20694 | M93: 29524.64445 | N93: 8930.56249 | O93: Exonerado
A94: 86 | B94: 020102 | C94: ANCASH | D94: MUNICIPALIDAD DISTRITAL DE COCHABAMBA | E94: 182.89438 | F94: 1595.253732 | G94: 1808.43529 | H94: 1625.54091 | I94: 10.11340472 | J94: Cumple | L94: 1956.99612 | M94: 892.0623 | N94: 1064.93382 | O94: Exonerado
A95: 87 | B95: 020103 | C95: ANCASH | D95: MUNICIPALIDAD DISTRITAL DE COLCABAMBA | E95: 63.97627 | F95: 729.9952225 | G95: 536.1948 | H95: 666.0189525 | I95: 8.763929958 | J95: Cumple | L95: 957.71517 | M95: 536.5885 | N95: 421.12667 | O95: Exonerado
A96: 88 | B96: 020104 | C96: ANCASH | D96: MUNICIPALIDAD DISTRITAL DE HUANCHAY | E96: 61.66078004 | F96: 1512.058442 | G96: 1589.13227 | H96: 1527.47149 | I96: 3.880154044 | J96: Cumple | L96: 1779.9459 | M96: 817.00017 | N96: 962.94573 | O96: Exonerado
A97: 89 | B97: 020105 | C97: ANCASH | D97: MUNICIPALIDAD DISTRITAL DE INDEPENDENCIA | E97: 12982.62657 | F97: 27088.90838 | G97: 26767.46598 | H97: 14106.2818 | I97: 47.9259865 | J97: Cumple | L97: 30916.33648 | M97: 13309.3537 | N97: 17606.98278 | O97: Exonerado
A98: 90 | B98: 020106 | C98: ANCASH | D98: MUNICIPALIDAD DISTRITAL DE JANGAS | E98: 40.36236 | F98: 3443.010165 | G98: 3900.75325 | H98: 3860.39089 | I98: 1.034732458 | J98: Cumple | L98: 3826.57972 | M98: 1617.48974 | N98: 2209.08998 | O98: Exonerado
A99: 91 | B99: 020107 | C99: ANCASH | D99: MUNICIPALIDAD DISTRITAL DE LA LIBERTAD | E99: 151.32548 | F99: 1205.411235 | G99: 792.67248 | H99: 1054.085755 | I99: 12.55384682 | J99: Cumple | L99: 1566.20699 | M99: 854.69353 | N99: 711.51346 | O99: Exonerado
A100: 92 | B100: 020108 | C100: ANCASH | D100: MUNICIPALIDAD DISTRITAL DE OLLEROS | E100: 807.087841 | F100: 1259.685277 | G100: 1246.40439 | H100: 452.5974365 | I100: 64.07059409 | J100: Cumple | L100: 1429.21652 | M100: 794.23555 | N100: 634.98097 | O100: Exonerado
A101: 93 | B101: 020109 | C101: ANCASH | D101: MUNICIPALIDAD DISTRITAL DE PAMPAS | E101: 303.6496 | F101: 1402.70073 | G101: 1072.26258 | H101: 1099.05113 | I101: 21.64749711 | J101: Cumple | L101: 1603.72178 | M101: 774.07402 | N101: 829.64776 | O101: Exonerado
A102: 94 | B102: 020110 | C102: ANCASH | D102: MUNICIPALIDAD DISTRITAL DE PARIACOTO | E102: 348.32239 | F102: 2815.23077 | G102: 2774.91392 | H102: 2466.90838 | I102: 12.37278285 | J102: Cumple | L102: 3004.01602 | M102: 1643.01278 | N102: 1361.00324 | O102: Exonerado
A103: 95 | B103: 020111 | C103: ANCASH | D103: MUNICIPALIDAD DISTRITAL DE PIRA | E103: 650.649716 | F103: 2838.289338 | G103: 3444.23569 | H103: 2793.585974 | I103: 18.89097537 | J103: Cumple | L103: 3336.83379 | M103: 1088.07983 | N103: 2248.75396 | O103: Exonerado
A104: 96 | B104: 020112 | C104: ANCASH | D104: MUNICIPALIDAD DISTRITAL DE TARICA | E104: 1026.18854 | F104: 2832.51923 | G104: 2934.03186 | H104: 1907.84332 | I104: 34.97537139 | J104: Cumple | L104: 3438.5958 | M104: 1837.62298 | N104: 1600.97282 | O104: Exonerado
A105: 97 | B105: 020201 | C105: ANCASH | D105: MUNICIPALIDAD PROVINCIAL DE AIJA | E105: 122.68566 | F105: 2430.121305 | G105: 1096.69625 | H105: 2307.435645 | I105: 5.048540571 | J105: Cumple | L105: 2496.46223 | M105: 1684.7984 | N105: 811.66383 | O105: Exonerado
A106: 98 | B106: 020202 | C106: ANCASH | D106: MUNICIPALIDAD DISTRITAL DE CORIS | E106: 36.58611999 | F106: 1679.480045 | G106: 1935.18522 | H106: 1898.5991 | I106: 1.890574587 | J106: Cumple | L106: 1886.98279 | M106: 718.80597 | N106: 1168.17682 | O106: Exonerado
A107: 99 | B107: 020203 | C107: ANCASH | D107: MUNICIPALIDAD DISTRITAL DE HUACLLAN | E107: 82.15474 | F107: 765.7057725 | G107: 568.87633 | H107: 683.5510325 | I107: 10.72928309 | J107: Cumple | L107: 900.20168 | M107: 454.39556 | N107: 445.80612 | O107: Exonerado
A108: 100 | B108: 020204 | C108: ANCASH | D108: MUNICIPALIDAD DISTRITAL DE LA MERCED | E108: 51.45129 | F108: 1929.159315 | G108: 2115.61098 | H108: 2064.15969 | I108: 2.431982557 | J108: Cumple | L108: 2461.76564 | M108: 869.42576 | N108: 1592.33988 | O108: Exonerado
A109: 101 | B109: 020205 | C109: ANCASH | D109: MUNICIPALIDAD DISTRITAL DE SUCCHA | E109: 26.04267001 | F109: 923.3920975 | G109: 596.92507 | H109: 897.3494275 | I109: 2.820326281 | J109: Cumple | L109: 1074.27008 | M109: 613.11705 | N109: 461.15303 | O109: Exonerado
A110: 102 | B110: 020301 | C110: ANCASH | D110: MUNICIPALIDAD PROVINCIAL DE ANTONIO RAYMONDI - LLAMELLIN | E110: 1801.4826 | F110: 3196.055102 | G110: 1851.05817 | H110: 1394.572502 | I110: 56.36581793 | J110: Cumple | L110: 4814.83486 | M110: 3370.08789 | N110: 1444.74697 | O110: Exonerado
A111: 103 | B111: 020302 | C111: ANCASH | D111: MUNICIPALIDAD DISTRITAL DE ACSO | E111: 352.74225 | F111: 1349.898585 | G111: 1271.59907 | H111: 997.156335 | I111: 26.13101858 | J111: Cumple | L111: 1470.58195 | M111: 871.352 | N111: 599.22995 | O111: Exonerado
A112: 104 | B112: 020303 | C112: ANCASH | D112: MUNICIPALIDAD DISTRITAL DE CHACCHO | E112: 372.41614 | F112: 1115.99316 | G112: 1174.30439 | H112: 801.88825 | I112: 31.71376546 | J112: Cumple | L112: 1337.64063 | M112: 655.00993 | N112: 682.6307 | O112: Exonerado
A113: 105 | B113: 020304 | C113: ANCASH | D113: MUNICIPALIDAD DISTRITAL DE CHINGAS | E113: 52.95917007 | F113: 1110.562538 | G113: 1133.00036 | H113: 1080.04119 | I113: 4.67424124 | J113: Cumple | L113: 1309.91157 | M113: 711.82949 | N113: 598.08208 | O113: Exonerado
A114: 106 | B114: 020305 | C114: ANCASH | D114: MUNICIPALIDAD DISTRITAL DE MIRGAS | E114: 137.39205 | F114: 3077.107165 | G114: 3904.4835 | H114: 3767.09145 | I114: 3.518827778 | J114: Cumple | L114: 3589.98869 | M114: 1565.58764 | N114: 2024.40105 | O114: Exonerado
A115: 107 | B115: 020306 | C115: ANCASH | D115: MUNICIPALIDAD DISTRITAL DE SAN JUAN DE RONTOY | E115: 1.90448 | F115: 1084.762673 | G115: 1111.89358 | H115: 1109.9891 | I115: 0.171282579 | J115: Cumple | L115: 1294.98135 | M115: 565.55542 | N115: 729.42593 | O115: Exonerado
A116: 108 | B116: 020401 | C116: ANCASH | D116: MUNICIPALIDAD PROVINCIAL DE ASUNCION - CHACAS | E116: 1389.01396 | F116: 3777.910385 | G116: 2891.3956 | H116: 2388.896425 | I116: 36.766726 | J116: Cumple | L116: 5216.41275 | M116: 3033.23204 | N116: 2183.18071 | O116: Exonerado
A117: 109 | B117: 020402 | C117: ANCASH | D117: MUNICIPALIDAD DISTRITAL DE ACOCHACA | E117: 1021.49939 | F117: 2079.976457 | G117: 2355.46384 | H117: 1333.96445 | I117: 43.36722868 | J117: Cumple | L117: 2295.36386 | M117: 1280.16004 | N117: 1015.20382 | O117: Exonerado
A118: 110 | B118: 020501 | C118: ANCASH | D118: MUNICIPALIDAD PROVINCIAL DE BOLOGNESI - CHIQUIAN | E118: 1812.774686 | F118: 4006.875233 | G118: 1346.7645 | H118: 2194.100546 | I118: 45.24160552 | J118: Cumple | L118: 4155.77525 | M118: 2989.3276 | N118: 1166.44765 | O118: Exonerado
A119: 111 | B119: 020502 | C119: ANCASH | D119: MUNICIPALIDAD DISTRITAL DE ABELARDO PARDO LAZAMETA | E119: 263.91077 | F119: 1260.123505 | G119: 1056.15692 | H119: 996.212735 | I119: 20.94324635 | J119: Cumple | L119: 1257.19482 | M119: 514.30759 | N119: 742.88723 | O119: Exonerado
A120: 112 | B120: 020503 | C120: ANCASH | D120: MUNICIPALIDAD DISTRITAL DE ANTONIO RAYMONDI | E120: 1704.32246 | F120: 1071.848162 | G120: 728.37035 | H120: 0 | I120: 159.0078259 | J120: No Cumple | L120: 1245.8283 | M120: 731.79836 | N120: 514.02994 | O120: Exonerado
A121: 113 | B121: 020504 | C121: ANCASH | D121: MUNICIPALIDAD DISTRITAL DE AQUIA | E121: 518.97138 | F121: 2035.67553 | G121: 1739.07643 | H121: 1516.70415 | I121: 25.4938163 | J121: Cumple | L121: 2393.87657 | M121: 847.09887 | N121: 1546.7777 | O121: Exonerado
A122: 114 | B122: 020505 | C122: ANCASH | D122: MUNICIPALIDAD DISTRITAL DE CAJACAY | E122: 8.483249999 | F122: 1279.055507 | G122: 1109.88942 | H122: 1270.572258 | I122: 0.6632433033 | J122: Cumple | L122: 1665.591 | M122: 718.73151 | N122: 946.85949 | O122: Exonerado
A123: 115 | B123: 020506 | C123: ANCASH | D123: MUNICIPALIDAD DISTRITAL DE CANIS | E123: 334.61631 | F123: 1031.46119 | G123: 1085.01187 | H123: 750.39556 | I123: 30.83987551 | J123: Cumple | L123: 1302.97275 | M123: 664.81763 | N123: 638.15512 | O123: Exonerado
A124: 116 | B124: 020507 | C124: ANCASH | D124: MUNICIPALIDAD DISTRITAL DE COLQUIOC | E124: 3131.444 | F124: 1978.075357 | G124: 2260.26554 | H124: 0 | I124: 138.5431908 | J124: No Cumple | L124: 2562.48522 | M124: 1014.00548 | N124: 1548.47974 | O124: Exonerado
A125: 117 | B125: 020508 | C125: ANCASH | D125: MUNICIPALIDAD DISTRITAL DE HUALLANCA | E125: 343.4955499 | F125: 5576.321663 | G125: 5632.32094 | H125: 5288.82539 | I125: 6.098650157 | J125: Cumple | L125: 7098.19557 | M125: 4219.48879 | N125: 2878.70678 | O125: Exonerado
A126: 118 | B126: 020509 | C126: ANCASH | D126: MUNICIPALIDAD DISTRITAL DE HUASTA | E126: 44.22669 | F126: 2329.612513 | G126: 2208.39286 | H126: 2285.385823 | I126: 1.898456922 | J126: Cumple | L126: 3006.00795 | M126: 865.34367 | N126: 2140.66428 | O126: Exonerado
A127: 119 | B127: 020510 | C127: ANCASH | D127: MUNICIPALIDAD DISTRITAL DE HUAYLLACAYAN | E127: 1198.01429 | F127: 1053.431725 | G127: 905.30454 | H127: 0 | I127: 113.7249108 | J127: No Cumple | L127: 1382.09498 | M127: 551.20947 | N127: 830.88551 | O127: Exonerado
A128: 120 | B128: 020511 | C128: ANCASH | D128: MUNICIPALIDAD DISTRITAL DE LA PRIMAVERA | E128: 188.11448 | F128: 820.492175 | G128: 581.43115 | H128: 632.377695 | I128: 22.92702913 | J128: Cumple | L128: 1092.27302 | M128: 546.83462 | N128: 545.4384 | O128: Exonerado
A129: 121 | B129: 020512 | C129: ANCASH | D129: MUNICIPALIDAD DISTRITAL DE MANGAS | E129: 66.48989001 | F129: 757.6904225 | G129: 489.20848 | H129: 691.2005325 | I129: 8.775337266 | J129: Cumple | L129: 899.49382 | M129: 602.57712 | N129: 296.9167 | O129: Exonerado
A130: 122 | B130: 020513 | C130: ANCASH | D130: MUNICIPALIDAD DISTRITAL DE PACLLON | E130: 3459.94922 | F130: 1438.289057 | G130: 1364.88451 | H130: 0 | I130: 240.5600739 | J130: No Cumple | L130: 1808.57241 | M130: 634.93313 | N130: 1173.63928 | O130: Exonerado
A131: 123 | B131: 020514 | C131: ANCASH | D131: MUNICIPALIDAD DISTRITAL DE SAN MIGUEL DE CORPANQUI | E131: 90.95911 | F131: 874.00432 | G131: 839.57978 | H131: 783.04521 | I131: 10.40716938 | J131: Cumple | L131: 1175.77769 | M131: 570.78603 | N131: 604.99166 | O131: Exonerado
A132: 124 | B132: 020515 | C132: ANCASH | D132: MUNICIPALIDAD DISTRITAL DE TICLLOS | E132: 76.43426 | F132: 968.8321875 | G132: 912.51973 | H132: 892.3979275 | I132: 7.889318809 | J132: Cumple | L132: 1250.67825 | M132: 639.65008 | N132: 611.02817 | O132: Exonerado
A133: 125 | B133: 020601 | C133: ANCASH | D133: MUNICIPALIDAD PROVINCIAL DE CARHUAZ | E133: 678.0698099 | F133: 10516.72359 | G133: 7525.99081 | H133: 9838.653783 | I133: 6.44753857 | J133: Cumple | L133: 12409.52987 | M133: 8330.8196 | N133: 4078.71027 | O133: Exonerado
A134: 126 | B134: 020602 | C134: ANCASH | D134: MUNICIPALIDAD DISTRITAL DE ACOPAMPA | E134: 114.1906 | F134: 1259.522483 | G134: 1180.37362 | H134: 1145.331882 | I134: 9.066181953 | J134: Cumple | L134: 1569.48213 | M134: 759.68863 | N134: 809.7935 | O134: Exonerado
A135: 127 | B135: 020603 | C135: ANCASH | D135: MUNICIPALIDAD DISTRITAL DE AMASHCA | E135: 397.46372 | F135: 1136.118215 | G135: 1067.95179 | H135: 738.654495 | I135: 34.98436296 | J135: Cumple | L135: 1403.62521 | M135: 619.77762 | N135: 783.84759 | O135: Exonerado
A136: 128 | B136: 020604 | C136: ANCASH | D136: MUNICIPALIDAD DISTRITAL DE ANTA | E136: 88.15481 | F136: 1401.870777 | G136: 1425.70676 | H136: 1337.55195 | I136: 6.183235745 | J136: Cumple | L136: 1657.96648 | M136: 917.83362 | N136: 740.13286 | O136: Exonerado
A137: 129 | B137: 020605 | C137: ANCASH | D137: MUNICIPALIDAD DISTRITAL DE ATAQUERO | E137: 113.42376 | F137: 984.119715 | G137: 966.85124 | H137: 870.695955 | I137: 11.52540268 | J137: Cumple | L137: 1129.8578 | M137: 658.8375 | N137: 471.0203 | O137: Exonerado
A138: 130 | B138: 020606 | C138: ANCASH | D138: MUNICIPALIDAD DISTRITAL DE MARCARA | E138: 845.047018 | F138: 4924.409318 | G138: 5570.46029 | H138: 4725.413272 | I138: 15.17014706 | J138: Cumple | L138: 5563.25158 | M138: 2696.91716 | N138: 2866.33442 | O138: Exonerado
A139: 131 | B139: 020607 | C139: ANCASH | D139: MUNICIPALIDAD DISTRITAL DE PARIAHUANCA | E139: 453.14607 | F139: 1292.209085 | G139: 863.2716 | H139: 839.063015 | I139: 35.06755023 | J139: Cumple | L139: 1439.70636 | M139: 766.31121 | N139: 673.39515 | O139: Exonerado
A140: 132 | B140: 020608 | C140: ANCASH | D140: MUNICIPALIDAD DISTRITAL DE SAN MIGUEL DE ACO | E140: 2412.10408 | F140: 1258.881865 | G140: 1120.72964 | H140: 0 | I140: 191.6068653 | J140: No Cumple | L140: 1423.84502 | M140: 767.4776 | N140: 656.36742 | O140: Exonerado
A141: 133 | B141: 020609 | C141: ANCASH | D141: MUNICIPALIDAD DISTRITAL DE SHILLA | E141: 89.78527 | F141: 2324.209395 | G141: 1738.61675 | H141: 2234.424125 | I141: 3.863045653 | J141: Cumple | L141: 2015.76678 | M141: 807.86532 | N141: 1207.90146 | O141: Exonerado
A142: 134 | B142: 020610 | C142: ANCASH | D142: MUNICIPALIDAD DISTRITAL DE TINCO | E142: 2301.69244 | F142: 2094.367035 | G142: 1294.43531 | H142: 0 | I142: 109.8991916 | J142: No Cumple | L142: 1659.15936 | M142: 1064.97005 | N142: 594.18931 | O142: Exonerado
A143: 135 | B143: 020611 | C143: ANCASH | D143: MUNICIPALIDAD DISTRITAL DE YUNGAR | E143: 217.99641 | F143: 1646.473633 | G143: 1705.45968 | H143: 1487.46327 | I143: 12.78226701 | J143: Cumple | L143: 2035.27019 | M143: 1053.82441 | N143: 981.44578 | O143: Exonerado
A144: 136 | B144: 020701 | C144: ANCASH | D144: MUNICIPALIDAD PROVINCIAL DE CARLOS FERMIN FITZCARRALD | E144: 4266.978807 | F144: 11671.51695 | G144: 10091.95172 | H144: 7404.538146 | I144: 36.5589051 | J144: Cumple | L144: 13336.18022 | M144: 7923.34433 | N144: 5412.83589 | O144: Exonerado
A145: 137 | B145: 020702 | C145: ANCASH | D145: MUNICIPALIDAD DISTRITAL DE SAN NICOLAS | E145: 52.06319 | F145: 3098.368002 | G145: 2973.90794 | H145: 3046.304813 | I145: 1.68034236 | J145: Cumple | L145: 3781.21584 | M145: 1453.7317 | N145: 2327.48414 | O145: Exonerado
A146: 138 | B146: 020703 | C146: ANCASH | D146: MUNICIPALIDAD DISTRITAL DE YAUYA | E146: 556.30666 | F146: 4418.3088 | G146: 4325.27706 | H146: 3862.00214 | I146: 12.59094113 | J146: Cumple | L146: 5340.70138 | M146: 2741.2325 | N146: 2599.46888 | O146: Exonerado
A147: 139 | B147: 020801 | C147: ANCASH | D147: MUNICIPALIDAD PROVINCIAL DE CASMA | E147: 4117.31161 | F147: 16197.52805 | G147: 12771.02966 | H147: 12080.21644 | I147: 25.4193825 | J147: Cumple | L147: 17883.55133 | M147: 14538.21401 | N147: 3345.33732 | O147: Exonerado
A148: 140 | B148: 020802 | C148: ANCASH | D148: MUNICIPALIDAD DISTRITAL DE BUENA VISTA ALTA | E148: 1075.0448 | F148: 2609.91844 | G148: 2737.96426 | H148: 1662.91946 | I148: 39.26438397 | J148: Cumple | L148: 2962.21459 | M148: 1373.83109 | N148: 1588.3835 | O148: Exonerado
A149: 141 | B149: 020803 | C149: ANCASH | D149: MUNICIPALIDAD DISTRITAL DE COMANDANTE NOEL | E149: 746.5478399 | F149: 1873.204952 | G149: 1670.30697 | H149: 1126.657113 | I149: 39.8540394 | J149: Cumple | L149: 2176.59156 | M149: 1359.57449 | N149: 817.01707 | O149: Exonerado
A150: 142 | B150: 020804 | C150: ANCASH | D150: MUNICIPALIDAD DISTRITAL DE YAUTAN | E150: 540.4533793 | F150: 3650.817697 | G150: 3740.57806 | H150: 3200.124681 | I150: 14.44839195 | J150: Cumple | L150: 4327.73009 | M150: 2312.74991 | N150: 2014.98018 | O150: Exonerado
A151: 143 | B151: 020901 | C151: ANCASH | D151: MUNICIPALIDAD PROVINCIAL DE CORONGO | E151: 1931.40084 | F151: 2378.506385 | G151: 662.88316 | H151: 447.105545 | I151: 81.20225584 | J151: Cumple | L151: 3123.28217 | M151: 2563.74194 | N151: 559.54023 | O151: Exonerado
A152: 144 | B152: 020902 | C152: ANCASH | D152: MUNICIPALIDAD DISTRITAL DE ACO | E152: 276.47438 | F152: 664.5813025 | G152: 367.45212 | H152: 388.1069225 | I152: 41.60128775 | J152: Cumple | L152: 774.01185 | M152: 568.25052 | N152: 205.76133 | O152: Exonerado
A153: 145 | B153: 020903 | C153: ANCASH | D153: MUNICIPALIDAD DISTRITAL DE BAMBAS | E153: 26.58273001 | F153: 724.716755 | G153: 436.678 | H153: 698.134025 | I153: 3.66801648 | J153: Cumple | L153: 909.9024 | M153: 584.5298 | N153: 325.3726 | O153: Exonerado
A154: 146 | B154: 020904 | C154: ANCASH | D154: MUNICIPALIDAD DISTRITAL DE CUSCA | E154: 18.153 | F154: 2390.606143 | G154: 1835.89511 | H154: 2372.453143 | I154: 0.7593471663 | J154: Cumple | L154: 4151.13889 | M154: 1029.09112 | N154: 3122.04777 | O154: Exonerado
A155: 147 | B155: 020905 | C155: ANCASH | D155: MUNICIPALIDAD DISTRITAL DE LA PAMPA | E155: 505.05384 | F155: 815.9319325 | G155: 415.66631 | H155: 310.8780925 | I155: 61.89901631 | J155: Cumple | L155: 781.55017 | M155: 583.6292 | N155: 197.92097 | O155: Exonerado
A156: 148 | B156: 020906 | C156: ANCASH | D156: MUNICIPALIDAD DISTRITAL DE YANAC | E156: 47.83581 | F156: 728.5423425 | G156: 352.93709 | H156: 680.7065325 | I156: 6.565961539 | J156: Cumple | L156: 988.28616 | M156: 723.34893 | N156: 264.93723 | O156: Exonerado
A157: 149 | B157: 020907 | C157: ANCASH | D157: MUNICIPALIDAD DISTRITAL DE YUPAN | E157: 118.92493 | F157: 603.3415 | G157: 297.17492 | H157: 484.41657 | I157: 19.71104756 | J157: Cumple | L157: 723.51272 | M157: 444.70313 | N157: 278.80959 | O157: Exonerado
A158: 150 | B158: 021001 | C158: ANCASH | D158: MUNICIPALIDAD PROVINCIAL DE HUARI | E158: 10993.40477 | F158: 26608.44182 | G158: 37027.33098 | H158: 26033.92621 | I158: 29.68997354 | J158: Cumple | L158: 34038.89217 | M158: 13719.72264 | N158: 20319.16953 | O158: Exonerado
A159: 151 | B159: 021002 | C159: ANCASH | D159: MUNICIPALIDAD DISTRITAL DE ANRA | E159: 917.93979 | F159: 4787.47908 | G159: 8172.11513 | H159: 7254.17534 | I159: 11.23258514 | J159: Cumple | L159: 5648.79057 | M159: 2084.04897 | N159: 3564.7416 | O159: Exonerado
A160: 152 | B160: 021003 | C160: ANCASH | D160: MUNICIPALIDAD DISTRITAL DE CAJAY | E160: 1131.22759 | F160: 7772.378365 | G160: 13902.41213 | H160: 12771.18454 | I160: 8.13691595 | J160: Cumple | L160: 9591.9442 | M160: 2580.65244 | N160: 7011.29176 | O160: Exonerado
A161: 153 | B161: 021004 | C161: ANCASH | D161: MUNICIPALIDAD DISTRITAL DE CHAVIN DE HUANTAR | E161: 4018.027469 | F161: 24584.27735 | G161: 45023.97641 | H161: 41005.94894 | I161: 8.924195039 | J161: Cumple | L161: 30773.7088 | M161: 6424.86938 | N161: 24348.83942 | O161: Exonerado
A162: 154 | B162: 021005 | C162: ANCASH | D162: MUNICIPALIDAD DISTRITAL DE HUACACHI | E162: 770.96695 | F162: 5308.375535 | G162: 9486.8078 | H162: 8715.84085 | I162: 8.126726779 | J162: Cumple | L162: 6507.2046 | M162: 1302.21174 | N162: 5204.99286 | O162: Exonerado
A163: 155 | B163: 021006 | C163: ANCASH | D163: MUNICIPALIDAD DISTRITAL DE HUACCHIS | E163: 469.57473 | F163: 5553.78752 | G163: 9752.75327 | H163: 9283.17854 | I163: 4.814791444 | J163: Cumple | L163: 7006.97096 | M163: 1568.96957 | N163: 5438.00139 | O163: Exonerado
A164: 156 | B164: 021007 | C164: ANCASH | D164: MUNICIPALIDAD DISTRITAL DE HUACHIS | E164: 8901.41261 | F164: 11364.99384 | G164: 20269.35583 | H164: 11367.94322 | I164: 43.91561668 | J164: Cumple | L164: 13878.38342 | M164: 2378.72513 | N164: 11499.65829 | O164: Exonerado
A165: 157 | B165: 021008 | C165: ANCASH | D165: MUNICIPALIDAD DISTRITAL DE HUANTAR | E165: 4103.83795 | F165: 6938.85886 | G165: 12857.77028 | H165: 8753.93233 | I165: 31.91718207 | J165: Cumple | L165: 8235.88778 | M165: 1836.83786 | N165: 6399.04992 | O165: Exonerado
A166: 158 | B166: 021009 | C166: ANCASH | D166: MUNICIPALIDAD DISTRITAL DE MASIN | E166: 224.46369 | F166: 4906.473512 | G166: 8576.73473 | H166: 8352.27104 | I166: 2.617122915 | J166: Cumple | L166: 6012.9332 | M166: 1576.99231 | N166: 4435.94089 | O166: Exonerado
A167: 159 | B167: 021010 | C167: ANCASH | D167: MUNICIPALIDAD DISTRITAL DE PAUCAS | E167: 132.90376 | F167: 5503.277537 | G167: 9767.6709 | H167: 9634.76714 | I167: 1.360649446 | J167: Cumple | L167: 6793.668 | M167: 1388.79886 | N167: 5404.86914 | O167: Exonerado
A168: 160 | B168: 021011 | C168: ANCASH | D168: MUNICIPALIDAD DISTRITAL DE PONTO | E168: 706.2602501 | F168: 10526.35979 | G168: 18946.74272 | H168: 18240.48247 | I168: 3.727607751 | J168: Cumple | L168: 13020.25904 | M168: 2345.45379 | N168: 10674.80525 | O168: Exonerado
A169: 161 | B169: 021012 | C169: ANCASH | D169: MUNICIPALIDAD DISTRITAL DE RAHUAPAMPA | E169: 499.10758 | F169: 1938.872635 | G169: 2791.67404 | H169: 2292.56646 | I169: 17.87843326 | J169: Cumple | L169: 2417.58306 | M169: 937.41816 | N169: 1480.1649 | O169: Exonerado
A170: 162 | B170: 021013 | C170: ANCASH | D170: MUNICIPALIDAD DISTRITAL DE RAPAYAN | E170: 76.05914 | F170: 5466.350142 | G170: 9711.77721 | H170: 9635.71807 | I170: 0.7831639705 | J170: Cumple | L170: 6903.02035 | M170: 2133.26645 | N170: 4769.7539 | O170: Exonerado
A171: 163 | B171: 021014 | C171: ANCASH | D171: MUNICIPALIDAD DISTRITAL DE SAN MARCOS | E171: 9942.24196 | F171: 97566.77397 | G171: 178113.5068 | H171: 168171.2649 | I171: 5.581969687 | J171: Cumple | L171: 140764.9845 | M171: 15735.86109 | N171: 125029.1235 | O171: Exonerado
A172: 164 | B172: 021015 | C172: ANCASH | D172: MUNICIPALIDAD DISTRITAL DE SAN PEDRO DE CHANA | E172: 143.03765 | F172: 9198.798698 | G172: 15349.57817 | H172: 15206.54052 | I172: 0.9318669765 | J172: Cumple | L172: 10876.47306 | M172: 2636.45356 | N172: 8240.0195 | O172: Exonerado
A173: 165 | B173: 021016 | C173: ANCASH | D173: MUNICIPALIDAD DISTRITAL DE UCO | E173: 263.76719 | F173: 4642.99319 | G173: 7966.27245 | H173: 7702.50526 | I173: 3.311049072 | J173: Cumple | L173: 5750.73744 | M173: 1225.70279 | N173: 4525.03465 | O173: Exonerado
A174: 166 | B174: 021101 | C174: ANCASH | D174: MUNICIPALIDAD PROVINCIAL DE HUARMEY | E174: 23699.10426 | F174: 15901.6882 | G174: 12060.69858 | H174: 0 | I174: 149.0351462 | J174: No Cumple | L174: 16054.81354 | M174: 10713.24203 | N174: 5341.57151 | O174: Exonerado
A175: 167 | B175: 021102 | C175: ANCASH | D175: MUNICIPALIDAD DISTRITAL DE COCHAPETI | E175: 7.51163 | F175: 839.9335975 | G175: 672.82319 | H175: 832.4219675 | I175: 0.8943123626 | J175: Cumple | L175: 963.32768 | M175: 513.51253 | N175: 449.81515 | O175: Exonerado
A176: 168 | B176: 021103 | C176: ANCASH | D176: MUNICIPALIDAD DISTRITAL DE CULEBRAS | E176: 4686.55771 | F176: 2622.17789 | G176: 3977.02044 | H176: 0 | I176: 117.8409259 | J176: No Cumple | L176: 2549.53831 | M176: 1281.16949 | N176: 1268.36882 | O176: Exonerado
A177: 169 | B177: 021104 | C177: ANCASH | D177: MUNICIPALIDAD DISTRITAL DE HUAYAN | E177: 37.92517 | F177: 865.9996875 | G177: 823.06366 | H177: 828.0745175 | I177: 4.379351465 | J177: Cumple | L177: 1032.53441 | M177: 762.58281 | N177: 269.9516 | O177: Exonerado
A178: 170 | B178: 021105 | C178: ANCASH | D178: MUNICIPALIDAD DISTRITAL DE MALVAS | E178: 269.47061 | F178: 896.3823325 | G178: 700.16758 | H178: 626.9117225 | I178: 30.06201709 | J178: Cumple | L178: 1032.69554 | M178: 480.41432 | N178: 552.28122 | O178: Exonerado
A179: 171 | B179: 021201 | C179: ANCASH | D179: MUNICIPALIDAD PROVINCIAL DE HUAYLAS - CARAZ | E179: 1143.50592 | F179: 17937.02465 | G179: 15250.53416 | H179: 16793.51873 | I179: 6.375114839 | J179: Cumple | L179: 17916.64391 | M179: 9758.65971 | N179: 8157.9842 | O179: Exonerado
A180: 172 | B180: 021202 | C180: ANCASH | D180: MUNICIPALIDAD DISTRITAL DE HUALLANCA | E180: 15.75991008 | F180: 2942.77751 | G180: 4060.61701 | H180: 4044.8571 | I180: 0.388116142 | J180: Cumple | L180: 4202.4916 | M180: 1203.45679 | N180: 2999.03481 | O180: Exonerado
A181: 173 | B181: 021203 | C181: ANCASH | D181: MUNICIPALIDAD DISTRITAL DE HUATA | E181: 242.12296 | F181: 1229.674647 | G181: 1350.2068 | H181: 1108.08384 | I181: 17.93228711 | J181: Cumple | L181: 1431.00442 | M181: 861.72031 | N181: 569.28411 | O181: Exonerado
A182: 174 | B182: 021204 | C182: ANCASH | D182: MUNICIPALIDAD DISTRITAL DE HUAYLAS | E182: 308.88831 | F182: 1417.7288 | G182: 1843.00705 | H182: 1534.11874 | I182: 16.76001782 | J182: Cumple | L182: 1696.62076 | M182: 697.80085 | N182: 998.81991 | O182: Exonerado
A183: 175 | B183: 021205 | C183: ANCASH | D183: MUNICIPALIDAD DISTRITAL DE MATO | E183: 522.8506999 | F183: 1214.276298 | G183: 1408.72224 | H183: 885.8715401 | I183: 37.11524423 | J183: Cumple | L183: 1408.57659 | M183: 813.56788 | N183: 595.00871 | O183: Exonerado
A184: 176 | B184: 021206 | C184: ANCASH | D184: MUNICIPALIDAD DISTRITAL DE PAMPAROMAS | E184: 1318.84093 | F184: 6573.0859 | G184: 9068.90178 | H184: 7750.06085 | I184: 14.54245467 | J184: Cumple | L184: 7483.45653 | M184: 3533.20514 | N184: 3950.25139 | O184: Exonerado
A185: 177 | B185: 021207 | C185: ANCASH | D185: MUNICIPALIDAD DISTRITAL DE PUEBLO LIBRE | E185: 807.43943 | F185: 4693.936833 | G185: 6648.47037 | H185: 5841.03094 | I185: 12.14473984 | J185: Cumple | L185: 5526.69394 | M185: 2522.52113 | N185: 3004.17281 | O185: Exonerado
A186: 178 | B186: 021208 | C186: ANCASH | D186: MUNICIPALIDAD DISTRITAL DE SANTA CRUZ | E186: 760.3895971 | F186: 4009.14752 | G186: 6084.13743 | H186: 5323.747833 | I186: 12.49790304 | J186: Cumple | L186: 4909.70932 | M186: 2186.69396 | N186: 2723.01536 | O186: Exonerado
A187: 179 | B187: 021209 | C187: ANCASH | D187: MUNICIPALIDAD DISTRITAL DE SANTO TORIBIO | E187: 264.78356 | F187: 1339.4177 | G187: 1293.05477 | H187: 1074.63414 | I187: 19.76855764 | J187: Cumple | L187: 1567.04766 | M187: 906.87596 | N187: 660.1717 | O187: Exonerado
A188: 180 | B188: 021210 | C188: ANCASH | D188: MUNICIPALIDAD DISTRITAL DE YURACMARCA | E188: 925.5757298 | F188: 2491.814263 | G188: 5124.81619 | H188: 4199.24046 | I188: 18.06066199 | J188: Cumple | L188: 2668.30409 | M188: 958.1209 | N188: 1710.18319 | O188: Exonerado
A189: 181 | B189: 021301 | C189: ANCASH | D189: MUNICIPALIDAD PROVINCIAL DE MARISCAL LUZURIAGA - PISCOBAMBA | E189: 2262.323543 | F189: 4580.749058 | G189: 2360.39151 | H189: 2318.425514 | I189: 49.38763323 | J189: Cumple | L189: 5047.50477 | M189: 3071.3222 | N189: 1976.18257 | O189: Exonerado
A190: 182 | B190: 021302 | C190: ANCASH | D190: MUNICIPALIDAD DISTRITAL DE CASCA | E190: 461.65789 | F190: 3387.42411 | G190: 3625.21795 | H190: 3163.56006 | I190: 12.73462441 | J190: Cumple | L190: 4031.65623 | M190: 2109.68457 | N190: 1921.97166 | O190: Exonerado
A191: 183 | B191: 021303 | C191: ANCASH | D191: MUNICIPALIDAD DISTRITAL DE ELEAZAR GUZMAN BARRON | E191: 30.56049 | F191: 1109.05703 | G191: 1114.68589 | H191: 1084.1254 | I191: 2.741623472 | J191: Cumple | L191: 1364.40954 | M191: 852.0796 | N191: 512.32994 | O191: Exonerado
A192: 184 | B192: 021304 | C192: ANCASH | D192: MUNICIPALIDAD DISTRITAL DE FIDEL OLIVAS ESCUDERO | E192: 23.91031 | F192: 1647.312273 | G192: 1729.72917 | H192: 1705.81886 | I192: 1.382315244 | J192: Cumple | L192: 2000.30679 | M192: 809.93064 | N192: 1190.37615 | O192: Exonerado
A193: 185 | B193: 021305 | C193: ANCASH | D193: MUNICIPALIDAD DISTRITAL DE LLAMA | E193: 248.78448 | F193: 1009.913293 | G193: 1007.07319 | H193: 761.1288125 | I193: 24.63424156 | J193: Cumple | L193: 1222.92693 | M193: 694.32983 | N193: 528.5971 | O193: Exonerado
A194: 186 | B194: 021306 | C194: ANCASH | D194: MUNICIPALIDAD DISTRITAL DE LLUMPA | E194: 880.292 | F194: 4719.286522 | G194: 4980.21761 | H194: 4099.92561 | I194: 17.67577381 | J194: Cumple | L194: 5328.53064 | M194: 2116.12191 | N194: 3212.40873 | O194: Exonerado
A195: 187 | B195: 021307 | C195: ANCASH | D195: MUNICIPALIDAD DISTRITAL DE LUCMA | E195: 23.14028 | F195: 2386.027985 | G195: 2631.26492 | H195: 2608.12464 | I195: 0.8794355834 | J195: Cumple | L195: 2743.0983 | M195: 1056.66413 | N195: 1686.43417 | O195: Exonerado
A196: 188 | B196: 021308 | C196: ANCASH | D196: MUNICIPALIDAD DISTRITAL DE MUSGA | E196: 69.30454 | F196: 961.337735 | G196: 824.94356 | H196: 892.033195 | I196: 7.209177116 | J196: Cumple | L196: 1047.28515 | M196: 743.08225 | N196: 304.2029 | O196: Exonerado
A197: 189 | B197: 021401 | C197: ANCASH | D197: MUNICIPALIDAD PROVINCIAL DE OCROS | E197: 1395.67265 | F197: 2731.967895 | G197: 536.98698 | H197: 1336.295245 | I197: 51.08671491 | J197: Cumple | L197: 2897.26205 | M197: 2251.67311 | N197: 645.58894 | O197: Exonerado
A198: 190 | B198: 021402 | C198: ANCASH | D198: MUNICIPALIDAD DISTRITAL DE ACAS | E198: 56.46191 | F198: 1029.087763 | G198: 865.07248 | H198: 972.6258525 | I198: 5.486598136 | J198: Cumple | L198: 1127.35374 | M198: 590.61093 | N198: 536.74281 | O198: Exonerado
A199: 191 | B199: 021403 | C199: ANCASH | D199: MUNICIPALIDAD DISTRITAL DE CAJAMARQUILLA | E199: 29.29775002 | F199: 569.723235 | G199: 211.4495 | H199: 540.425485 | I199: 5.142453075 | J199: Cumple | L199: 674.70496 | M199: 442.2184 | N199: 232.48656 | O199: Exonerado
A200: 192 | B200: 021404 | C200: ANCASH | D200: MUNICIPALIDAD DISTRITAL DE CARHUAPAMPA | E200: 62.9108 | F200: 948.455985 | G200: 881.16533 | H200: 885.545185 | I200: 6.6329699 | J200: Cumple | L200: 1079.50413 | M200: 595.58295 | N200: 483.92118 | O200: Exonerado
A201: 193 | B201: 021405 | C201: ANCASH | D201: MUNICIPALIDAD DISTRITAL DE COCHAS | E201: 242.68878 | F201: 1153.336933 | G201: 896.63537 | H201: 910.6481525 | I201: 21.0423141 | J201: Cumple | L201: 1589.8427 | M201: 971.35072 | N201: 618.49198 | O201: Exonerado
A202: 194 | B202: 021406 | C202: ANCASH | D202: MUNICIPALIDAD DISTRITAL DE CONGAS | E202: 9.687 | F202: 947.3732575 | G202: 936.4043 | H202: 937.6862575 | I202: 1.022511447 | J202: Cumple | L202: 1153.43368 | M202: 547.83323 | N202: 605.60045 | O202: Exonerado
... 1686 more rows

Sheet DPTO (hidden)
A1: -------------------- | B1: CODI_DEP | C1: DESC_DEP
A2: 01:AMAZONAS | B2: 01 | C2: AMAZONAS
A3: 02:ANCASH | B3: 02 | C3: ANCASH
A4: 03:APURIMAC | B4: 03 | C4: APURIMAC
A5: 04:AREQUIPA | B5: 04 | C5: AREQUIPA
A6: 05:AYACUCHO | B6: 05 | C6: AYACUCHO
A7: 06:CAJAMARCA | B7: 06 | C7: CAJAMARCA
A8: 07:PROV CONSTIT DEL CALLAO | B8: 07 | C8: PROV CONSTIT DEL CALLAO
A9: 08:CUSCO | B9: 08 | C9: CUSCO
A10: 09:HUANCAVELICA | B10: 09 | C10: HUANCAVELICA
A11: 10:HUANUCO | B11: 10 | C11: HUANUCO
A12: 11:ICA | B12: 11 | C12: ICA
A13: 12:JUNIN | B13: 12 | C13: JUNIN
A14: 13:LA LIBERTAD | B14: 13 | C14: LA LIBERTAD
A15: 14:LAMBAYEQUE | B15: 14 | C15: LAMBAYEQUE
A16: 15:LIMA | B16: 15 | C16: LIMA
A17: 16:LORETO | B17: 16 | C17: LORETO
A18: 17:MADRE DE DIOS | B18: 17 | C18: MADRE DE DIOS
A19: 18:MOQUEGUA | B19: 18 | C19: MOQUEGUA
A20: 19:PASCO | B20: 19 | C20: PASCO
A21: 20:PIURA | B21: 20 | C21: PIURA
A22: 21:PUNO | B22: 21 | C22: PUNO
A23: 22:SAN MARTIN | B23: 22 | C23: SAN MARTIN
A24: 23:TACNA | B24: 23 | C24: TACNA
A25: 24:TUMBES | B25: 24 | C25: TUMBES
A26: 25:UCAYALI | B26: 25 | C26: UCAYALI

Sheet PROV (hidden)
A1: PROV | B1: CODI_DEP | C1: CODI_PRO | D1: DESC_PRO
A2: 0101:CHACHAPOYAS | B2: 01 | C2: 01 | D2: CHACHAPOYAS
A3: 0102:BAGUA | B3: 01 | C3: 02 | D3: BAGUA
A4: 0103:BONGARA | B4: 01 | C4: 03 | D4: BONGARA
A5: 0104:CONDORCANQUI | B5: 01 | C5: 04 | D5: CONDORCANQUI
A6: 0105:LUYA | B6: 01 | C6: 05 | D6: LUYA
A7: 0106:RODRIGUEZ DE MENDOZA | B7: 01 | C7: 06 | D7: RODRIGUEZ DE MENDOZA
A8: 0107:UCTUBAMBA | B8: 01 | C8: 07 | D8: UCTUBAMBA
A9: 0201:HUARAZ | B9: 02 | C9: 01 | D9: HUARAZ
A10: 0202:AIJA | B10: 02 | C10: 02 | D10: AIJA
A11: 0203:ANTONIO RAIMONDI | B11: 02 | C11: 03 | D11: ANTONIO RAIMONDI
A12: 0204:ASUNCION | B12: 02 | C12: 04 | D12: ASUNCION
A13: 0205:BOLOGNESI | B13: 02 | C13: 05 | D13: BOLOGNESI
A14: 0206:CARHUAZ | B14: 02 | C14: 06 | D14: CARHUAZ
A15: 0207:CARLOS FERMIN FITZCARRALD | B15: 02 | C15: 07 | D15: CARLOS FERMIN FITZCARRALD
A16: 0208:CASMA | B16: 02 | C16: 08 | D16: CASMA
A17: 0209:CORONGO | B17: 02 | C17: 09 | D17: CORONGO
A18: 0210:HUARI | B18: 02 | C18: 10 | D18: HUARI
A19: 0211:HUARMEY | B19: 02 | C19: 11 | D19: HUARMEY
A20: 0212:HUAYLAS | B20: 02 | C20: 12 | D20: HUAYLAS
A21: 0213:MARISCAL LUZURIAGA | B21: 02 | C21: 13 | D21: MARISCAL LUZURIAGA
A22: 0214:OCROS | B22: 02 | C22: 14 | D22: OCROS
A23: 0215:PALLASCA | B23: 02 | C23: 15 | D23: PALLASCA
A24: 0216:POMABAMBA | B24: 02 | C24: 16 | D24: POMABAMBA
A25: 0217:RECUAY | B25: 02 | C25: 17 | D25: RECUAY
A26: 0218:SANTA | B26: 02 | C26: 18 | D26: SANTA
A27: 0219:SIHUAS | B27: 02 | C27: 19 | D27: SIHUAS
A28: 0220:YUNGAY | B28: 02 | C28: 20 | D28: YUNGAY
A29: 0301:ABANCAY | B29: 03 | C29: 01 | D29: ABANCAY
A30: 0302:ANDAHUAYLAS | B30: 03 | C30: 02 | D30: ANDAHUAYLAS
A31: 0303:ANTABAMBA | B31: 03 | C31: 03 | D31: ANTABAMBA
A32: 0304:AYMARAES | B32: 03 | C32: 04 | D32: AYMARAES
A33: 0305:COTABAMBA | B33: 03 | C33: 05 | D33: COTABAMBA
A34: 0306:CHINCHEROS | B34: 03 | C34: 06 | D34: CHINCHEROS
A35: 0307:GRAU | B35: 03 | C35: 07 | D35: GRAU
A36: 0401:AREQUIPA | B36: 04 | C36: 01 | D36: AREQUIPA
A37: 0402:CAMANA | B37: 04 | C37: 02 | D37: CAMANA
A38: 0403:CARAVELI | B38: 04 | C38: 03 | D38: CARAVELI
A39: 0404:CASTILLA | B39: 04 | C39: 04 | D39: CASTILLA
A40: 0405:CAYLLOMA | B40: 04 | C40: 05 | D40: CAYLLOMA
A41: 0406:CONDESUYOS | B41: 04 | C41: 06 | D41: CONDESUYOS
A42: 0407:ISLAY | B42: 04 | C42: 07 | D42: ISLAY
A43: 0408:LA UNION | B43: 04 | C43: 08 | D43: LA UNION
A44: 0501:HUAMANGA | B44: 05 | C44: 01 | D44: HUAMANGA
A45: 0502:CANGALLO | B45: 05 | C45: 02 | D45: CANGALLO
A46: 0503:HUANCA SANCOS | B46: 05 | C46: 03 | D46: HUANCA SANCOS
A47: 0504:HUANTA | B47: 05 | C47: 04 | D47: HUANTA
A48: 0505:LA MAR | B48: 05 | C48: 05 | D48: LA MAR
A49: 0506:LUCANAS | B49: 05 | C49: 06 | D49: LUCANAS
A50: 0507:PARINACOCHAS | B50: 05 | C50: 07 | D50: PARINACOCHAS
A51: 0508:PAUCAR DEL SARA SARA | B51: 05 | C51: 08 | D51: PAUCAR DEL SARA SARA
A52: 0509:SUCRE | B52: 05 | C52: 09 | D52: SUCRE
A53: 0510:VICTOR FAJARDO | B53: 05 | C53: 10 | D53: VICTOR FAJARDO
A54: 0511:VILCASHUAMAN | B54: 05 | C54: 11 | D54: VILCASHUAMAN
A55: 0601:CAJAMARCA | B55: 06 | C55: 01 | D55: CAJAMARCA
A56: 0602:CAJABAMBA | B56: 06 | C56: 02 | D56: CAJABAMBA
A57: 0603:CELENDIN | B57: 06 | C57: 03 | D57: CELENDIN
A58: 0604:CHOTA | B58: 06 | C58: 04 | D58: CHOTA
A59: 0605:CONTUMAZA | B59: 06 | C59: 05 | D59: CONTUMAZA
A60: 0606:CUTERVO | B60: 06 | C60: 06 | D60: CUTERVO
A61: 0607:HUALGAYOC | B61: 06 | C61: 07 | D61: HUALGAYOC
A62: 0608:JAEN | B62: 06 | C62: 08 | D62: JAEN
A63: 0609:SAN IGNACIO | B63: 06 | C63: 09 | D63: SAN IGNACIO
A64: 0610:SAN MARCOS | B64: 06 | C64: 10 | D64: SAN MARCOS
A65: 0611:SAN MIGUEL | B65: 06 | C65: 11 | D65: SAN MIGUEL
A66: 0612:SAN PABLO | B66: 06 | C66: 12 | D66: SAN PABLO
A67: 0613:SANTA CRUZ | B67: 06 | C67: 13 | D67: SANTA CRUZ
A68: 0701:PROV. CALLAO | B68: 07 | C68: 01 | D68: PROV. CALLAO
A69: 0801:CUSCO | B69: 08 | C69: 01 | D69: CUSCO
A70: 0802:ACOMAYO | B70: 08 | C70: 02 | D70: ACOMAYO
A71: 0803:ANTA | B71: 08 | C71: 03 | D71: ANTA
A72: 0804:CALCA | B72: 08 | C72: 04 | D72: CALCA
A73: 0805:CANAS | B73: 08 | C73: 05 | D73: CANAS
A74: 0806:CANCHIS | B74: 08 | C74: 06 | D74: CANCHIS
A75: 0807:CHUMBIVILCAS | B75: 08 | C75: 07 | D75: CHUMBIVILCAS
A76: 0808:ESPINAR | B76: 08 | C76: 08 | D76: ESPINAR
A77: 0809:LA CONVENCION | B77: 08 | C77: 09 | D77: LA CONVENCION
A78: 0810:PARURO | B78: 08 | C78: 10 | D78: PARURO
A79: 0811:PAUCARTAMBO | B79: 08 | C79: 11 | D79: PAUCARTAMBO
A80: 0812:QUISPICANCHIS | B80: 08 | C80: 12 | D80: QUISPICANCHIS
A81: 0813:URUBAMBA | B81: 08 | C81: 13 | D81: URUBAMBA
A82: 0901:HUANCAVELICA | B82: 09 | C82: 01 | D82: HUANCAVELICA
A83: 0902:ACOBAMBA | B83: 09 | C83: 02 | D83: ACOBAMBA
A84: 0903:ANGARAES | B84: 09 | C84: 03 | D84: ANGARAES
A85: 0904:CASTROVIRREYNA | B85: 09 | C85: 04 | D85: CASTROVIRREYNA
A86: 0905:CHURCAMPA | B86: 09 | C86: 05 | D86: CHURCAMPA
A87: 0906:HUAYTARA | B87: 09 | C87: 06 | D87: HUAYTARA
A88: 0907:TAYACAJA | B88: 09 | C88: 07 | D88: TAYACAJA
A89: 1001:HUANUCO | B89: 10 | C89: 01 | D89: HUANUCO
A90: 1002:AMBO | B90: 10 | C90: 02 | D90: AMBO
A91: 1003:DOS DE MAYO | B91: 10 | C91: 03 | D91: DOS DE MAYO
A92: 1004:HUACAYBAMBA | B92: 10 | C92: 04 | D92: HUACAYBAMBA
A93: 1005:HUAMALIES | B93: 10 | C93: 05 | D93: HUAMALIES
A94: 1006:LEONCIO PRADO | B94: 10 | C94: 06 | D94: LEONCIO PRADO
A95: 1007:MARANON | B95: 10 | C95: 07 | D95: MARANON
A96: 1008:PACHITEA | B96: 10 | C96: 08 | D96: PACHITEA
A97: 1009:PUERTO INCA | B97: 10 | C97: 09 | D97: PUERTO INCA
A98: 1010:LAURICOCHA | B98: 10 | C98: 10 | D98: LAURICOCHA
A99: 1011:YAROWILCA | B99: 10 | C99: 11 | D99: YAROWILCA
A100: 1101:ICA | B100: 11 | C100: 01 | D100: ICA
A101: 1102:CHINCHA | B101: 11 | C101: 02 | D101: CHINCHA
A102: 1103:NAZCA | B102: 11 | C102: 03 | D102: NAZCA
A103: 1104:PALPA | B103: 11 | C103: 04 | D103: PALPA
A104: 1105:PISCO | B104: 11 | C104: 05 | D104: PISCO
A105: 1201:HUANCAYO | B105: 12 | C105: 01 | D105: HUANCAYO
A106: 1202:CONCEPCION | B106: 12 | C106: 02 | D106: CONCEPCION
A107: 1203:CHANCHAMAYO | B107: 12 | C107: 03 | D107: CHANCHAMAYO
A108: 1204:JAUJA | B108: 12 | C108: 04 | D108: JAUJA
A109: 1205:JUNIN | B109: 12 | C109: 05 | D109: JUNIN
A110: 1206:SATIPO | B110: 12 | C110: 06 | D110: SATIPO
A111: 1207:TARMA | B111: 12 | C111: 07 | D111: TARMA
A112: 1208:YAULI | B112: 12 | C112: 08 | D112: YAULI
A113: 1209:CHUPACA | B113: 12 | C113: 09 | D113: CHUPACA
A114: 1301:TRUJILLO | B114: 13 | C114: 01 | D114: TRUJILLO
A115: 1302:ASCOPE | B115: 13 | C115: 02 | D115: ASCOPE
A116: 1303:BOLIVAR | B116: 13 | C116: 03 | D116: BOLIVAR
A117: 1304:CHEPEN | B117: 13 | C117: 04 | D117: CHEPEN
A118: 1305:JULCAN | B118: 13 | C118: 05 | D118: JULCAN
A119: 1306:OTUZCO | B119: 13 | C119: 06 | D119: OTUZCO
A120: 1307:PACASMAYO | B120: 13 | C120: 07 | D120: PACASMAYO
A121: 1308:PATAZ | B121: 13 | C121: 08 | D121: PATAZ
A122: 1309:SANCHEZ CARRION | B122: 13 | C122: 09 | D122: SANCHEZ CARRION
A123: 1310:SANTIAGO DE CHUCO | B123: 13 | C123: 10 | D123: SANTIAGO DE CHUCO
A124: 1311:GRAN CHIMU | B124: 13 | C124: 11 | D124: GRAN CHIMU
A125: 1312:VIRU | B125: 13 | C125: 12 | D125: VIRU
A126: 1401:CHICLAYO | B126: 14 | C126: 01 | D126: CHICLAYO
A127: 1402:FERRENAFE | B127: 14 | C127: 02 | D127: FERRENAFE
A128: 1403:LAMBAYEQUE | B128: 14 | C128: 03 | D128: LAMBAYEQUE
A129: 1501:LIMA | B129: 15 | C129: 01 | D129: LIMA
A130: 1502:BARRANCA | B130: 15 | C130: 02 | D130: BARRANCA
A131: 1503:CAJATAMBO | B131: 15 | C131: 03 | D131: CAJATAMBO
A132: 1504:CANTA | B132: 15 | C132: 04 | D132: CANTA
A133: 1505:CAÑETE | B133: 15 | C133: 05 | D133: CAÑETE
A134: 1506:HUARAL | B134: 15 | C134: 06 | D134: HUARAL
A135: 1507:HUAROCHIRI | B135: 15 | C135: 07 | D135: HUAROCHIRI
A136: 1508:HUAURA | B136: 15 | C136: 08 | D136: HUAURA
A137: 1509:OYON | B137: 15 | C137: 09 | D137: OYON
A138: 1510:YAUYOS | B138: 15 | C138: 10 | D138: YAUYOS
A139: 1601:MAYNAS | B139: 16 | C139: 01 | D139: MAYNAS
A140: 1602:ALTO AMAZONAS | B140: 16 | C140: 02 | D140: ALTO AMAZONAS
A141: 1603:LORETO | B141: 16 | C141: 03 | D141: LORETO
A142: 1604:RAMON CASTILLA | B142: 16 | C142: 04 | D142: RAMON CASTILLA
A143: 1605:REQUENA | B143: 16 | C143: 05 | D143: REQUENA
A144: 1606:UCAYALI | B144: 16 | C144: 06 | D144: UCAYALI
A145: 1607:DATEM DEL MARAÑON | B145: 16 | C145: 07 | D145: DATEM DEL MARAÑON
A146: 1608:PUTUMAYO | B146: 16 | C146: 08 | D146: PUTUMAYO
A147: 1701:TAMBOPATA | B147: 17 | C147: 01 | D147: TAMBOPATA
A148: 1702:MANU | B148: 17 | C148: 02 | D148: MANU
A149: 1703:TAHUAMANU | B149: 17 | C149: 03 | D149: TAHUAMANU
A150: 1801:MARISCAL NIETO | B150: 18 | C150: 01 | D150: MARISCAL NIETO
A151: 1802:GENERAL SANCHEZ CERRO | B151: 18 | C151: 02 | D151: GENERAL SANCHEZ CERRO
A152: 1803:ILO | B152: 18 | C152: 03 | D152: ILO
A153: 1901:PASCO | B153: 19 | C153: 01 | D153: PASCO
A154: 1902:DANIEL A. CARRION | B154: 19 | C154: 02 | D154: DANIEL A. CARRION
A155: 1903:OXAPAMPA | B155: 19 | C155: 03 | D155: OXAPAMPA
A156: 2001:PIURA | B156: 20 | C156: 01 | D156: PIURA
A157: 2002:AYABACA | B157: 20 | C157: 02 | D157: AYABACA
A158: 2003:HUANCABAMBA | B158: 20 | C158: 03 | D158: HUANCABAMBA
A159: 2004:MORROPON | B159: 20 | C159: 04 | D159: MORROPON
A160: 2005:PAITA | B160: 20 | C160: 05 | D160: PAITA
A161: 2006:SULLANA | B161: 20 | C161: 06 | D161: SULLANA
A162: 2007:TALARA | B162: 20 | C162: 07 | D162: TALARA
A163: 2008:SECHURA | B163: 20 | C163: 08 | D163: SECHURA
A164: 2101:PUNO | B164: 21 | C164: 01 | D164: PUNO
A165: 2102:AZANGARO | B165: 21 | C165: 02 | D165: AZANGARO
A166: 2103:CARABAYA | B166: 21 | C166: 03 | D166: CARABAYA
A167: 2104:CHUCUITO | B167: 21 | C167: 04 | D167: CHUCUITO
A168: 2105:EL COLLAO | B168: 21 | C168: 05 | D168: EL COLLAO
A169: 2106:HUANCANE | B169: 21 | C169: 06 | D169: HUANCANE
A170: 2107:LAMPA | B170: 21 | C170: 07 | D170: LAMPA
A171: 2108:MELGAR | B171: 21 | C171: 08 | D171: MELGAR
A172: 2109:MOHO | B172: 21 | C172: 09 | D172: MOHO
A173: 2110:SAN ANTONIO DE PUTINA | B173: 21 | C173: 10 | D173: SAN ANTONIO DE PUTINA
A174: 2111:SAN ROMAN | B174: 21 | C174: 11 | D174: SAN ROMAN
A175: 2112:SANDIA | B175: 21 | C175: 12 | D175: SANDIA
A176: 2113:YUNGUYO | B176: 21 | C176: 13 | D176: YUNGUYO
A177: 2201:MOYOBAMBA | B177: 22 | C177: 01 | D177: MOYOBAMBA
A178: 2202:BELLAVISTA | B178: 22 | C178: 02 | D178: BELLAVISTA
A179: 2203:EL DORADO | B179: 22 | C179: 03 | D179: EL DORADO
A180: 2204:HUALLAGA | B180: 22 | C180: 04 | D180: HUALLAGA
A181: 2205:LAMAS | B181: 22 | C181: 05 | D181: LAMAS
A182: 2206:MARISCAL CACERES | B182: 22 | C182: 06 | D182: MARISCAL CACERES
A183: 2207:PICOTA | B183: 22 | C183: 07 | D183: PICOTA
A184: 2208:RIOJA | B184: 22 | C184: 08 | D184: RIOJA
A185: 2209:SAN MARTIN | B185: 22 | C185: 09 | D185: SAN MARTIN
A186: 2210:TOCACHE | B186: 22 | C186: 10 | D186: TOCACHE
A187: 2301:TACNA | B187: 23 | C187: 01 | D187: TACNA
A188: 2302:CANDARAVE | B188: 23 | C188: 02 | D188: CANDARAVE
A189: 2303:JORGE BASADRE | B189: 23 | C189: 03 | D189: JORGE BASADRE
A190: 2304:TARATA | B190: 23 | C190: 04 | D190: TARATA
A191: 2401:TUMBES | B191: 24 | C191: 01 | D191: TUMBES
A192: 2402:CONTRALMIRANTE VILLAR | B192: 24 | C192: 02 | D192: CONTRALMIRANTE VILLAR
A193: 2403:ZARUMILLA | B193: 24 | C193: 03 | D193: ZARUMILLA
A194: 2501:CORONEL PORTILLO | B194: 25 | C194: 01 | D194: CORONEL PORTILLO
A195: 2502:ATALAYA | B195: 25 | C195: 02 | D195: ATALAYA
A196: 2503:PADRE ABAD | B196: 25 | C196: 03 | D196: PADRE ABAD
A197: 2504:PURUS | B197: 25 | C197: 04 | D197: PURUS

Sheet ENTIDAD (hidden)
A1: ENTIDADES
A2: 010000 : GOBIERNO REGIONAL DE AMAZONAS
A3: 020000 : GOBIERNO REGIONAL DE ANCASH
A4: 030000 : GOBIERNO REGIONAL DE APURIMAC
A5: 040000 : GOBIERNO REGIONAL DE AREQUIPA
A6: 050000 : GOBIERNO REGIONAL DE AYACUCHO
A7: 060000 : GOBIERNO REGIONAL DE CAJAMARCA
A8: 070000 : GOBIERNO REGIONAL DEL CALLAO
A9: 080000 : GOBIERNO REGIONAL DE CUSCO
A10: 090000 : GOBIERNO REGIONAL DE HUANCAVELICA
A11: 100000 : GOBIERNO REGIONAL DE HUANUCO
A12: 110000 : GOBIERNO REGIONAL DE ICA
A13: 120000 : GOBIERNO REGIONAL DE JUNIN
A14: 130000 : GOBIERNO REGIONAL DE LA LIBERTAD
A15: 140000 : GOBIERNO REGIONAL DE LAMBAYEQUE
A16: 150000 : GOBIERNO REGIONAL DE LIMA
A17: 160000 : GOBIERNO REGIONAL DE LORETO
A18: 170000 : GOBIERNO REGIONAL DE MADRE DE DIOS
A19: 180000 : GOBIERNO REGIONAL DE MOQUEGUA
A20: 190000 : GOBIERNO REGIONAL DE PASCO
A21: 200000 : GOBIERNO REGIONAL DE PIURA
A22: 210000 : GOBIERNO REGIONAL DE PUNO
A23: 220000 : GOBIERNO REGIONAL DE SAN MARTIN
A24: 230000 : GOBIERNO REGIONAL DE TACNA
A25: 240000 : GOBIERNO REGIONAL DE TUMBES
A26: 250000 : GOBIERNO REGIONAL DE UCAYALI
A27: 260000 : REGION LIMA METROPOLITANA
A28: 010101 : MP DE CHACHAPOYAS
A29: 010102 : MD DE ASUNCION
A30: 010103 : MD DE BALSAS
A31: 010104 : MD DE CHETO
A32: 010105 : MD DE CHILIQUIN
A33: 010106 : MD DE CHUQUIBAMBA
A34: 010107 : MD DE GRANADA
A35: 010108 : MD DE HUANCAS
A36: 010109 : MD DE JALCA GRANDE
A37: 010110 : MD DE LEIMEBAMBA
A38: 010111 : MD DE LEVANTO
A39: 010112 : MD DE MAGDALENA
A40: 010113 : MD DE MARISCAL CASTILLA
A41: 010114 : MD DE MOLINOPAMPA
A42: 010115 : MD DE MONTEVIDEO
A43: 010116 : MD DE OLLEROS
A44: 010117 : MD DE QUINJALCA
A45: 010118 : MD DE SAN FRANCISCO DE DAGUAS
A46: 010119 : MD DE SAN ISIDRO DE MAYNO
A47: 010120 : MD DE SOLOCO
A48: 010121 : MD DE SONCHE
A49: 010201 : MP DE BAGUA - LA PECA
A50: 010202 : MD DE ARAMANGO
A51: 010203 : MD DE COPALLIN
A52: 010204 : MD DE EL PARCO
A53: 010205 : MD DE IMAZA
A54: 010206 : MD DE LA PECA
A55: 010301 : MP DE BONGARA - JUMBILLA
A56: 010302 : MD DE CHISQUILLA
A57: 010303 : MD DE CHURUJA
A58: 010304 : MD DE COROSHA
A59: 010305 : MD DE CUISPES
A60: 010306 : MD DE FLORIDA
A61: 010307 : MD DE JAZAN
A62: 010308 : MD DE RECTA
A63: 010309 : MD DE SAN CARLOS
A64: 010310 : MD DE SHIPASBAMBA
A65: 010311 : MD DE VALERA
A66: 010312 : MD DE YAMBRASBAMBA
A67: 010401 : MP DE CONDORCANQUI - NIEVA
A68: 010402 : MD DE EL CENEPA
A69: 010403 : MD DE RIO SANTIAGO
A70: 010501 : MP DE LUYA - LAMUD
A71: 010502 : MD DE CAMPORREDONDO
A72: 010503 : MD DE COCABAMBA
A73: 010504 : MD DE COLCAMAR
A74: 010505 : MD DE CONILA
A75: 010506 : MD DE INGUILPATA
A76: 010507 : MD DE LONGUITA
A77: 010508 : MD DE LONYA CHICO
A78: 010509 : MD DE LUYA
A79: 010510 : MD DE LUYA VIEJO
A80: 010511 : MD DE MARIA
A81: 010512 : MD DE OCALLI
A82: 010513 : MD DE OCUMAL
A83: 010514 : MD DE PIZUQUIA
A84: 010515 : MD DE PROVIDENCIA
A85: 010516 : MD DE SAN CRISTOBAL DE OLTO
A86: 010517 : MD DE SAN FRANCISCO DE YESO
A87: 010518 : MD DE SAN JERONIMO DE PACLAS
A88: 010519 : MD DE SAN JUAN DE LOPECANCHA
A89: 010520 : MD DE SANTA CATALINA
A90: 010521 : MD DE SANTO TOMAS
A91: 010522 : MD DE TINGO
A92: 010523 : MD DE TRITA
A93: 010601 : MP DE RODRIGUEZ DE MENDOZA - SAN NICOLAS
A94: 010602 : MD DE CHIRIMOTO
A95: 010603 : MD DE COCHAMAL
A96: 010604 : MD DE HUAMBO
A97: 010605 : MD DE LIMABAMBA
A98: 010606 : MD DE LONGAR
A99: 010607 : MD DE MARISCAL BENAVIDES
A100: 010608 : MD DE MILPUC
A101: 010609 : MD DE OMIA
A102: 010610 : MD DE SANTA ROSA
A103: 010611 : MD DE TOTORA
A104: 010612 : MD DE VISTA ALEGRE
A105: 010701 : MP DE UTCUBAMBA - BAGUA GRANDE
A106: 010702 : MD DE CAJARURO
A107: 010703 : MD DE CUMBA
A108: 010704 : MD DE EL MILAGRO
A109: 010705 : MD DE JAMALCA
A110: 010706 : MD DE LONYA GRANDE
A111: 010707 : MD DE YAMON
A112: 020101 : MP DE HUARAZ
A113: 020102 : MD DE COCHABAMBA
A114: 020103 : MD DE COLCABAMBA
A115: 020104 : MD DE HUANCHAY
A116: 020105 : MD DE INDEPENDENCIA
A117: 020106 : MD DE JANGAS
A118: 020107 : MD DE LA LIBERTAD
A119: 020108 : MD DE OLLEROS
A120: 020109 : MD DE PAMPAS
A121: 020110 : MD DE PARIACOTO
A122: 020111 : MD DE PIRA
A123: 020112 : MD DE TARICA
A124: 020201 : MP DE AIJA
A125: 020202 : MD DE CORIS
A126: 020203 : MD DE HUACLLAN
A127: 020204 : MD DE LA MERCED
A128: 020205 : MD DE SUCCHA
A129: 020301 : MP DE ANTONIO RAYMONDI - LLAMELLIN
A130: 020302 : MD DE ACSO
A131: 020303 : MD DE CHACCHO
A132: 020304 : MD DE CHINGAS
A133: 020305 : MD DE MIRGAS
A134: 020306 : MD DE SAN JUAN DE RONTOY
A135: 020401 : MP DE ASUNCION - CHACAS
A136: 020402 : MD DE ACOCHACA
A137: 020501 : MP DE BOLOGNESI - CHIQUIAN
A138: 020502 : MD DE ABELARDO PARDO LAZAMETA
A139: 020503 : MD DE ANTONIO RAYMONDI
A140: 020504 : MD DE AQUIA
A141: 020505 : MD DE CAJACAY
A142: 020506 : MD DE CANIS
A143: 020507 : MD DE COLQUIOC
A144: 020508 : MD DE HUALLANCA
A145: 020509 : MD DE HUASTA
A146: 020510 : MD DE HUAYLLACAYAN
A147: 020511 : MD DE LA PRIMAVERA
A148: 020512 : MD DE MANGAS
A149: 020513 : MD DE PACLLON
A150: 020514 : MD DE SAN MIGUEL DE CORPANQUI
A151: 020515 : MD DE TICLLOS
A152: 020601 : MP DE CARHUAZ
A153: 020602 : MD DE ACOPAMPA
A154: 020603 : MD DE AMASHCA
A155: 020604 : MD DE ANTA
A156: 020605 : MD DE ATAQUERO
A157: 020606 : MD DE MARCARA
A158: 020607 : MD DE PARIAHUANCA
A159: 020608 : MD DE SAN MIGUEL DE ACO
A160: 020609 : MD DE SHILLA
A161: 020610 : MD DE TINCO
A162: 020611 : MD DE YUNGAR
A163: 020701 : MP DE CARLOS FERMIN FITZCARRALD
A164: 020702 : MD DE SAN NICOLAS
A165: 020703 : MD DE YAUYA
A166: 020801 : MP DE CASMA
A167: 020802 : MD DE BUENA VISTA ALTA
A168: 020803 : MD DE COMANDANTE NOEL
A169: 020804 : MD DE YAUTAN
A170: 020901 : MP DE CORONGO
A171: 020902 : MD DE ACO
A172: 020903 : MD DE BAMBAS
A173: 020904 : MD DE CUSCA
A174: 020905 : MD DE LA PAMPA
A175: 020906 : MD DE YANAC
A176: 020907 : MD DE YUPAN
A177: 021001 : MP DE HUARI
A178: 021002 : MD DE ANRA
A179: 021003 : MD DE CAJAY
A180: 021004 : MD DE CHAVIN DE HUANTAR
A181: 021005 : MD DE HUACACHI
A182: 021006 : MD DE HUACCHIS
A183: 021007 : MD DE HUACHIS
A184: 021008 : MD DE HUANTAR
A185: 021009 : MD DE MASIN
A186: 021010 : MD DE PAUCAS
A187: 021011 : MD DE PONTO
A188: 021012 : MD DE RAHUAPAMPA
A189: 021013 : MD DE RAPAYAN
A190: 021014 : MD DE SAN MARCOS
A191: 021015 : MD DE SAN PEDRO DE CHANA
A192: 021016 : MD DE UCO
A193: 021101 : MP DE HUARMEY
A194: 021102 : MD DE COCHAPETI
A195: 021103 : MD DE CULEBRAS
A196: 021104 : MD DE HUAYAN
A197: 021105 : MD DE MALVAS
A198: 021201 : MP DE HUAYLAS - CARAZ
A199: 021202 : MD DE HUALLANCA
A200: 021203 : MD DE HUATA
... 1701 more rows

Sheet GRS (hidden)
A1: -----------------------------------------------
A2: 010000 : GOBIERNO REGIONAL DE AMAZONAS
A3: 020000 : GOBIERNO REGIONAL DE ANCASH
A4: 030000 : GOBIERNO REGIONAL DE APURIMAC
A5: 040000 : GOBIERNO REGIONAL DE AREQUIPA
A6: 050000 : GOBIERNO REGIONAL DE AYACUCHO
A7: 060000 : GOBIERNO REGIONAL DE CAJAMARCA
A8: 070000 : GOBIERNO REGIONAL DEL CALLAO
A9: 080000 : GOBIERNO REGIONAL DE CUSCO
A10: 090000 : GOBIERNO REGIONAL DE HUANCAVELICA
A11: 100000 : GOBIERNO REGIONAL DE HUANUCO
A12: 110000 : GOBIERNO REGIONAL DE ICA
A13: 120000 : GOBIERNO REGIONAL DE JUNIN
A14: 130000 : GOBIERNO REGIONAL DE LA LIBERTAD
A15: 140000 : GOBIERNO REGIONAL DE LAMBAYEQUE
A16: 150000 : GOBIERNO REGIONAL DE LIMA
A17: 160000 : GOBIERNO REGIONAL DE LORETO
A18: 170000 : GOBIERNO REGIONAL DE MADRE DE DIOS
A19: 180000 : GOBIERNO REGIONAL DE MOQUEGUA
A20: 190000 : GOBIERNO REGIONAL DE PASCO
A21: 200000 : GOBIERNO REGIONAL DE PIURA
A22: 210000 : GOBIERNO REGIONAL DE PUNO
A23: 220000 : GOBIERNO REGIONAL DE SAN MARTIN
A24: 230000 : GOBIERNO REGIONAL DE TACNA
A25: 240000 : GOBIERNO REGIONAL DE TUMBES
A26: 250000 : GOBIERNO REGIONAL DE UCAYALI
A27: 260000 : REGION LIMA METROPOLITANA

Sheet TIPOGOB (hidden)
A1: TIPOGOB
A2: Gobiernos Locales
A3: Gobiernos Regionales
A6: No Cumple
A7: Si Cumple
